Workbook

Sheet Table of Contents
C10: Fiscal Year (FY) 2014-2015 Wastewater User Charge Survey
C12: Sheet No. | D12: (click title to navigate to desired sheet)
C14: 1 | D14: TABLE OF CONTENTS
C16: 2 | D16: INTRODUCTION
C18: 3 | D18: SURVEY QUESTIONAIRE
C20: 4 | D20: SINGLE FAMILY SUMMARY REPORT
C22: 5 | D22: RAW SURVEY DATA AGENCY
C24: 6 | D24: RAW SURVEY DATA BY POPULATION
C26: 7 | D26: RAW SURVEY DATA BY TREATMENT LEVEL
C28: 8 | D28: RAW SURVEY DATA BY COUNTY
C30: 9 | D30: SINGLE FAMILY SUMMARY DATA (PRINTABLE)

Sheet Introduction

Sheet Treatment Pivot (hidden)
A1: Response (Yes/No) | B1: (All)
B3: Data
A4: Treatment? | B4: Count of Single-family residence | C4: Min of Single-family residence2 | D4: Max of Single-family residence3 | E4: Average of Single-family residence4 | F4: Count of Single-family residence2_2 | G4: Min of Single-family residence2_4 | H4: Max of Single-family residence2_3 | I4: Average of Single-family residence2_5
A5: No Treatment Process | B5: 161 | C5: 0.15 | D5: 144.37 | E5: 33.22540373 | F5: 144 | G5: 2.96 | H5: 20508 | I5: 3804.107569
A6: Primary | B6: 34 | C6: 9 | D6: 89.12 | E6: 33.26588235 | F6: 29 | G6: 2.4 | H6: 9146 | I6: 2302.445172
A7: Primary w/ Disinfection | B7: 10 | C7: 27.2 | D7: 90.37 | E7: 50.983 | F7: 8 | G7: 726 | H7: 15740 | I7: 5368.3525
A8: Secondary | B8: 37 | C8: 14.25 | D8: 118.54 | E8: 34.51054054 | F8: 33 | G8: 7.7 | H8: 19056.3 | I8: 4356.877273
A9: Secondary w/ Disinfection | B9: 55 | C9: 8.6 | D9: 172 | E9: 46.29709091 | F9: 53 | G9: 34.1 | H9: 15200 | I9: 4731.416792
A10: Septic Tank(s) | B10: 2 | C10: 42 | D10: 145 | E10: 93.5 | F10: 2 | G10: 3650 | H10: 4700 | I10: 4175
A11: Teritary | B11: 54 | C11: 7.35 | D11: 113.36 | E11: 48.15666667 | F11: 48 | G11: 22.36 | H11: 29920 | I11: 7260.84
A12: Tertiary w/ Nutrient Removal | B12: 51 | C12: 7.96 | D12: 131.2 | E12: 44.32313725 | F12: 46 | G12: 50.07 | H12: 16023.82 | I12: 6129.892609
A13: Secondary w/ Nutrient Removal | B13: 21 | C13: 13 | D13: 111.72 | E13: 48.69714286 | F13: 17 | G13: 5.19 | H13: 9182.48 | I13: 4780.557647
A14: Grand Total | B14: 425 | C14: 0.15 | D14: 172 | E14: 39.72698824 | F14: 380 | G14: 2.4 | H14: 29920 | I14: 4663.595053
C17: Median (Primary)
B18: No | C18: 26.985 | D18: 1500
B19: Yes | C19: 27 | D19: 2250
B20: All | C20: 26.985 | D20: 2000
C21: Median (Primary DIs)
B22: No | C22: 52.2 | D22: 5788
B23: Yes | C23: 27.64 | D23: 1063
B24: All | C24: 46.7 | D24: 3816.41
C25: Median (Secondary)
B26: No | C26: 25.5 | D26: 2003.95
B27: Yes | C27: 37.32 | D27: 4719
B28: All | C28: 30 | D28: 2554
C29: Median (Secondary Dis)
B30: No | C30: 42.47 | D30: 3959.91
B31: Yes | C31: 45.835 | D31: 4899
B32: All | C32: 44.62 | D32: 4500
C33: Median (Secondary Nutr)
B34: No | C34: 57.875 | D34: 6703
B35: Yes | C35: 26.51 | D35: 3588
B36: All | C36: 47.78 | D36: 5420
C37: Median (Septic)
B38: No | C38: 42 | D38: 4175
B39: Yes | C39: N/A | D39: N/A
B40: All | C40: 42 | D40: 4175
C41: Median (Tertiary)
B42: No | C42: 56.485 | D42: 8057
B43: Yes | C43: 40.51 | D43: 6080
B44: All | C44: 43.79 | D44: 6190
C45: Median (Tertiary Nutr)
B46: No | C46: 42.325 | D46: 5579
B47: Yes | C47: 42.86 | D47: 5493
B48: All | C48: 42.86 | D48: 5536

Sheet Survey Questionaire

Sheet Single Family Summary Report
A1: MONTHLY USER CHARGE SUMMARY
A2: SINGLE FAMILY DWELLING
A3: F. Y. 2014 - 15 UPDATE
A5: Prepared by: S. W. R. C. B., Division of Financial Assistance
A7: Note: User Charge Summary calculations exclude data from agencies reporting variable user charge.
B8: STATEWIDE HISTORY
D10: User | E10: User | F10: Reporting | G10: User | H10: Lowest | I10: Highest | J10: Average | K10: Median
D11: Areas | E11: Areas | F11: User | G11: Charge Data | H11: (per month) | I11: (per month) | J11: (per month) | K11: (per month)
D12: Surveyed | E12: Reporting | F12: Charge | G12: Prior Year1
B13: State Fiscal Year 1989-1990 | D13: 677 | E13: 550 | F13: 400 | G13: - | H13: 1.75 | I13: 51 | J13: 11.44 | K13: 10
B14: State Fiscal Year 1990-1991 | D14: 677 | E14: 540 | F14: 425 | G14: - | H14: 0 | I14: 73.95 | J14: 12.36 | K14: 10.7
B15: State Fiscal Year 1991-1992 | D15: 677 | E15: 493 | F15: 374 | G15: - | H15: 0 | I15: 99 | J15: 13 | K15: 11.6
B16: State Fiscal Year 1992-1993 | D16: 677 | E16: 554 | F16: 440 | G16: - | H16: 1.21 | I16: 99 | J16: 14.73 | K16: 12.85
B17: State Fiscal Year 1993-1994 | D17: 819 | E17: 722 | F17: 597 | G17: - | H17: 0 | I17: 84.87 | J17: 16.3 | K17: 14
B18: State Fiscal Year 1994-1995 | D18: 819 | E18: 723 | F18: 603 | G18: - | H18: 3.17 | I18: 88.75 | J18: 17.51 | K18: 15
B19: State Fiscal Year 1995-1996 | D19: 819 | E19: 711 | F19: 593 | G19: - | H19: 4.25 | I19: 88.75 | J19: 18.15 | K19: 15.37
B20: State Fiscal Year 1996-1997 | D20: 821 | E20: 755 | F20: 633 | G20: - | H20: 2.71 | I20: 88.75 | J20: 18.8 | K20: 16
B21: State Fiscal Year 1997-1998 | D21: 827 | E21: 750 | F21: 625 | G21: - | H21: 4.25 | I21: 88.75 | J21: 19.43 | K21: 16.5
B22: State Fiscal Year 1998-1999 | D22: 827 | E22: 742 | F22: 616 | G22: - | H22: 4.25 | I22: 88.75 | J22: 19.72 | K22: 16.51
B23: State Fiscal Year 1999-2000 | D23: 908 | E23: 820 | F23: 718 | G23: - | H23: 0 | I23: 91.38 | J23: 19.71 | K23: 16.67
B24: State Fiscal Year 2000-2001 | D24: 908 | E24: 783 | F24: 723 | G24: - | H24: 0 | I24: 145.5 | J24: 19.82 | K24: 16.8
B25: State Fiscal Year 2001-2002 | D25: 906 | E25: 602 | F25: 552 | G25: 142 | H25: 4.25 | I25: 118.88 | J25: 20.46 | K25: 17.43
B26: State Fiscal Year 2002-2003 | D26: No Survey | E26: - | F26: - | G26: - | H26: - | I26: - | J26: - | K26: -
B27: State Fiscal Year 2003-2004 | D27: 902 | E27: 759 | F27: 584 | G27: 52 | H27: 4.25 | I27: 169.92 | J27: 24.03 | K27: 20.22
B28: State Fiscal Year 2004-2005 | D28: 904 | E28: 738 | F28: 608 | G28: 93 | H28: 0 | I28: 248.58 | J28: 26.08 | K28: 22.04
B29: State Fiscal Year 2005-2006 | D29: 898 | E29: 750 | F29: 626 | G29: 91 | H29: 0 | I29: 231.92 | J29: 28.09 | K29: 23.87
B30: State Fiscal Year 2006-2007 | D30: 916 | E30: 753 | F30: 625 | G30: 73 | H30: 0 | I30: 231.92 | J30: 30.86 | K30: 25
B31: State Fiscal Year 2007-2008 | D31: 920 | E31: 784 | F31: 651 | G31: 65 | H31: 0 | I31: 231.92 | J31: 33.82 | K31: 26.83
B32: State Fiscal Year 2008-2009 | D32: No Survey | E32: - | F32: - | G32: - | H32: - | I32: - | J32: - | K32: -
B33: State Fiscal Year 2009-2010 | D33: No Survey | E33: - | F33: - | G33: - | H33: - | I33: - | J33: - | K33: -
B34: State Fiscal Year 2010-2011 | D34: No Survey | E34: - | F34: - | G34: - | H34: - | I34: - | J34: - | K34: -
B35: State Fiscal Year 2011-2012 | D35: No Survey | E35: - | F35: - | G35: - | H35: - | I35: - | J35: - | K35: -
B36: State Fiscal Year 2012-2013 | D36: 759 | E36: 422 | F36: 370 | G36: - | H36: 0 | I36: 368.3333333 | J36: 40.29964453 | K36: 33.83
B37: State Fiscal Year 2013-2014 | D37: No Survey | E37: - | F37: - | G37: - | H37: - | I37: - | J37: - | K37: -
B38: State Fiscal Year 2014-2015 | D38: 731 | E38: 482 | F38: 425 | G38: - | H38: 0.15 | I38: 172 | J38: 39.62 | K38: 34.82
B39: 1Fee Data Prior Year: Represents agencies who have not renewed their wastewater charges and therefore the most current wastewater charges were used.
A75: NOTE: User Charge Summary calculations exclude data from agencies reporting variable user charge.
B76: MONTHLY USER CHARGE GROUPED BY POPULATION SERVED
B78: Criteria | G78: Reporting Fixed Charge | H78: Lowest (per month) | I78: Highest (per month) | J78: Average (per month) | K78: Median (per month)
A79: ALL FACILITIES RETURNING FORM2 | G79: =SUM(G80:G85) -> 423 | H79: 3.26 | I79: 330 | J79: =AVERAGE(J80:J85) -> 36.75058952 | K79: 35.3
B80: POPULATION UNDER 1,000 | G80: 62 | H80: 7.35 | I80: 172 | J80: 52.74096774 | K80: 46.51
B81: POPULATION 1,000 TO 9,999 | G81: 136 | H81: 6.5 | I81: 131.2 | J81: 43.74007353 | K81: 41.32
B82: POPULATION 10,000 TO 49,999 | G82: 112 | H82: 3.26 | I82: 97.46 | J82: 38.11544643 | K82: 41.67
B83: POPULATION 50,000 TO 99,999 | G83: 49 | H83: 4.07 | I83: 330 | J83: 42.23204082 | K83: 38.77
B84: POPULATION 100,000 TO 499,999 | G84: 53 | H84: 4.68 | I84: 58.8 | J84: 26.43773585 | K84: 27.785
B85: POPULATION 500,000 AND OVER | G85: 11 | H85: 4.21 | I85: 33.83 | J85: 17.23727273 | K85: 13.985
B86: .
A87: RATES BASED ON BOD/SS LOADING3 | G87: =SUM(G88:G93) -> 187 | H87: 6.5 | I87: 131.2 | J87: =AVERAGE(J88:J93) -> 35.15926234 | K87: 34.5
B88: POPULATION UNDER 1,000 | G88: 8 | H88: 7.35 | I88: 63 | J88: 35.315 | K88: 37.075
B89: POPULATION 1,000 TO 9,999 | G89: 35 | H89: 6.5 | I89: 131.1975 | J89: 48.348 | K89: 41.32
B90: POPULATION 10,000 TO 49,999 | G90: 64 | H90: 11 | I90: 97.46 | J90: 40.29046875 | K90: 41.67
B91: POPULATION 50,000 TO 99,999 | G91: 32 | H91: 11.92 | I91: 70.88 | J91: 39.675 | K91: 38.77
B92: POPULATION 100,000 TO 499,999 | G92: 38 | H92: 8.49 | I92: 58.8 | J92: 28.78710526 | K92: 27.785
B93: POPULATION 500,000 AND OVER | G93: 10 | H93: 11.75 | I93: 33.83 | J93: 18.54 | K93: 13.985
A95: RATES NOT BASED ON BOD/SS LOADING3 | G95: =SUM(G96:G101) -> 233 | H95: 3.26 | I95: 330 | J95: =AVERAGE(J96:J101) -> 33.98580068 | K95: 35.75
B96: POPULATION UNDER 1,000 | G96: 54 | H96: 9 | I96: 172 | J96: 55.32259259 | K96: 50.08
B97: POPULATION 1,000 TO 9,999 | G97: 100 | H97: 6.92 | I97: 113.36 | J97: 41.9407 | K97: 36.55
B98: POPULATION 10,000 TO 49,999 | G98: 46 | H98: 3.26 | I98: 95.78 | J98: 34.91021739 | K98: 30.11
B99: POPULATION 50,000 TO 99,999 | G99: 17 | H99: 4.07 | I99: 330 | J99: 47.04529412 | K99: 23.67
B100: POPULATION 100,000 TO 499,999 | G100: 15 | H100: 4.68 | I100: 45.6 | J100: 20.486 | K100: 10.6
B101: POPULATION 500,000 AND OVER | G101: 1 | H101: 4.21 | I101: 4.21 | J101: 4.21 | K101: 4.21
B103: 2Excludes agencies not reporting fixed charge and/or population
B104: 3Excludes agencies not reporting fixed charge, loading, and/or population
A106: NOTE: User Charge Summary calculations exclude data from agencies reporting variable user charge.
B107: MONTHLY USER CHARGE GROUPED BY LEVEL OF TREATMENT
B109: Criteria | G109: Reporting Fixed Charge | H109: Lowest (per month) | I109: Highest (per month) | J109: Average (per month) | K109: Median (per month)
A110: ALL FACILITIES RETURNING FORM4 | G110: =SUM(G111:G118) -> 264 | H110: =MIN(H111:H118) -> 7.35 | I110: =MAX(I111:I118) -> 172 | J110: =AVERAGE(J111:J118) -> 49.9625 | K110: =MEDIAN(K111:K118) -> 43.325
B111: SEPTIC TANK(S) | G111: 2 | H111: 42 | I111: 145 | J111: 93.5 | K111: 42
B112: PRIMARY TREATMENT | G112: 34 | H112: 9 | I112: 89.12 | J112: 33.26 | K112: 26.98
B113: PRIMARY WITH DISINFECTION | G113: 10 | H113: 27.2 | I113: 90.37 | J113: 50.98 | K113: 46.7
B114: SECONDARY TREATMENT | G114: 37 | H114: 14.25 | I114: 118.54 | J114: 34.51 | K114: 30
B115: SECONDARY WITH DISINFECTION | G115: 55 | H115: 8.6 | I115: 172 | J115: 46.29 | K115: 44.62
B116: SECONDARY WITH NUTRIENT REMOVAL | G116: 21 | H116: 13 | I116: 111.72 | J116: 48.69 | K116: 47.78
B117: TERTIARY TREATMENT | G117: 54 | H117: 7.35 | I117: 113.36 | J117: 48.15 | K117: 43.79
B118: TERTIARY WITH NUTRIENT REMOVAL | G118: 51 | H118: 7.96 | I118: 131.2 | J118: 44.32 | K118: 42.86
A120: RATES BASED ON BOD/SS LOADING5 | G120: =SUM(G121:G128) -> 127 | H120: =MIN(H121:H128) -> 7.35 | I120: =MAX(I121:I128) -> 131.2 | J120: =AVERAGE(J121:J128) -> 38.36 | K120: 33.66
B121: SEPTIC TANK(S) | G121: 0 | H121: N/A | I121: N/A | J121: N/A | K121: N/A
B122: PRIMARY TREATMENT | G122: 8 | H122: 20.15 | I122: 49.95 | J122: 32.56 | K122: 27
B123: PRIMARY WITH DISINFECTION | G123: 3 | H123: 27.2 | I123: 35 | J123: 29.94 | K123: 27.64
B124: SECONDARY TREATMENT | G124: 13 | H124: 16.5 | I124: 118.54 | J124: 44.3 | K124: 37.32
B125: SECONDARY WITH DISINFECTION | G125: 26 | H125: 15.68 | I125: 77 | J125: 42.66 | K125: 45.835
B126: SECONDARY WITH NUTRIENT REMOVAL | G126: 10 | H126: 13 | I126: 97.46 | J126: 33.13 | K126: 26.51
B127: TERTIARY TREATMENT | G127: 32 | H127: 7.35 | I127: 82.04 | J127: 40.6 | K127: 40.51
B128: TERTIARY WITH NUTRIENT REMOVAL | G128: 35 | H128: 14.39 | I128: 131.2 | J128: 45.33 | K128: 42.86
A130: RATES NOT BASED ON BOD/SS LOADING5 | G130: =SUM(G131:G138) -> 135 | H130: =MIN(H131:H138) -> 7.96 | I130: =MAX(I131:I138) -> 172 | J130: =AVERAGE(J131:J138) -> 52.927875 | K130: 39.35
B131: SEPTIC TANK(S) | G131: 2 | H131: 42 | I131: 145 | J131: 93.5 | K131: 42
B132: PRIMARY TREATMENT | G132: 26 | H132: 9 | I132: 89.12 | J132: 33.48 | K132: 26.98
B133: PRIMARY WITH DISINFECTION | G133: 6 | H133: 39.74 | I133: 90.37 | J133: 59.59 | K133: 52.2
B134: SECONDARY TREATMENT | G134: 24 | H134: 14.25 | I134: 78.54 | J134: 29.2 | K134: 25.5
B135: SECONDARY WITH DISINFECTION | G135: 29 | H135: 8.6 | I135: 172 | J135: 49.55 | K135: 42.47
B136: SECONDARY WITH NUTRIENT REMOVAL | G136: 10 | H136: 26 | I136: 111.72 | J136: 64.853 | K136: 57.87
B137: TERTIARY TREATMENT | G137: 22 | H137: 21 | I137: 113.36 | J137: 51.14 | K137: 56.48
B138: TERTIARY WITH NUTRIENT REMOVAL | G138: 16 | H138: 7.96 | I138: 74.9 | J138: 42.11 | K138: 42.32
B140: 4Excludes agencies not reporting fixed charge and/or level of treatment
B141: 5Excludes agencies not reporting fixed charge, loading, and/or level of treatment
A143: NOTE: User Charge Summary calculations exclude data from agencies reporting variable user charge.
B144: MONTHLY USER CHARGE GROUPED BY COUNTY
E182: User | F182: User | G182: Reporting | H182: Lowest | I182: Highest | J182: Average | K182: Median
E183: Areas | F183: Areas | G183: Fixed | H183: (per month) | I183: (per month) | J183: (per month) | K183: (per month)
B184: County | E184: Surveyed | F184: Reporting | G184: Charge
B185: ALAMEDA | E185: 16 | F185: 11 | G185: 10 | H185: 16.67 | I185: 49.58 | J185: 33.211 | K185: 33.495
B186: ALPINE | E186: 3 | F186: 2 | G186: 2 | H186: 61.5 | I186: 90.37 | J186: 75.935 | K186: 75.935
B187: AMADOR | E187: 9 | F187: 5 | G187: 4 | H187: 29.35 | I187: 78.08 | J187: 56.17 | K187: 58.62
B188: BUTTE | E188: 11 | F188: 6 | G188: 5 | H188: 8.6 | I188: 27.35 | J188: 20.266 | K188: 21.41
B189: CALAVERAS | E189: 5 | F189: 4 | G189: 4 | H189: 49.5 | I189: 86.16 | J189: 65.895 | K189: 63.96
B191: COLUSA | E191: 4 | F191: 3 | G191: 3 | H191: 17.5 | I191: 77.75 | J191: 56.50667 | K191: 74.27
B192: CONTRA COSTA | E192: 19 | F192: 13 | G192: 13 | H192: 14.62 | I192: 147 | J192: 46.81154 | K192: 36.58
B193: DEL NORTE | E193: 3 | F193: 1 | G193: 1 | H193: 72.21 | I193: 72.21 | J193: 72.21 | K193: 72.21
B194: EL DORADO | E194: 3 | F194: 4 | G194: 3 | H194: 70.88 | I194: 70.88 | J194: 70.88 | K194: 70.88
B195: FRESNO | E195: 25 | F195: 12 | G195: 10 | H195: 15.68 | I195: 49.95 | J195: 32.903 | K195: 32.555
B197: GLENN | E197: 5 | F197: 2 | G197: 2 | H197: 16.45 | I197: 31.93 | J197: 24.19 | K197: 24.19
B198: HUMBOLDT | E198: 18 | F198: 7 | G198: 7 | H198: 27.64 | I198: 78.72 | J198: 55.19857 | K198: 52.31
B199: IMPERIAL | E199: 12 | F199: 6 | G199: 5 | H199: 31.84 | I199: 49.64 | J199: 42.014 | K199: 42.45
B200: INYO | E200: 5 | F200: 4 | G200: 4 | H200: 15 | I200: 30 | J200: 21.54 | K200: 20.58
B201: KERN | E201: 27 | F201: 15 | G201: 15 | H201: 12.42 | I201: 39.74 | J201: 20.98467 | K201: 18.33
B203: KINGS | E203: 7 | F203: 3 | G203: 3 | H203: 22.9 | I203: 27.2 | J203: 24.7 | K203: 24
B204: LAKE | E204: 4 | F204: 6 | G204: 6 | H204: 16.3 | I204: 53.95 | J204: 34.855 | K204: 35.98
B205: LASSEN | E205: 4 | F205: 5 | G205: 3 | H205: 30 | I205: 42.01 | J205: 35.61 | K205: 34.82
B206: LOS ANGELES | E206: 90 | F206: 55 | G206: 40 | H206: 0.15 | I206: 145 | J206: 19.83225 | K206: 12.79
B207: MADERA | E207: 3 | F207: 2 | G207: 2 | H207: 20.8 | I207: 26.51 | J207: 23.655 | K207: 23.655
B209: MARIN | E209: 21 | F209: 17 | G209: 14 | H209: 20.5 | I209: 81.33 | J209: 52.435 | K209: 50.92
B210: MARIPOSA | E210: 2 | F210: 1 | G210: 1 | H210: 29 | I210: 29 | J210: 29 | K210: 29
B211: MENDOCINO | E211: 15 | F211: 8 | G211: 8 | H211: 35 | I211: 144.37 | J211: 64.5675 | K211: 54.5
B212: MERCED | E212: 16 | F212: 11 | G212: 8 | H212: 22.69 | I212: 49.16 | J212: 34.10125 | K212: 31.97
B213: MODOC | E213: 4 | F213: 2 | G213: 2 | H213: 21 | I213: 30.22 | J213: 25.61 | K213: 25.61
B215: MONO | E215: 3 | F215: 3 | G215: 3 | H215: 19.9 | I215: 78.54 | J215: 40.89333 | K215: 24.24
B216: MONTEREY | E216: 14 | F216: 8 | G216: 8 | H216: 14.85 | I216: 51.35 | J216: 31.00875 | K216: 26.615
B217: NAPA | E217: 9 | F217: 6 | G217: 6 | H217: 29.75 | I217: 172 | J217: 75.10333 | K217: 56.985
B218: NEVADA | E218: 9 | F218: 3 | G218: 3 | H218: 16.75 | I218: 55 | J218: 32.41667 | K218: 25.5
B219: ORANGE | E219: 26 | F219: 19 | G219: 13 | H219: 5.18 | I219: 48.42 | J219: 17.09462 | K219: 14.4
B221: PLACER | E221: 13 | F221: 25 | G221: 24 | H221: 9.5 | I221: 120.66 | J221: 63.25708 | K221: 48.12
B222: PLUMAS | E222: 10 | F222: 3 | G222: 2 | H222: 31.94 | I222: 45.82 | J222: 38.88 | K222: 38.88
B223: RIVERSIDE | E223: 27 | F223: 22 | G223: 22 | H223: 4.07 | I223: 51 | J223: 30.45409 | K223: 31.115
B224: SACRAMENTO | E224: 6 | F224: 2 | G224: 1 | H224: 16.15 | I224: 16.15 | J224: 16.15 | K224: 16.15
B225: SAN BENITO | E225: 3 | F225: 1 | G225: 1 | H225: 118.54 | I225: 118.54 | J225: 118.54 | K225: 118.54
B227: SAN BERNARDINO | E227: 32 | F227: 18 | G227: 16 | H227: 7.2 | I227: 46.87 | J227: 27.34125 | K227: 26.905
B228: SAN DIEGO | E228: 33 | F228: 26 | G228: 22 | H228: 12.25 | I228: 83.26 | J228: 42.17682 | K228: 45.38
B229: SAN FRANCISCO | E229: 1 | G229: 0 | H229: - | I229: - | J229: - | K229: -
B230: SAN JOAQUIN | E230: 11 | F230: 6 | G230: 6 | H230: 20.24 | I230: 48 | J230: 31.71167 | K230: 29.105
B231: SAN LUIS OBISPO | E231: 19 | F231: 21 | G231: 18 | H231: 7.35 | I231: 105.61 | J231: 41.58833 | K231: 36.475
B233: SAN MATEO | E233: 18 | F233: 11 | G233: 11 | H233: 33.5 | I233: 89.6 | J233: 58.71818 | K233: 58.8
B234: SANTA BARBARA | E234: 21 | F234: 14 | G234: 13 | H234: 6.92 | I234: 78.09 | J234: 45.80615 | K234: 48.09
B235: SANTA CLARA | E235: 15 | F235: 4 | G235: 4 | H235: 33.34 | I235: 39.66 | J235: 36.3175 | K235: 36.135
B236: SANTA CRUZ | E236: 5 | F236: 3 | G236: 3 | H236: 29.11 | I236: 58.01 | J236: 46.36333 | K236: 51.97
B237: SHASTA | E237: 7 | F237: 9 | G237: 7 | H237: 25.4 | I237: 109.5 | J237: 51.95286 | K237: 45.6
B239: SIERRA | E239: 1 | F239: 1 | G239: 1 | H239: 67 | I239: 67 | J239: 67 | K239: 67
B240: SISKIYOU | E240: 17 | F240: 7 | G240: 5 | H240: 15 | I240: 36.9 | J240: 23.45 | K240: 20
B241: SOLANO | E241: 6 | F241: 4 | G241: 4 | H241: 32.71 | I241: 73.92 | J241: 50.81 | K241: 48.305
B242: SONOMA | E242: 11 | F242: 6 | G242: 4 | H242: 20.81 | I242: 131.2 | J242: 86.8775 | K242: 97.75
B243: STANISLAUS | E243: 16 | F243: 13 | G243: 13 | H243: 20.15 | I243: 69.45 | J243: 40.04154 | K243: 37.32
B245: SUTTER | E245: 3 | F245: 2 | G245: 2 | H245: 38.39 | I245: 68.8 | J245: 53.595 | K245: 53.595
B246: TEHAMA | E246: 6 | F246: 3 | G246: 3 | H246: 33.64 | I246: 43 | J246: 39.70333 | K246: 42.47
B247: TRINITY | E247: 1 | F247: 2 | G247: 2 | H247: 16.5 | I247: 22 | J247: 19.25 | K247: 19.25
B248: TULARE | E248: 25 | F248: 19 | G248: 18 | H248: 9 | I248: 65.75 | J248: 32.74556 | K248: 28.435
B249: TUOLUMNE | E249: 4 | F249: 3 | G249: 3 | H249: 41.59 | I249: 53.1 | J249: 49.14667 | K249: 52.75
B251: VENTURA | E251: 17 | F251: 7 | G251: 6 | H251: 26 | I251: 77 | J251: 42.075 | K251: 35.475
B252: YOLO | E252: 7 | F252: 3 | G252: 3 | H252: 44.05 | I252: 46.45 | J252: 45.16667 | K252: 45
B253: YUBA | E253: 4 | F253: 3 | G253: 3 | H253: 31 | I253: 47.92 | J253: 38.57333 | K253: 36.8
B255: STATEWIDE | E255: =SUM(E185:E253) -> 731 | F255: 482 | G255: =SUM(G185:G253) -> 425 | H255: =MIN(H185:H253) -> 0.15 | I255: =MAX(I185:I253) -> 172 | J255: =AVERAGE(J185:J253) -> 43.39105281 | K255: =MEDIAN(K185:K253) -> 36.58
A257: CONNECTION FEE SUMMARY
A258: SINGLE FAMILY DWELLING
A259: F. Y. 2014 - 15 UPDATE
A261: Prepared by: S. W. R. C. B., Division of Financial Assistance
B262: STATEWIDE HISTORY
D264: User | E264: User | F264: Reporting | G264: Connection
D265: Areas | E265: Areas | F265: Connection | G265: Fee Data | H265: Lowest | I265: Highest | J265: Average | K265: Median
D266: Surveyed | E266: Reporting | F266: Fee | G266: Prior Year1
B267: State Fiscal Year 1989-1990 | D267: 677 | E267: 550 | F267: 474 | G267: - | H267: 0 | I267: 6740 | J267: 1167 | K267: 900
B268: State Fiscal Year 1990-1991 | D268: 677 | E268: 540 | F268: 494 | G268: - | H268: 0 | I268: 6740 | J268: 1348 | K268: 1055
B269: State Fiscal Year 1991-1992 | D269: 677 | E269: 493 | F269: 418 | G269: - | H269: 0 | I269: 6818 | J269: 1425 | K269: 1200
B270: State Fiscal Year 1992-1993 | D270: 677 | E270: 554 | F270: 466 | G270: - | H270: 0 | I270: 14223 | J270: 1629 | K270: 1305
B271: State Fiscal Year 1993-1994 | D271: 819 | E271: 722 | F271: 612 | G271: - | H271: 0 | I271: 10130 | J271: 1680 | K271: 1454
B272: State Fiscal Year 1994-1995 | D272: 819 | E272: 723 | F272: 625 | G272: - | H272: 0 | I272: 20000 | J272: 1849 | K272: 1536
B273: State Fiscal Year 1995-1996 | D273: 819 | E273: 711 | F273: 636 | G273: - | H273: 0 | I273: 12000 | J273: 1910 | K273: 1600
B274: State Fiscal Year 1996-1997 | D274: 821 | E274: 755 | F274: 642 | G274: - | H274: 0 | I274: 13184 | J274: 2081 | K274: 1745
B275: State Fiscal Year 1997-1998 | D275: 827 | E275: 750 | F275: 641 | G275: - | H275: 0 | I275: 13981 | J275: 2147 | K275: 1742
B276: State Fiscal Year 1998-1999 | D276: 827 | E276: 742 | F276: 632 | G276: - | H276: 0 | I276: 16000 | J276: 2207 | K276: 1905
B277: State Fiscal Year 1999-2000 | D277: 908 | E277: 820 | F277: 695 | G277: - | H277: 0 | I277: 18000 | J277: 2225 | K277: 1777
B278: State Fiscal Year 2000-2001 | D278: 908 | E278: 783 | F278: 796 | G278: - | H278: 0 | I278: 18000 | J278: 2242 | K278: 1748
B279: State Fiscal Year 2001-2002 | D279: 906 | E279: 602 | F279: 541 | G279: 194 | H279: 0 | I279: 18000 | J279: 2415 | K279: 1982
B280: State Fiscal Year 2002-2003 | D280: No Survey | E280: - | F280: - | G280: - | H280: - | I280: - | J280: - | K280: -
B281: State Fiscal Year 2003-2004 | D281: 902 | E281: 759 | F281: 658 | G281: 58 | H281: 0 | I281: 20300 | J281: 2752 | K281: 2111
B282: State Fiscal Year 2004-2005 | D282: 904 | E282: 738 | F282: 662 | G282: 77 | H282: 0 | I282: 20825 | J282: 3057 | K282: 2400
B283: State Fiscal Year 2005-2006 | D283: 898 | E283: 750 | F283: 696 | G283: 101 | H283: 0 | I283: 21469 | J283: 3129 | K283: 2500
B284: State Fiscal Year 2006-2007 | D284: 916 | E284: 753 | F284: 679 | G284: 71 | H284: 0 | I284: 22305 | J284: 3547 | K284: 2800
B285: State Fiscal Year 2007-2008 | D285: 920 | E285: 785 | F285: 698 | G285: 71 | H285: 0 | I285: 22305 | J285: 3870 | K285: 3100
B286: State Fiscal Year 2008-2009 | D286: No Survey | E286: - | F286: - | G286: - | H286: - | I286: - | J286: - | K286: -
B287: State Fiscal Year 2009-2010 | D287: No Survey | E287: - | F287: - | G287: - | H287: - | I287: - | J287: - | K287: -
B288: State Fiscal Year 2010-2011 | D288: No Survey | E288: - | F288: - | G288: - | H288: - | I288: - | J288: - | K288: -
B289: State Fiscal Year 2011-2012 | D289: No Survey | E289: - | F289: - | G289: - | H289: - | I289: - | J289: - | K289: -
B290: State Fiscal Year 2012-2013 | D290: 759 | E290: 422 | F290: 369 | G290: - | H290: 0 | I290: 38000 | J290: 4177.604989 | K290: 3417
B291: State Fiscal Year 2013-2014 | D291: No Survey | E291: - | F291: - | G291: - | H291: - | I291: - | J291: - | K291: -
B292: State Fiscal Year 2014-2015 | D292: 731 | E292: 482 | F292: 380 | G292: - | H292: 2.4 | I292: 29920 | J292: 4663.59 | K292: 4000
B293: 1Fee Data Prior Year: Represents agencies who have not renewed their wastewater charges and therefore the most current wastewater charges were used.
B330: CONNECTION FEES GROUPED BY POPULATION SERVED
G332: Reporting
G333: Connection | H333: Lowest | I333: Highest | J333: Average | K333: Median
B334: Criteria | G334: Fee2
A335: ALL FACILITIES RETURNING FORM2 | G335: =SUM(G336:G341) -> 382 | H335: 2.4 | I335: 29920 | J335: =AVERAGE(J336:J341) -> 4389.699601 | K335: =MEDIAN(K336:K341) -> 4121.25
B336: POPULATION UNDER 1,000 | G336: 52 | H336: 500 | I336: 15881 | J336: 4470.365385 | K336: 3200
... 115 more rows

Sheet UserCharge-Connection Graphs (hidden)
A1: 11.44 | B1: 1990
A2: 12.36 | B2: 1991
A3: 13 | B3: 1992
A4: 14.73 | B4: 1993
A5: 16.3 | B5: 1994
A6: 17.51 | B6: 1995
A7: 18.15 | B7: 1996
A8: 18.8 | B8: 1997
A9: 19.43 | B9: 1998
A10: 19.72 | B10: 1999
A11: 19.71 | B11: 2000
A12: 19.82 | B12: 2001
A13: 20.46 | B13: 2002
A14: 24.03 | B14: 2004
A15: 26.08 | B15: 2005
A16: 28.09 | B16: 2006
A17: 30.86 | B17: 2007
A18: 33.82 | B18: 2008
A19: 40.29964453 | B19: 2013
A20: 39.62 | B20: 2015
A35: 1990 | B35: 1167
A36: 1991 | B36: 1348
A37: 1992 | B37: 1425
A38: 1993 | B38: 1629
A39: 1994 | B39: 1680
A40: 1995 | B40: 1849
A41: 1996 | B41: 1910
A42: 1997 | B42: 2081
A43: 1998 | B43: 2147
A44: 1999 | B44: 2207
A45: 2000 | B45: 2225
A46: 2001 | B46: 2242
A47: 2002 | B47: 2415
A48: 2004 | B48: 2752
A49: 2005 | B49: 3057
A50: 2006 | B50: 3129
A51: 2007 | B51: 3547
A52: 2008 | B52: 3870
A53: 2013 | B53: 4177.604989
A54: 2015 | B54: 4681.11

Sheet Statewide Fee Data (hidden)
A1: Wastewater User Fee (per month) | G1: Connection Fees (flat fee)
A2: Single-family residence | B2: Multiple family (per unit) | C2: Mobile homes (per unit) | D2: Industrial | E2: Commercial | F2: Institutional | G2: Single-family residence | H2: Multiple family (per unit) | I2: Mobile homes (per unit) | J2: Industrial | K2: Commercial | L2: Institutional
A3: 0 | G3: 1000 | K3: 1000
A4: 0 | B4: NA (see Note 1 in comments) | C4: NA (see Note 1 in comments) | D4: NA (see Note 1 in comments) | E4: NA (see Note 1 in comments) | F4: NA (see Note 1 in comments) | G4: 1460 | H4: 905.2 | I4: 905.2 | J4: see attached | K4: see attached
A5: 0 | B5: NA | C5: NA | D5: NA | E5: NA | F5: NA | G5: 5526.75 | H5: 5526.75 | I5: 5526.75 | J5: 5526.75 | K5: 5526.75 | L5: 5526.75
A6: 0 | B6: na | C6: na | D6: na | E6: na | F6: na | G6: 6360 | H6: based on meter size | I6: based on meter size | J6: based on meter size | K6: based on meter size | L6: based on meter size
A7: 0 | B7: N/A | C7: N/A | D7: N/A | E7: N/A | F7: N/A | G7: Based on meter size | H7: Based on meter size | I7: Based on meter size | J7: Based on meter size | K7: Based on meter size | L7: Based on meter size
A8: 0 | G8: N/A
A9: 0 | B9: NA | C9: NA | D9: NA | E9: NA | F9: NA | G9: N/A | H9: NA | I9: NA | J9: NA | K9: NA | L9: NA
A10: 0 | G10: N/A
A11: 0 | G11: N/A
A12: 0.01206 | B12: Variable, $113.36 | C12: Variable, $113.36 | D12: Variable, $113.36 | E12: Variable, $113.36 | F12: Variable, $113.36 | G12: 29920 | H12: Variable, $29,920 | I12: Variable, $29,920 | J12: Variable, $29,920 | K12: Variable, $29,920 | L12: Variable, $29,920
A13: 3.26 | B13: 0 | E13: 0 | G13: 8.21 | H13: 8.21 | K13: $25.16 plus .13/CF
A14: 4.21 | B14: 0 | C14: 0 | D14: 0 | E14: 0 | F14: 0 | G14: 4330 | H14: 2598 | I14: 2598 | J14: Based on Wastewater Quantity & Strenght Contained | K14: 8154.54 | L14: 1378.5
A15: 4.68 | B15: 0 | C15: 0 | D15: 0 | E15: 0 | F15: 0 | J15: 66.06 | K15: 15.48 | L15: 67.5
A16: 5 | G16: 0 | H16: 0 | I16: 0 | J16: 0 | K16: 0 | L16: 0
A17: 5.18 | B17: 0 | C17: 0 | D17: 0 | E17: 0 | F17: 0 | G17: 2190 | H17: 2190 | I17: 2190 | J17: 2190 | K17: 2190 | L17: 2190
A18: 6.5 | G18: 0
A19: 6.5 | B19: 0 | C19: 0 | D19: 4.97/unit | E19: 4.97/unit | F19: 4.97/unit | G19: 34.1 | H19: 34.1 | I19: 0 | J19: 34.1 | K19: 34.1 | L19: 34.1
A20: 6.92 | B20: 0 | C20: 0 | D20: 0 | E20: 0 | F20: 0 | G20: 1612 | H20: 1447 | I20: 1612 | J20: $1,612.00 per ERU | K20: $1,612.00 per ERU | L20: $1,612.00 per ERU
A21: 7.2 | B21: 0 | C21: 0 | D21: 0 | E21: 0 | G21: 5.5 | H21: 3.85 | I21: 3.85 | J21: 5.5 | K21: 5.5
A22: 7.25 | B22: 1.96 | C22: 3.26 | D22: n/a | E22: 24.88 | F22: 60.24 | G22: 75 | H22: 75 | I22: n/a | J22: 450 - 1125 | K22: 150 - 1350 | L22: 375
A23: 7.25 | B23: 0.01206 | C23: 0.01206 | D23: 0.01206 | E23: 0.01206 | F23: 0.01206
A24: 7.35 | B24: 4.21 | C24: 4.21 | D24: 4.21 | E24: 4.21 | F24: 4.21 | G24: 0 | H24: 0 | I24: 0 | J24: 0 | K24: 0 | L24: 0
A25: 7.5 | B25: 225.45 | C25: 3.55 | D25: 484 | E25: 243 | F25: 234 | G25: 0 | H25: 0 | I25: 0 | J25: 0 | K25: 0 | L25: 0
A26: 7.52 | B26: 4 | C26: 3 | D26: 20 | E26: 15 | F26: 5 | G26: 240 | H26: 240 | I26: 240 | J26: based on floor area | K26: varies | L26: varies
A27: 7.88 | B27: 5.18 | C27: 5.18 | D27: 172.5 | E27: 18.98 | F27: 18.98 | G27: 2000 | H27: 2000 | I27: 2000 | J27: 20000 | K27: 10000 | L27: 20000
A28: 7.96 | B28: 3.9 | C28: 3.9 | D28: 31.59 | E28: 139.13 | G28: 1400 | H28: 868 | I28: 868
A29: 8.49 | B29: 6.5 | C29: 6.5 | D29: 32.5 | E29: 13 | F29: 13 | G29: 330.43 | H29: $330.43 minimum | I29: $330.43 minimum | J29: $330.43 minimum | K29: $330.43 minimum | L29: $330.43 minimum
A30: 8.6 | B30: 0 | C30: 0 | D30: 0 | E30: 6.92 | F30: 0 | G30: 3030 | H30: 0 | I30: 0 | J30: 0 | K30: 3030 | L30: 0
A31: 8.64 | B31: 7.2 | E31: 7.2 | F31: 7.2 | G31: 0
A32: 9 | B32: 4.26 | D32: 100.3 | E32: 66.87 | G32: 120 | H32: 120 | J32: 120 | K32: 120
A33: 9.5 | B33: 7.25 | C33: 7.25 | E33: 15.33 | G33: 730 | H33: 730 | I33: 730 | K33: 806
A34: 9.75 | B34: 7.35 | C34: 7.35 | D34: N/A | E34: 7.35 | F34: N/A | G34: 2280 | H34: N/A | I34: N/A | J34: N/A | K34: N/A | L34: N/A
A35: 9.92 | B35: 7.125 | J35: $0.75/hcf | K35: $0.75/hcf | L35: $0.75/hcf
A36: 10 | B36: 7.52 | C36: 7.52 | D36: 7.52 | E36: 7.52 | F36: 7.52 | G36: 250 | H36: 145 | I36: 145 | J36: 0 | K36: 250 | L36: 250
A37: 10.33 | B37: 4.95 | D37: 321.52 | F37: 101.67 | G37: 5937.14 | H37: 2785.69 | I37: 2785.69 | J37: 5937.14 | K37: 5937.14 | L37: 57570.92
A38: 10.6 | B38: 7.96 | C38: 7.96 | D38: 7.96 | E38: 7.96 | F38: 7.96 | G38: 8.77/volume | H38: 8.77/volume | I38: 8.77/volume | J38: 8.77/volume | K38: 8.77/volume | L38: 8.77/volume
A39: 11 | B39: 5.1 | C39: 5.1 | D39: 54.55 | E39: 81.64 | F39: 64.19 | G39: 48.5 | H39: 48.5 | I39: 48.5 | J39: 48.5 | K39: 48.5 | L39: 48.5
A40: 11.75 | B40: 8.64 | E40: 8.64 | G40: 2510 | H40: 1506 | J40: 2510 | K40: 2510 | L40: 2510
A41: 11.75 | B41: 8.6 | C41: 8.6 | D41: 8.6 | E41: 8.6 | G41: 6638 | H41: 6638 | I41: 6638 | J41: 6638 | K41: 6638
A42: 11.83 | B42: 9 | C42: 9 | E42: 9 | F42: 9 | G42: 500 | H42: 500 | I42: 500 | K42: 500 | L42: 500
A43: 11.92 | C43: 9.5 | G43: 3573
A44: 12.42 | C44: 9.75 | D44: 9.75 | E44: 21.74 | G44: 500 | I44: 500 | J44: 500 | K44: 500
A45: 12.5 | B45: 6 | C45: 6 | D45: 48 | E45: 214.05 | G45: 3800 | H45: 2280 | I45: 2280 | J45: 456 | K45: 6812
A46: 12.5 | B46: 9.92 | C46: 9.92 | D46: 7.825 | E46: 11.625 | F46: 11.625 | G46: We collect for the SSLOSD and sent to them we do not set fees | H46: We collect for the SSLOSD and sent to them we do not set fees | I46: We collect for the SSLOSD and sent to them we do not set fees | J46: We collect for the SSLOSD and sent to them we do not set fees | K46: We collect for the SSLOSD and sent to them we do not set fees | L46: We collect for the SSLOSD and sent to them we do not set fees
A47: 12.67 | B47: 6.2 | C47: 6.2 | D47: 50.22 | E47: 221.19 | G47: 4610 | H47: 2766 | I47: 2766 | J47: 553 | K47: 8185.34
A48: 12.75 | B48: 74.99 | D48: 69.75 | E48: 47.43 | F48: 101.7 | G48: 4360
A49: 12.83 | B49: 6.6 | C49: 6.6 | D49: 46.2 | E49: 271.66 | G49: 3807 | H49: 2284 | I49: 2284 | J49: 438 | K49: 8157.11
A50: 12.92 | B50: 7.05 | C50: 7.05 | D50: 57.11 | E50: 251.51 | G50: 4210 | H50: 2526 | I50: 2526 | J50: 505 | K50: 7514.95
A51: 12.92 | B51: 7.05 | C51: 7.05 | D51: 57.11 | E51: 251.51 | G51: 4610 | H51: 2766 | I51: 2766 | J51: 553 | K51: 8382.81
A52: 13 | B52: 7.1 | C52: 7.1 | D52: 57.51 | E52: 253.29 | G52: 4220 | H52: 2532 | I52: 2532 | J52: 506 | K52: 7531.71
A53: 13 | B53: 7.15 | C53: 7.15 | D53: 57.92 | E53: 255.08 | G53: 4220 | H53: 2532 | I53: 2532 | J53: 551 | K53: 8160.47
A54: 13.08 | B54: 9.31 | C54: 11.18 | D54: 1326.62 | E54: $12.42 - $141.56 | F54: $12.42 - $197.43 (Schools) | G54: 3000 | H54: 2040 | I54: 2220 | J54: 1326.62 | K54: $3,000 - $12,000 | L54: $180 per student (Schools)
A55: 13.58 | B55: 7.5 | C55: 7.5 | D55: 60.75 | E55: 267.56 | G55: 1710 | H55: 1060.2 | I55: 1060.2
A56: 13.88 | B56: 12.5 | E56: 13.54 | F56: 12.5 | G56: 1000 | H56: 1000 | K56: 1500 | L56: 1500
A57: 14 | B57: 7.6 | C57: 7.6 | D57: 61.56 | E57: 271.13 | G57: 4450 | H57: 2670 | I57: 2670 | J57: 534 | K57: 7918.82
A58: 14.22 | B58: 7.65 | C58: 7.65 | D58: 61.97 | E58: 272.91 | G58: 4320 | H58: 2592 | I58: 2592 | J58: 518 | K58: 7703.34
A59: 14.25 | B59: 7.7 | C59: 7.7 | D59: 62.37 | E59: 274.7 | G59: 4530 | H59: 2718 | I59: 2718 | J59: 544 | K59: 8250.62
A60: 14.39 | B60: 7.75 | C60: 7.75 | D60: 62.78 | E60: 282.06 | G60: 4440 | H60: 2664 | I60: 2664 | J60: 553 | K60: 7904.29
A61: 14.4 | B61: 7.75 | C61: 7.75 | D61: 23.25 | E61: 280.43 | G61: 4560 | H61: 2736 | I61: 2736 | J61: 547 | K61: 8108.45
A62: 14.62 | B62: 7.8 | C62: 7.8 | D62: 61.18 | E62: 297.83 | G62: 4590 | H62: 2754 | I62: 2754 | J62: 551 | K62: 8160.47
A63: 14.85 | B63: 26 | C63: 13 | D63: 53 | E63: 40 | F63: 66 | G63: 715 | H63: 1430 | I63: 715 | J63: 2860 | K63: 2145 | L63: 4290
A64: 15 | B64: 7.85 | C64: 7.85 | D64: 63.59 | E64: 280.05 | G64: 4320 | H64: 2592 | I64: 2592 | J64: 518 | K64: 7703.34
A65: 15 | B65: 8.15 | C65: 8.15 | D65: 61.97 | E65: 272.91 | G65: 4520 | H65: 2712 | I65: 2712 | J65: 518 | K65: 7703.34
A66: 15.33 | B66: 10.41 | C66: 10.41 | D66: 151.7 | E66: 8.79 | F66: na | G66: 5310 | H66: 3982 | I66: 3982 | J66: 8496 | K66: 5000 | L66: 28000
A67: 15.4 | B67: 23 | C67: 14 | D67: 35 | E67: 35 | F67: 35 | G67: 0 | H67: 0 | I67: 0 | J67: 0 | K67: 0 | L67: 0
A68: 15.68 | B68: 57.36 | C68: 0 | D68: 291.72 | E68: 454.99 | F68: 411.85 | G68: 4500 | H68: 4500 | I68: 4500 | J68: 4500 | K68: 4500 | L68: 4500
A69: 15.79 | B69: 22.6 | D69: 81.2 | E69: 20.2 | F69: 324.05 | G69: 4600
A70: 16 | B70: 6 | C70: 6 | D70: 17628 | E70: 838 | F70: hotels: $68,716.00 | G70: 446.46 | H70: 231.91
A71: 16 | B71: 14.62 | C71: 14.62 | F71: 14.62 | G71: 4469.56 | H71: 3399.41 | J71: .5735 per sq ft | K71: 1.0903 per sq ft
A72: 16 | B72: 14.39 | C72: 14.39 | D72: 14.39 | E72: 14.39 | F72: 14.39 | G72: 5107 | H72: 5107 | I72: 5107 | J72: 5107 | K72: 5107 | L72: 5107
A73: 16.15 | B73: 14.85 | C73: 14.85 | D73: 14.85 | E73: 36.4 | F73: 13.4 | G73: 3337 | H73: 3337 | I73: 3337 | J73: 3337 | K73: 3337 | L73: 3337
A74: 16.25 | B74: 15 | C74: 15 | D74: 15 | E74: 15 | F74: 115 | G74: 0 | H74: 0 | I74: 0 | J74: 0 | K74: 0 | L74: 0
A75: 16.3 | B75: 15 | C75: 15 | D75: 30 | E75: 33.26 | F75: .80 per ADA | G75: 200 | H75: 250
A76: 16.4 | B76: $15.33 base + $5.0276/HCF | D76: $15.33 base + $3.7672/HCF | E76: $15.33 base + $3.7672/HCF | G76: 4124 | H76: $4,124 /EDU | J76: $4,124 /EDU | K76: $4,124 /EDU
A77: 16.45 | B77: 15.4 | D77: 15.40/SFRE | E77: 15.40/SFRE | G77: 6322.53 | H77: 6018.02 | J77: 7,772.53/RE | K77: 7,772.53/RE
A78: 16.5 | B78: 15.68 | C78: 15.68 | D78: N/A | E78: 116.5 | F78: 11695 | G78: 125 | H78: 125 | I78: 125 | J78: Based on projected use | K78: Based on projected use | L78: Based on projected use
A79: 16.58 | B79: 13.5 | C79: 13.5 | D79: $1.61/Ccf | E79: $1.61/Ccf | F79: $1.61/Ccf | G79: 2200 | H79: 2200 | I79: 2200 | J79: varies depending on connection size | K79: varies depending on connection size | L79: varies depending on connection size
A80: 16.67 | B80: 16 | C80: 16 | D80: 32 | E80: 32 | F80: 13 per student | G80: 2640 | H80: 2640 | I80: 2640
A81: 16.74 | B81: 16 | C81: 2118 | E81: 115108 | F81: 10100 | G81: 3000 | H81: 3000 | I81: 3000 | K81: 3000 | L81: 3000
A82: 16.75 | B82: 0 | C82: 0 | D82: 16 | E82: 16 | F82: 0 | G82: 2000 | H82: 2000 | I82: 2000 | J82: 2000 | K82: 2000 | L82: 2000
A83: 17 | B83: 16.15 | C83: 16.15 | D83: .12/100 gal | E83: varies - see uploaded Sewer Rates or website | F83: varies - see uploaded Sewer Rates or website | G83: 965 | H83: 755 | I83: 854 | J83: varies - see uploaded Connection fees or website | K83: varies - see uploaded Connection fees or website | L83: varies - see uploaded Connection fees or website
A84: 17 | B84: 12.64 | C84: N/A | D84: unknown | E84: unknown | F84: unknown | G84: N/A | H84: N/A | I84: N/A | J84: N/A | K84: N/A | L84: N/A
A85: 17.42 | B85: 16.3 | C85: 16.3 | D85: 16.3 | E85: 32.6 | F85: 32.6 | G85: 6649.19
A86: 17.5 | B86: 16.40 per unit | C86: 16.4 | D86: 49.2 | E86: 32.8 | F86: 412 | G86: 1890 | H86: Per Engineer | I86: 1890 | J86: Per Engineer | K86: Per Engineer | L86: Per Engineer
A87: 18.02 | E87: 16.5 | G87: 1776 | K87: 1776
A88: 18.02 | B88: 16.45 | G88: 2003.95 | H88: 2003.95
A89: 18.25 | B89: 16.58 | C89: 16.58 | D89: water usage - no average available | E89: water usage - no average available | F89: water usage - no average available | G89: 2940 | H89: 2940 | I89: 2940 | J89: $2,940 per ERU | K89: $2,940 per ERU | L89: $2,940 per ERU
A90: 18.33 | B90: 16.74 | C90: 16.74 | E90: 33.49 | F90: 33.49 | G90: 4775.97 | H90: 4775.97 | I90: 4775.97 | J90: NA | K90: 4775.97 per SFD Equiv | L90: 4775.97 per SFD equiv
A91: 18.33 | B91: 16.67 | C91: 13.58 | D91: 69394 | E91: 110.17 | F91: 367.15 | G91: 6555 | H91: 6555 | I91: 6555 | J91: 6555 | K91: 6555 | L91: 6555
A92: 19 | B92: 16.75 | C92: 16.75 | D92: NA | E92: 12.08 | F92: 3.01 | G92: 750 | H92: 750 | I92: 750 | J92: NA | K92: NA | L92: NA
A93: 19.25 | B93: 7.1 | C93: 7.1 | E93: 152 | G93: 22.36 | H93: 22.36 | I93: 22.36 | K93: 77.06
A94: 19.25 | B94: 15 | C94: 13 | D94: 0 | E94: $10.00 for first 100 cf, $1.75 per 100 cf for overage | F94: 0 | G94: 1500 | H94: 1500 | I94: 1500 | J94: 0 | K94: 1500 | L94: 0
A95: 19.5 | B95: 12.87 | C95: 12.33 | D95: 30 | E95: 30 | F95: 0 | G95: 3791 | H95: 3418 | I95: 1260 | J95: Based on projected water use | K95: Based on projected water use | L95: 0
A96: 19.79 | B96: 17.5 | C96: 17.5 | D96: Varies | E96: 17.5 | F96: 220 | G96: 2000 | H96: 2000 | I96: 2000 | J96: 2000 | K96: 2000 | L96: 2000
A97: 19.9 | G97: 4000
A98: 20 | B98: 46.7 | C98: 18.25 | D98: 148.01 | E98: 11.62 to 34.02 | F98: 888.06 | G98: 500 | H98: 500 | I98: 500 | J98: 500 | K98: 500 | L98: 500
A99: 20 | G99: 715
A100: 20 | G100: 4000
A101: 20.12 | B101: 18.33 | C101: 18.33 | D101: 701.13 | E101: 67.01 | F101: 59.35 | G101: 1790 | H101: 1790 | I101: 1790 | J101: 0 | K101: 0 | L101: 0
A102: 20.15 | B102: 19 | C102: 19 | D102: 72.94 | E102: 19 | F102: 36.45 | G102: 2048 | H102: 2048 | I102: 2048 | J102: 8.19 per gallon per day | K102: 8.19 per gallon per day | L102: 8.19 per gallon per day
A103: 20.18 | B103: 19.25 | C103: 19.25 | D103: 38.5 | E103: 34.45 | F103: 566.25 | G103: 3350 | H103: 3350 | I103: 3350 | J103: 3350 | K103: 3350 | L103: 3350
A104: 20.24 | B104: 19.25 | C104: 19.25 | F104: 585.5
A105: 20.5 | G105: 2075
A106: 20.5 | B106: 19.5 | C106: 19.5 | D106: 19.50/EDU | E106: 19.50/EDU | F106: 19.50/EDU | G106: 3600 | H106: 3600 | I106: 3600 | J106: 3600.00/EDU | K106: 3600.00/EDU | L106: 3600.00/EDU
A107: 20.8 | B107: 17.12 | C107: 17.12 | E107: 12.82 | G107: 0 | H107: 0 | I107: 0 | J107: 0 | K107: 0 | L107: 0
A108: 20.81 | B108: 20 | C108: 20 | E108: 236 | G108: 600 | H108: 600 | I108: 600 | K108: 2750
A109: 20.92 | C109: 20 | E109: 20 | G109: 500 | I109: 500 | K109: 500
A110: 20.99 | B110: 20 | C110: 20 | D110: 200 | E110: 20 | F110: 20 | G110: 3500 | H110: 3500 | I110: 3500 | J110: 3500 | K110: 3500 | L110: 3500
A111: 21 | B111: 20.15 | C111: 20.15 | D111: Based on usage | E111: Based on usage | F111: Based on usage | G111: 4420 | H111: 400 | I111: 400 | J111: 1000 | K111: 1000 | L111: 1000
A112: 21 | B112: 40.24 bi-monthly | C112: 40.24 bi-monthly | D112: 1.3751/hcf/month | E112: 1.3751/hcf/month | F112: 0.5583/student/month | G112: 6346 | H112: 6346 | I112: 6346 | J112: Not Available | K112: Not Available | L112: Not Available
A113: 21.22 | B113: 15.13 | C113: 12.11 | G113: 1789 | H113: 1656 | I113: 1401 | J113: 637 | K113: 637 | L113: 637
A114: 21.23 | B114: 20.24 | C114: 20.24 | D114: 47.81 AVG | E114: 20.24 | F114: 20.24 | G114: 2.4 | H114: 2.4 | I114: 2.4 | J114: 5.65 AVG | K114: 2.4 | L114: 2.4
A115: 21.41 | B115: 17.8 | C115: 18.38 | E115: 3.64 | G115: 9.31 per gallon | H115: 9.31 per gallon | I115: 9.31 per gallon | K115: 9.31 per gallon
A116: 21.5 | B116: 20.5 | E116: 400.74 | G116: 9220 | H116: 9220 | K116: 9220
A117: 21.69 | B117: $15.60 per unit | C117: $15.60 per unit | F117: $27.47 per line | G117: 697.7
A118: 21.76 | B118: $8.33 average | D118: $94.61 average | E118: $67.28 average | F118: $137.02 average | G118: 50.07 | H118: $41.42 average | J118: $384.13 average | K118: $339.54 average | L118: $517.71 average
A119: 22 | B119: 18.8 | E119: 700 | G119: 0 | H119: 0 | K119: 0
A120: 22.16 | B120: 20.99 | C120: 20.99 | D120: 20.99/EDU | E120: 20.99/EDU | F120: 20.99/EDU | G120: 8432 | H120: $8432/EDU | I120: $8432/EDU | J120: $8432/EDU | K120: $8432/EDU | L120: $8432/EDU
A121: 22.25 | E121: 32 | G121: 1500 | K121: 1500
A122: 22.5 | B122: 21 | C122: 21 | D122: 26.84 | E122: 26.84 | F122: 26.84 | G122: 2640 | H122: 2420 | I122: 2420 | J122: 1920 | K122: 1920 | L122: 1920
A123: 22.69 | B123: 18.5 | C123: 15.78 | E123: Fixed fee $255 + water usage per Cu/Ft | G123: 3500
A124: 22.9 | B124: 21.23 | C124: 21.23 | D124: 21.23 | E124: 21.23 | G124: 6575 | H124: 6575 | I124: 6575 | J124: 6575 | K124: 6575 | L124: 6575
A125: 22.98 | B125: 21.41 | C125: 21.41 | D125: 21.41 | E125: 21.41 | F125: 21.41 | G125: 4777 | H125: 4777 | I125: 4777 | J125: 4777 | K125: 4777 | L125: 4777
A126: 22.98 | B126: 21.5 | C126: 21.5 | E126: 22.12 | G126: N/A | H126: na | I126: na | J126: na | K126: na | L126: na
A127: 23.15 | B127: 21.69 | C127: 21.69 | D127: variable/usage based | E127: variable/ usage based | F127: variable/ usage based | G127: connection fees set by Inland Empire Utilites Agency | H127: connection fees set by Inland Empire Utilites Agency | I127: connection fees set by Inland Empire Utilites Agency | J127: connection fees set by Inland Empire Utilites Agency | K127: connection fees set by Inland Empire Utilites Agency | L127: connection fees set by Inland Empire Utilites Agency
A128: 23.18 | B128: 17.44 | C128: 21.76 | D128: 40.16 | E128: 26.76 | F128: 26.76 | G128: 5876.61 | H128: 5876.61 | I128: 5876.61 | J128: 5876.61 | K128: 5876.61 | L128: 5876.61
A129: 23.36 | B129: 0 | C129: 0 | D129: 0 | E129: 40 | F129: 300 | G129: 2000 | K129: 2000.00 per household equivalent | L129: 2000.00 per household equivalent
A130: 23.67 | G130: 1625
A131: 24 | B131: $22.50 per EDU | C131: $22.50 per EDU | D131: $22.50 per EDU | E131: $22.50 per EDU | F131: $22.50 per EDU | G131: 4265 | H131: 4265 | I131: 4265 | J131: 4265 | K131: 4265 | L131: 4265
A132: 24 | B132: 22.69 | C132: 22.69 | D132: 5770 | E132: 93.38 | F132: 842.35 | G132: 5420 | H132: 5420 | I132: 5420 | J132: N/A | K132: N/A | L132: N/A
A133: 24 | B133: 13.35 | C133: 13.35 | D133: 108.8 | E133: 477.53 | G133: 5500 | H133: 3300 | I133: 3300 | J133: 715 | K133: 9946.32
A134: 24.21 | B134: 21.7 | C134: 1.971 cu ft | D134: 2,002/million gallons | E134: 1.97 | F134: 0.66 | G134: 1590.56 | H134: 1451.61 | I134: variable | J134: 0.4512/sqft | K134: 0.9027/sqft | L134: Variable
A135: 24.24 | B135: 22.98 | C135: 22.98 | D135: 22.98 + 5.22 ccf | E135: 22.98 + 5.22 ccf | F135: 22.98 + 5.22 ccf | G135: 2251 | H135: 2251 | I135: 2251 | J135: 9003.00 per acre | K135: 9003.00 per acre | L135: 1688.00 per unit
A136: 24.25 | G136: 5127
A137: 24.48 | B137: 46.3 | C137: 23.15 | D137: 25.65 (2 accts), 42.90 (1) | E137: 25.65 (32 accts), 42.90 (6), 51.30 (3), 76.95 (1), 94.65 (3) | F137: 681.5 | G137: 0 | H137: 0 | I137: 0 | J137: 0 | K137: 0 | L137: 0
A138: 24.8 | B138: 18.54 | C138: 18.54 | D138: 23.18 | E138: 667.39 | F138: 1485.56 | G138: 100 | H138: 100 | I138: 100
A139: 25 | B139: 48 | C139: 0 | D139: 0 | E139: 96 | F139: 0 | G139: 715 | H139: 1430 | I139: 715 | J139: 2860 | K139: 2145 | L139: 0
A140: 25 | B140: 19.93 | D140: $3.70/HCF (medium strength dischargers) | E140: $3.70/HCF (medium strength dischargers) | F140: $0.64/pupil/mo. (elem) & $1.26/pupil/mo. (HS) | G140: 814 | H140: 667 | J140: $500/1000 SF (average) | K140: $300/1000 SF (average) | L140: $450/1000 SF
A141: 25 | B141: 23.67 | C141: 23.67 | D141: 0 | E141: 23.67 | F141: 23.67 | G141: 4006 | H141: 4006 | I141: 4006 | J141: 0 | K141: 4006 | L141: 4006
A142: 25.04 | B142: 48 | C142: 24 | D142: 0 | E142: Variable Multiples of the residential rate | F142: 0 | G142: 1150 | H142: 1150 | I142: 1150 | J142: 0 | K142: Variable Multiples of the Residential Rate | L142: 0
A143: 25.25 | B143: 21 | E143: 26 | G143: 700 | H143: 1000 | K143: 5000
A144: 25.32 | G144: 2153 | H144: 2153 | I144: 2153 | J144: 2153 | K144: 2153 | L144: 2153
A145: 25.4 | B145: 24.24 | E145: 238 | G145: 3400 | H145: 3400 | K145: 5200
A146: 25.5 | B146: 24.25 | C146: 24.25 | D146: 3.51 per hcf | E146: 3.50 per hcf | F146: 3.50 per hcf | G146: 4444 | H146: 4444 | I146: 4444 | J146: 4444 | K146: 4444 | L146: 4444
A147: 25.52 | B147: 24.48 | D147: 13480.43 | E147: 69.95 | F147: 178.14 | G147: N/A | H147: n/a | I147: n/a | J147: n/a | K147: n/a | L147: n/a
A148: 25.81 | B148: 24.8 | C148: 24.8 | D148: 24.8 | E148: 24.8 | F148: 24.8 | G148: =MEDIAN(G1:G106) -> 2240
A149: 26 | C149: 25 | G149: 1000 | H149: 1000 | I149: 1000 | J149: 1000 | K149: 1000 | L149: 1000
A150: 26 | B150: 25 | E150: 25 | G150: Not given
A151: 26.03 | E151: 40 | F151: 400 | G151: N/A | H151: N/A | I151: N/A | J151: N/A | K151: N/A | L151: N/A
A152: 26.08 | E152: 25.04 | G152: 600
A153: 26.09 | B153: 25.25 | C153: 25.25 | D153: 4341.33 | E153: 115.94 avg | F153: 168.26 avg | G153: 14261 | H153: 14261 | I153: 14261 | J153: 874.75 | K153: 874.75 | L153: 874.75
A154: 26.17 | C154: 23.11 | E154: 19.58 | G154: 715 | I154: 715 | K154: 715
A155: 26.28 | B155: 23.35 | C155: 242.4 | E155: 25.5 | G155: 6130.6
A156: 26.33 | G156: 5000
A157: 26.44 | G157: 842 | H157: 842 | K157: 842 | L157: 842
A158: 26.51
A159: 26.85 | B159: 26 | C159: 26 | D159: 92.85 | E159: 26 | G159: 1593.45 | H159: 1593.45 | I159: 1593.45 | J159: 1593.45 | K159: 1593.45 | L159: 1593.45
A160: 26.87 | B160: 26.00 per ERU | C160: 26.00 per ERU | D160: 26.00 per ERU | E160: 26.00 per ERU | F160: 26.00 per ERU | G160: 4595 | H160: 4595 | I160: 4595 | J160: 4595 | K160: 4595 | L160: 4595
A161: 26.87 | B161: 26.03 | C161: 26.03 | E161: 52.08 | F161: 52.08 | G161: 9437.77 | H161: 9437.77 per SFD | I161: 9437.77 per SFD | J161: 9437.77 per SFD | K161: 9437.77 per SFD | L161: 9437.77 per SFD
A162: 27.1 | B162: 19.56 | C162: 15.65 | D162: N/A | E162: N/A | F162: N/A | G162: 4374 | H162: 3281 | I162: 2624 | J162: 1.44 | K162: 1.44 | L162: 1.44
A163: 27.16 | C163: 20.87 | E163: 52.18 | F163: 52.18 | G163: 4359 | I163: 2180 | K163: 8000 | L163: 6000
A164: 27.2 | B164: 26.17 | C164: 26.17 | D164: 26.17 | E164: 26.17 | F164: 26.17 | G164: 200 | H164: 200 | I164: 200 | J164: 200 | K164: 200 | L164: 200
A165: 27.35 | B165: 26.28 | C165: 26.28 | D165: see attached | E165: see attached | F165: see attached | G165: 3991 | H165: 3991 | I165: 3991 | J165: see attached | K165: 3991 | L165: 3991
A166: 27.37 | B166: 18.43 | C166: 13.16 | D166: N/A | E166: N/A | F166: N/A | G166: 3588 | H166: $3192 (average) | I166: $3588 (average) | J166: N/A | K166: $1,862 per thousand square feet | L166: N/A
A167: 27.58 | B167: 22.99 | C167: 22.99 | D167: 22.99 | E167: 22.99 | F167: 22.99 | G167: 5679.45 | H167: 5679.45 | I167: 5679.45 | J167: 15000 | K167: 15000 | L167: 15000
A168: 27.64 | B168: 16.19 | D168: 216.65 | E168: 83.13 | F168: 714.51
A169: 28 | B169: 26.85 | C169: 26.85 | D169: 5000 | E169: variable, average unknown | F169: variable, average unknown | G169: 7288 | H169: 5830 | I169: 5830 | J169: variable, average unknown | K169: variable, average unknown | L169: variable, average unknown
A170: 28.2 | B170: 26.87 | C170: 26.87 | D170: 26.87 | E170: 26.87 | F170: 26.87
A171: 28.31 | B171: 25.52 | C171: 25.52 | D171: 181527 | E171: 49 | F171: 190 | G171: 4500 | H171: 6700 | I171: 4500 | J171: 27000 | K171: 7200 | L171: 5300
A172: 28.43 | B172: 27.1 | C172: 27.1 | D172: 27.1 | E172: 27.1 | F172: 27.1 | G172: 1140 | H172: 1140 | I172: 1140 | J172: 1140 | K172: 1140 | L172: 1140
A173: 28.47 | B173: 26.67 | C173: 27.16 | D173: 41.67 | E173: 40.5 | F173: 40.5 | G173: 3490 | H173: 2542 | I173: 2542 | J173: 8420 | K173: 8420 | L173: 8420
A174: 28.57 | B174: 27.2 | C174: 18.02 | D174: 11045 | E174: 455 | F174: 1416.54 | G174: 726 | H174: 678 | I174: 726 | J174: 2059 | K174: 2486 | L174: 2486
A175: 28.93 | B175: 27.35 | C175: 27.35 | D175: 27.35 | E175: 27.35 | F175: 27.35 | G175: 10371.7 | H175: 10371.7 | I175: 10371.7 | J175: 10371.7 | K175: 10371.7 | L175: 10371.7
A176: 29 | B176: 25.53 | D176: 144.48 | E176: 58.68 | G176: 0 | H176: 0 | I176: 0 | J176: 0 | K176: 0 | L176: 0
A177: 29 | B177: 27.41 | E177: 203.1 | G177: 5000 | H177: 5000 + Sewer Capacity Based on meter size | I177: 5000 + Sewer Capacity Based on meter size | J177: 5000 + Sewer Capacity Based on meter size | K177: 5000 + Sewer Capacity Based on meter size | L177: 5000 + Sewer Capacity Based on meter size
A178: 29.11 | B178: 32.05 | E178: 56.68 | G178: N/A | H178: N/A | I178: N/A | J178: N/A | K178: N/A | L178: N/A
A179: 29.22 | B179: 28 | C179: 28 | D179: 28 | E179: 28 | F179: Variable based on $28.00 per EDU - Avg. $6516.00 | G179: 9157 | H179: 9157.00 PER EDU | I179: 9157.00 PER EDU | J179: 9157.00 PER EDU | K179: 9157.00 PER EDU | L179: na
A180: 29.35 | B180: 23.54 | C180: 23.54 | D180: 2077 | E180: 150.05 | F180: 728.42 | G180: 9002 | H180: 8192 | I180: 8192 | J180: 9002 | K180: 9002 | L180: 9002
A181: 29.42 | B181: 16.99 | C181: 16.99 | D181: 137.6 | E181: 606.03 | G181: 4530 | H181: 2718 | I181: 2718 | J181: 544 | K181: 7997.45
A182: 29.47 | B182: 22.74 | C182: 22.74 | D182: 389.36 | E182: 91.07 | F182: 2508.64 | G182: 1000 | H182: 1000 | I182: 1000
A183: 29.75 | B183: $335.28 (average) | E183: $2.27 per HCF based on water meter usage | G183: 600 | H183: 600 | K183: $2250.00 (AVERAGE)
A184: 29.75 | B184: 28.57 per eq unit | C184: 28.57 per eq unit | D184: 28.57 per eq unit | E184: 28.57 per eq unit | F184: 28.57 per eq unit | G184: 650 | H184: 650 | I184: 650 | J184: 650 | K184: 650 | L184: 650
A185: 30 | B185: 29 | C185: 29 | D185: 87 | E185: 87 | F185: 87 | G185: 0 | H185: 0 | I185: 0 | J185: 0 | K185: 0 | L185: 0
A186: 30 | B186: 23 | E186: 200 | F186: 625 | G186: 1050 | H186: 525 | J186: 8400 | K186: 8400 | L186: 8400
A187: 30 | C187: 21.98 | E187: see comment section | G187: 7873 | I187: 7873 | K187: 7,873.00 plus strength component 25-90%
A188: 30.11 | B188: 20.39 | C188: 19.42 | D188: 0.65/100 gal Variable | E188: 0.65/100 gal Variable | F188: 0.65/100 gal Variable | G188: 6137 | H188: 4440 | I188: 4440 | J188: 26.12/Gal/Day | K188: 26.12/Gal/Day | L188: 26.12/Gal/Day
A189: 30.22 | B189: 29.22 | E189: 0.65 per CCF | F189: 0.39 per CCF | K189: 17.7 | L189: 17.7
A190: 30.51 | B190: 29.35 | C190: 29.35 | D190: 29.35 | E190: 140.22 (average) | F190: 957.38 (average) | G190: 2100 | H190: 1700 | I190: 1700 | J190: 125/plumbing fixture unit | K190: 125/plumbing fixture unit | L190: 125/plumbing fixture unit
A191: 30.94 | B191: 23.71 | C191: 21.1 | D191: 144.12 | E191: 279.1 | F191: 398.63 | G191: 2247 | H191: 2034 | I191: 1356
A192: 31 | B192: 24 | E192: 28.5 | G192: 2000 | H192: 2000 | I192: 2000 | J192: 2000 | K192: 2000 | L192: 2000
A193: 31 | B193: 315.25 | C193: 315.25 | D193: 2.25 per 1000 gal/yr | E193: 5.01 per 1000 gal/yr | F193: 5.01 per 1000 gal/yr | G193: 5595.66 | H193: 4796.28 | I193: 4796.28 | J193: 10.24 per 1000 gal/yy | K193: variable
A194: 31 | B194: 19.45 | C194: 19.45 | D194: 42.49 | E194: 42.49 | F194: 42.49 | G194: 7074.6 | H194: 4951.83 | I194: 4951.83 | J194: 7074.6 | K194: 7074.6 | L194: 494.66
A195: 31 | B195: 29.47 | C195: 29.47 | D195: 29.47 | E195: 29.47 | F195: 29.47 | G195: 7450 | H195: 7450 | I195: 7450 | J195: 7450 | K195: 7450 | L195: 7450
A196: 31.08 | B196: 30 | C196: 30 | D196: 535 | E196: 110 | F196: 0 | G196: 950 | H196: 950 | I196: 950 | J196: 950 | K196: 950 | L196: 950
A197: 31.21
A198: 31.23 | B198: 18.39 | C198: 18.39 | D198: 18.39 | E198: 18.39 | F198: 18.39 | G198: 7.7 | H198: 1.19 | I198: 1.19 | J198: 7.7 | K198: 7.7 | L198: 7.7
A199: 31.43 | B199: 28.9 | E199: 24.07 | G199: 620 | H199: 620 | I199: 620 | J199: 1320 | K199: 1320 | L199: 1320
A200: 31.75 | C200: 30.51 | D200: 45.76 | E200: 228.8 | F200: 47.76 | G200: 30.51 | I200: 30.51 | J200: 45.76 | K200: 228.8 | L200: 47.76
... 261 more rows

Sheet County Pivot (hidden)
B3: Data
A4: County: | B4: Count of Single-family residence | C4: Min of Single-family residence2 | D4: Max of Single-family residence3 | E4: Average of Single-family residence4 | F4: Count of Single-family residence2_2 | G4: Min of Single-family residence2_3 | H4: Max of Single-family residence2_5 | I4: Average of Single-family residence2_4
A5: Alameda | B5: 10 | C5: 16.67 | D5: 49.58 | E5: 33.211 | F5: 9 | G5: 500 | H5: 16656 | I5: 6034.74
A6: Alpine | B6: 2 | C6: 61.5 | D6: 90.37 | E6: 75.935 | F6: 1 | G6: 15740 | H6: 15740 | I6: 15740
A7: Amador | B7: 4 | C7: 29.35 | D7: 78.08 | E7: 56.17 | F7: 4 | G7: 2100 | H7: 9582 | I7: 6182.5
A8: Butte | B8: 5 | C8: 8.6 | D8: 27.35 | E8: 20.266 | F8: 5 | G8: 2251 | H8: 10371.7 | I8: 6493.94
A9: Calaveras | B9: 4 | C9: 49.5 | D9: 86.16 | E9: 65.895 | F9: 4 | G9: 5788 | H9: 10950 | I9: 8286.25
A10: Colusa | B10: 3 | C10: 17.5 | D10: 77.75 | E10: 56.50666667 | F10: 3 | G10: 25 | H10: 8851.87 | I10: 3625.623333
A11: Contra Costa | B11: 13 | C11: 14.62 | D11: 147 | E11: 46.81153846 | F11: 13 | G11: 1790 | H11: 12030 | I11: 5233.026154
A12: Del Norte | B12: 1 | C12: 72.21 | D12: 72.21 | E12: 72.21 | F12: 1 | G12: 9682 | H12: 9682 | I12: 9682
A13: El Dorado | B13: 3 | C13: 70.88 | D13: 70.88 | E13: 70.88 | F13: 3 | G13: 12862 | H13: 12862 | I13: 12862
A14: Fresno | B14: 10 | C14: 15.68 | D14: 49.95 | E14: 32.903 | F14: 6 | G14: 7.7 | H14: 9146 | I14: 4661.95
A15: Glenn | B15: 2 | C15: 16.45 | D15: 31.93 | E15: 24.19 | F15: 2 | G15: 2003.95 | H15: 2144 | I15: 2073.975
A16: Humboldt | B16: 7 | C16: 27.64 | D16: 78.72 | E16: 55.19857143 | F16: 5 | G16: 5.19 | H16: 6360 | I16: 2973.038
A17: Imperial | B17: 5 | C17: 31.84 | D17: 49.64 | E17: 42.014 | F17: 3 | G17: 30 | H17: 1844.82 | I17: 958.2733333
A18: Inyo | B18: 4 | C18: 15 | D18: 30 | E18: 21.54 | F18: 4 | G18: 200 | H18: 2048 | I18: 1468.25
A19: Kern | B19: 15 | C19: 12.42 | D19: 39.74 | E19: 20.98466667 | F19: 14 | G19: 650 | H19: 6322.53 | I19: 2662.109286
A20: Kings | B20: 3 | C20: 22.9 | D20: 27.2 | E20: 24.7 | F20: 3 | G20: 726 | H20: 1590.56 | I20: 1155.52
A21: Lake | B21: 6 | C21: 16.3 | D21: 53.95 | E21: 34.855 | F21: 6 | G21: 4775.97 | H21: 10344.67 | I21: 7467.933333
A22: Lassen | B22: 3 | C22: 30 | D22: 42.01 | E22: 35.61 | F22: 3 | G22: 42.01 | H22: 1880 | I22: 1178.003333
A23: Los Angeles | B23: 40 | C23: 0.15 | D23: 145 | E23: 19.83225 | F23: 38 | G23: 2.96 | H23: 6190 | I23: 2920.142368
A24: Madera | B24: 2 | C24: 20.8 | D24: 26.51 | E24: 23.655 | F24: 1 | G24: 697.7 | H24: 697.7 | I24: 697.7
A25: Marin | B25: 14 | C25: 20.5 | D25: 81.33 | E25: 52.435 | F25: 15 | G25: 314 | H25: 19056.3 | I25: 7014.67
A26: Mariposa | B26: 1 | C26: 29 | D26: 29 | E26: 29 | F26: 1 | G26: 1050 | H26: 1050 | I26: 1050
A27: Mendocino | B27: 8 | C27: 35 | D27: 144.37 | E27: 64.5675 | F27: 7 | G27: 1400 | H27: 15881 | I27: 8174.857143
A28: Merced | B28: 8 | C28: 22.69 | D28: 49.16 | E28: 34.10125 | F28: 8 | G28: 1000 | H28: 7873 | I28: 3374.25
A29: Modoc | B29: 2 | C29: 21 | D29: 30.22 | E29: 25.61 | F29: 2 | G29: 620 | H29: 1500 | I29: 1060
A30: Mono | B30: 3 | C30: 19.9 | D30: 78.54 | E30: 40.89333333 | F30: 2 | G30: 2500 | H30: 3400 | I30: 2950
A31: Monterey | B31: 8 | C31: 14.85 | D31: 51.35 | E31: 31.00875 | F31: 7 | G31: 100 | H31: 3811.47 | I31: 2121.638571
A32: Napa | B32: 6 | C32: 29.75 | D32: 172 | E32: 75.10333333 | F32: 4 | G32: 2500 | H32: 23748 | I32: 10511.4
A33: Nevada | B33: 3 | C33: 16.75 | D33: 55 | E33: 32.41666667 | F33: 2 | G33: 750 | H33: 5000 | I33: 2875
A34: Orange | B34: 13 | C34: 5.18 | D34: 48.42 | E34: 17.09461538 | F34: 12 | G34: 5.5 | H34: 5937.14 | I34: 1800.871667
A35: Placer | B35: 24 | C35: 9.5 | D35: 120.66 | E35: 63.25708333 | F35: 24 | G35: 1000 | H35: 10519 | I35: 6508.629167
A36: Plumas | B36: 2 | C36: 31.94 | D36: 45.82 | E36: 38.88 | F36: 2 | G36: 1000 | H36: 4488.81 | I36: 2744.405
A37: Riverside | B37: 22 | C37: 4.07 | D37: 51 | E37: 30.45409091 | F37: 21 | G37: 200 | H37: 8221 | I37: 3707.402381
A38: Sacramento | B38: 1 | C38: 16.15 | D38: 16.15 | E38: 16.15 | F38: 1 | G38: 965 | H38: 965 | I38: 965
A39: San Benito | B39: 1 | C39: 118.54 | D39: 118.54 | E39: 118.54 | F39: 1 | G39: 17925 | H39: 17925 | I39: 17925
A40: San Bernardino | B40: 16 | C40: 7.2 | D40: 46.87 | E40: 27.34125 | F40: 12 | G40: 10 | H40: 9033 | I40: 4265.914167
A41: San Diego | B41: 22 | C41: 12.25 | D41: 83.26 | E41: 42.17681818 | F41: 22 | G41: 16.68 | H41: 20508 | I41: 5345.530909
A42: San Joaquin | B42: 6 | C42: 20.24 | D42: 48 | E42: 31.71166667 | F42: 4 | G42: 2.4 | H42: 6265 | I42: 2630.1
A43: San Luis Obispo | B43: 18 | C43: 7.35 | D43: 105.61 | E43: 41.58833333 | F43: 14 | G43: 500 | H43: 12481 | I43: 4689.071429
A44: San Mateo | B44: 11 | C44: 33.5 | D44: 89.6 | E44: 58.71818182 | F44: 10 | G44: 296.12 | H44: 16200 | I44: 5288.982
A45: Santa Barbara | B45: 13 | C45: 6.92 | D45: 78.09 | E45: 45.80615385 | F45: 14 | G45: 34.1 | H45: 11057.27 | I45: 4465.902857
A46: Santa Clara | B46: 4 | C46: 33.34 | D46: 39.66 | E46: 36.3175 | F46: 4 | G46: 477 | H46: 10275 | I46: 6326.175
A47: Santa Cruz | B47: 3 | C47: 29.11 | D47: 58.01 | E47: 46.36333333 | F47: 3 | G47: 3000 | H47: 6137 | I47: 4045.666667
A48: Shasta | B48: 7 | C48: 25.4 | D48: 109.5 | E48: 51.95285714 | F48: 6 | G48: 2500 | H48: 7000 | I48: 4658.2
A49: Sierra | B49: 1 | C49: 67 | D49: 67 | E49: 67
A50: Siskiyou | B50: 5 | C50: 15 | D50: 36.9 | E50: 23.45 | F50: 4 | G50: 500 | H50: 7248.5 | I50: 2347.125
A51: Siskyou
A52: Solano | B52: 4 | C52: 32.71 | D52: 73.92 | E52: 50.81 | F52: 3 | G52: 2675 | H52: 7620 | I52: 5262.666667
A53: Sonoma | B53: 4 | C53: 20.81 | D53: 131.2 | E53: 86.8775 | F53: 5 | G53: 50.07 | H53: 29920 | I53: 10859.414
A54: Stanislaus | B54: 13 | C54: 20.15 | D54: 69.45 | E54: 40.04153846 | F54: 11 | G54: 30.51 | H54: 9043.93 | I54: 3312.927273
A55: Sutter | B55: 2 | C55: 38.39 | D55: 68.8 | E55: 53.595 | F55: 2 | G55: 6322.2 | H55: 9053 | I55: 7687.6
A56: Tehama | B56: 3 | C56: 33.64 | D56: 43 | E56: 39.70333333 | F56: 2 | G56: 4537.94 | H56: 5720 | I56: 5128.97
A57: Trinity | B57: 2 | C57: 16.5 | D57: 22 | E57: 19.25 | F57: 2 | G57: 1776 | H57: 2000 | I57: 1888
A58: Tulare | B58: 18 | C58: 9 | D58: 65.75 | E58: 32.74555556 | F58: 12 | G58: 500 | H58: 6703 | I58: 2334.416667
A59: Tuolumne | B59: 3 | C59: 41.59 | D59: 53.1 | E59: 49.14666667 | F59: 3 | G59: 2141 | H59: 7200 | I59: 5488.666667
A60: Ventura | B60: 6 | C60: 26 | D60: 77 | E60: 42.075 | F60: 5 | G60: 4374 | H60: 16023.82 | I60: 7374.364
A61: Venture
A62: Yolo | B62: 3 | C62: 44.05 | D62: 46.45 | E62: 45.16666667 | F62: 2 | G62: 783 | H62: 6150 | I62: 3466.5
A63: Yuba | B63: 3 | C63: 31 | D63: 47.92 | E63: 38.57333333 | F63: 3 | G63: 7657 | H63: 11619 | I63: 9180.666667
A64: (blank)
A65: Grand Total | B65: 425 | C65: 0.15 | D65: 172 | E65: 39.6272 | F65: 380 | G65: 2.4 | H65: 29920 | I65: 4663.595053

Sheet County (hidden)
A2: Agency: | B2: County: | C2: Single-family residence | D2: Single-family residence | F2: User | G2: Conn
A3: Castro Valley Sanitary District | B3: Alameda | C3: 25.25 | D3: 14261 | F3: =MEDIAN(C3:C13) -> 33.495 | G3: =MEDIAN(D3:D13) -> 5181
A4: Dublin San Ramon Services District | B4: Alameda | C4: 31.08 | D4: 16656
A5: East Bay Dischargers Authority | B5: Alameda
A6: Livermore, City of | B6: Alameda | C6: 39.7 | D6: 5181
A7: Oakland Public Works | B7: Alameda | C7: 34.72 | D7: 782
A8: Oakland, City of | B8: Alameda | C8: 35.76 | D8: 782
A9: Oro Loma Sanitary District | B9: Alameda | C9: 16.67 | D9: 6555
A10: Piedmont, City of | B10: Alameda | C10: 49.58
A11: Pleasanton, City of | B11: Alameda | C11: 37.33 | D11: 500
A12: San Leandro, City - Water Pollution Control Plant | B12: Alameda | C12: 32.27 | D12: 4000
A13: Union Sanitary District | B13: Alameda | C13: 29.75 | D13: 5595.66 | F13: User | G13: Conn
A14: Bear Valley Water District | B14: Alpine | C14: 90.37 | D14: 15740 | F14: =MEDIAN(C14:C15) -> 75.935 | G14: =MEDIAN(D14:D15) -> 15740
A15: Markleeville Public Utility District | B15: Alpine | C15: 61.5 | F15: User | G15: Conn
A16: Amador Regional Sanitation Authority | B16: Amador | F16: =MEDIAN(C16:C20) -> 58.625 | G16: =MEDIAN(D16:D20) -> 6524
A17: Jackson, City | B17: Amador | C17: 29.35 | D17: 2100
A18: Plymouth, City of | B18: Amador | C18: 78.08 | D18: 9582
A19: River Pines Public Utility District | B19: Amador | C19: 57.25 | D19: 7748
A20: Sutter Creek, City of | B20: Amador | C20: 60 | D20: 5300 | F20: User | G20: Conn
A21: Chico, City of | B21: Butte | C21: 22.98 | D21: 2251 | F21: =MEDIAN(C21:C26) -> 21.41 | G21: =MEDIAN(D21:D26) -> 6638
A22: Lake Oroville Area Public Utility District | B22: Butte | C22: 21.41 | D22: 4777
A23: Oroville, City of | B23: Butte | C23: 20.99 | D23: 8432
A24: Richardson Springs Community Service District | B24: Butte
A25: Sewerage Commission Oroville Region | B25: Butte | C25: 8.6 | D25: 6638
A26: Thermalito Water & Sewer District | B26: Butte | C26: 27.35 | D26: 10371.7 | F26: User | G26: Conn
A27: Angels, City of | B27: Calaveras | C27: 71.92 | D27: 9277 | F27: =MEDIAN(C27:C30) -> 63.96 | G27: =MEDIAN(D27:D30) -> 8203.5
A28: Calaveras County Water District | B28: Calaveras | C28: 86.16 | D28: 10950
A29: Mokelumne Hill Sanitary District | B29: Calaveras | C29: 56 | D29: 5788
A30: Valley Springs Public Utility District | B30: Calaveras | C30: 49.5 | D30: 7130 | F30: User | G30: Conn
A31: Arbuckle Public Utility District | B31: Colusa | C31: 17.5 | D31: 2000 | F31: =MEDIAN(C31:C33) -> 74.27 | G31: =MEDIAN(D31:D33) -> 2000
A32: Colusa, City of | B32: Colusa | C32: 77.75 | D32: 25
A33: Williams, City of | B33: Colusa | C33: 74.27 | D33: 8851.87 | F33: User | G33: Conn
A34: Brentwood, City of | B34: Contra Costa | C34: 14.62 | D34: 4469.56 | F34: =MEDIAN(C34:C46) -> 36.58 | G34: =MEDIAN(D34:D46) -> 5000
A35: Central Contra Costa Sanitary District | B35: Contra Costa | C35: 36.58 | D35: 5995
A36: Concord, City of | B36: Contra Costa | C36: 33.5 | D36: 5043
A37: Crockett Community Services District | B37: Contra Costa | C37: 147 | D37: 5500
A38: Crockett Community Services District, Crockett Sanitary Department | B38: Contra Costa | C38: 58.17 | D38: 2425
A39: Delta Diablo | B39: Contra Costa | C39: 24.25 | D39: 4444
A40: Ironhouse Sanitary District | B40: Contra Costa | C40: 53.08 | D40: 6957.5
A41: Mt. View Sanitary District | B41: Contra Costa | C41: 43 | D41: 9182.48
A42: Pittsburg, City of | B42: Contra Costa | C42: 15.79 | D42: 2200
A43: Rodeo Sanitary District | B43: Contra Costa | C43: 72.91 | D43: 5000
A44: Stege Sanitary District | B44: Contra Costa | C44: 18.33 | D44: 1790
A45: Town of Discovery Bay | B45: Contra Costa | C45: 59.57 | D45: 12030 | F45: User | G45: Conn
A46: West County Wastewater District | B46: Contra Costa | C46: 31.75 | D46: 2992.8 | F46: =MEDIAN(C47) -> 72.21 | G46: =MEDIAN(D47) -> 9682
A47: Crescent City, City of | B47: Del Norte | C47: 72.21 | D47: 9682 | F47: User | G47: Conn
A48: El Dorado Irrigation District- DC | B48: El Dorado | C48: 70.88 | D48: 12862 | F48: =MEDIAN(C48:C51) -> 70.88 | G48: =MEDIAN(D48:D51) -> 12862
A49: El Dorado Irrigation District- EDH | B49: El Dorado | C49: 70.88 | D49: 12862
A50: El Dorado Irrigation District-CH | B50: El Dorado | C50: 70.88 | D50: 12862
A51: South Tahoe Public Utility District | B51: El Dorado | F51: User | G51: Conn
A52: Caruthers Community Services District | B52: Fresno | C52: 35 | D52: 5700 | F52: =MEDIAN(C52:C63) -> 32.555 | G52: =MEDIAN(D52:D63) -> 4845.5
A53: Clovis, City of | B53: Fresno | C53: 28.2 | D53: 9002
A54: Coalinga, City of | B54: Fresno | C54: 15.68 | D54: 125
A55: Firebaugh, City of | B55: Fresno | C55: 49.95
A56: Kerman, City of | B56: Fresno | C56: 30.11 | D56: 7.7
A57: Laton Community Service District | B57: Fresno
A58: Malaga County Water District | B58: Fresno | C58: 41.32
A59: Pinedale Public Utility District | B59: Fresno | C59: 25.81
A60: Reedley, City of - Wastewater Treatment Plant | B60: Fresno
A61: Riverdale Public Utility District | B61: Fresno | C61: 39 | D61: 9146
A62: San Joaquin, City of | B62: Fresno | C62: 37.68
A63: Selma-Kingsburg-Fowler County Sanitation District | B63: Fresno | C63: 26.28 | D63: 3991 | F63: User | G63: Conn
A64: Hamilton City Community Services District | B64: Glenn | C64: 31.93 | D64: 2144 | F64: =MEDIAN(C64:C65) -> 24.19 | G64: =MEDIAN(D64:D65) -> 2073.975
A65: Orland, City of | B65: Glenn | C65: 16.45 | D65: 2003.95 | F65: User | G65: Conn
A66: Arcata, City of | B66: Humboldt | C66: 52.31 | D66: 6360 | F66: =MEDIAN(C66:C72) -> 52.31 | G66: =MEDIAN(D66:D72) -> 3000
A67: Garberville Sanitary District | B67: Humboldt | C67: 78.72
A68: Humboldt Community Services District | B68: Humboldt | C68: 50 | D68: 3000
A69: Loleta Community Services District | B69: Humboldt | C69: 47.42 | D69: 2500
A70: McKinleyville Community Service District | B70: Humboldt | C70: 27.64
A71: Palmer Creek Community Services District | B71: Humboldt | C71: 61.8 | D71: 3000 | F71: User | G71: Conn
A72: Rio Dell, City of | B72: Humboldt | C72: 68.5 | D72: 5.19 | F72: =MEDIAN(C73:C78) -> 42.45 | G72: =MEDIAN(D73:D78) -> 1000
A73: El Centro, City of | B73: Imperial | C73: 49.64
A74: Holtville, City of | B74: Imperial | D74: 1000
A75: Imperial, City of | B75: Imperial | C75: 48.4 | D75: 1844.82
A76: Nilland Sanitary District | B76: Imperial | C76: 37.74
A77: Seeley County Water District | B77: Imperial | C77: 42.45
A78: Winterhaven County Water District | B78: Imperial | C78: 31.84 | D78: 30 | F78: User | G78: Conn
A79: Bishop, City of | B79: Inyo | C79: 30 | D79: 2000 | F79: =MEDIAN(C79:C82) -> 20.58 | G79: =MEDIAN(D79:D82) -> 1812.5
A80: East Independence Sanitary District | B80: Inyo | C80: 22.16 | D80: 1625
A81: Eastern Sierra Community Service District | B81: Inyo | C81: 19 | D81: 2048
A82: Lone Pine Community Services District | B82: Inyo | C82: 15 | D82: 200 | F82: User | G82: Conn
A83: Boron Community Services District | B83: Kern | C83: 17 | D83: 1500 | F83: =MEDIAN(C83:C97) -> 18.33 | G83: =MEDIAN(D83:D97) -> 2250
A84: East Niles Community Services District | B84: Kern | C84: 13.88 | D84: 5310
A85: Ford City-Taft Heights | B85: Kern | C85: 24 | D85: 715
A86: Kern County CSA-11.4 | B86: Kern | C86: 18.33 | D86: 715
A87: Kern County CSA-71.1 | B87: Kern | C87: 18.02 | D87: 4000
A88: Kern County CSA-71.2 | B88: Kern | C88: 18.02 | D88: 4000
A89: Kern County CSA-71.3 | B89: Kern | C89: 22.98 | D89: 5127
A90: Kern Sanitation Authority | B90: Kern | C90: 13 | D90: 715
A91: Lamont Public Utility District | B91: Kern | C91: 15.4 | D91: 6322.53
A92: Maricopa, City of | B92: Kern | C92: 28.57 | D92: 650
A93: McFarland Wastewater Treatment Plant, City of | B93: Kern | C93: 26.87
A94: Mojave Public Utility District | B94: Kern | C94: 12.42 | D94: 3000
A95: Ridgecrest, City of | B95: Kern | C95: 21.22 | D95: 3500
A96: Stallion Springs Community Service District | B96: Kern | C96: 39.74 | D96: 1000
A97: Taft, City of | B97: Kern | C97: 25.32 | D97: 715 | F97: User | G97: Conn
A98: Hanford, City of- Wastewater Treatment Facility | B98: Kings | C98: 22.9 | D98: 1590.56 | F98: =MEDIAN(C98:C100) -> 24 | G98: =MEDIAN(D98:D100) -> 1150
A99: Kettleman City Community Services District | B99: Kings | C99: 24 | D99: 1150
A100: Lemoore, City of | B100: Kings | C100: 27.2 | D100: 726 | F100: User | G100: Conn
A101: Clearlake Oaks County Water District | B101: Lake | C101: 45.93 | D101: 6000 | F101: =MEDIAN(C101:C106) -> 35.98 | G101: =MEDIAN(D101:D106) -> 7124.595
A102: Kelseyville County Waterworks District #3 | B102: Lake | C102: 16.74 | D102: 4775.97
A103: LACOSAN NW Regional Sewer System | B103: Lake | C103: 26.03 | D103: 9437.77
A104: LACOSAN SE Regional | B104: Lake | C104: 53.95 | D104: 10344.67
A105: Middletown Sewer District | B105: Lake | C105: 16.3 | D105: 6649.19
A106: Nidden Valley Lake Community Services District | B106: Lake | C106: 50.18 | D106: 7600 | F106: User | G106: Conn
A107: Lassen County Waterworks District 1 | B107: Lassen | F107: =MEDIAN(C107:C111) -> 34.82 | G107: =MEDIAN(D107:D111) -> 1612
A108: Leavitt Lake Community Services District | B108: Lassen | C108: 42.01 | D108: 42.01
A109: Susanville Sanitary District | B109: Lassen | D109: 1612
A110: West Patton Village Community Service District | B110: Lassen | C110: 30
A111: Westwood Community Services District | B111: Lassen | C111: 34.82 | D111: 1880 | F111: User | G111: Conn
A112: Hawaiian Gardens, City of | B112: Los Angeles | F112: =MEDIAN(C112:C166) -> 12.79 | G112: =MEDIAN(D112:D166) -> 4008.5
A113: Arcadia, City of | B113: Los Angeles | D113: 8.21
A114: Baldwin Park, City of | B114: Los Angeles
A115: Bell, City of | B115: Los Angeles | C115: 33.12
A116: Burbank, City of | B116: Los Angeles | C116: 23.36 | D116: 814
A117: Cerritos, City of | B117: Los Angeles | C117: 0.15 | D117: 15
A118: Consolidated Sewer Maintenance District | B118: Los Angeles | C118: 4.21
A119: County Sanitation District No. 14 of Los Angeles County | B119: Los Angeles | C119: 41.33 | D119: 6190
A120: County Sanitation District No. 16 of Los Angeles County | B120: Los Angeles | C120: 11.83 | D120: 4220
A121: County Sanitation District No. 17 of Los Angeles County | B121: Los Angeles | C121: 11.92 | D121: 4220
A122: County Sanitation District No. 18 of Los Angeles County | B122: Los Angeles | C122: 13 | D122: 4590
A123: County Sanitation District No. 19 of Los Angeles County | B123: Los Angeles | C123: 12.92 | D123: 4440
A124: County Sanitation District No. 2 of Los Angeles | B124: Los Angeles | C124: 12.92 | D124: 4560
A125: County Sanitation District No. 20 of Los Angeles County | B125: Los Angeles | C125: 44.58 | D125: 6190
A126: County Sanitation District No. 4 of Los Angeles County | B126: Los Angeles | C126: 12.5 | D126: 1710
A127: County Sanitation District No. 5 of Los Angeles County | B127: Los Angeles | C127: 11.75 | D127: 4610
A128: County Sanitation District No. 8 of Los Angeles County | B128: Los Angeles | C128: 12.83 | D128: 4530
A129: County Sanitation District No. 9 of Los Angeles County | B129: Los Angeles | C129: 6.5 | D129: 1400
A130: County Sanitation District No.1 of Los Angeles County | B130: Los Angeles | C130: 13.58 | D130: 4520
A131: County Sanitation District No.3 of Los Angeles County | B131: Los Angeles | C131: 13.08 | D131: 4320
A132: Crescenta Valley Water District | B132: Los Angeles | C132: 33.75 | D132: 2270
A133: Culver City | B133: Los Angeles | C133: 29.42 | D133: 2247
A134: El Monte Water Department, City of | B134: Los Angeles | C134: 8.49 | D134: 48.5
A135: Garden, City of | B135: Los Angeles | D135: 140
A136: Gardena, City of | B136: Los Angeles
A137: Golden Valley Municipal Water District | B137: Los Angeles | C137: 145 | D137: 4700
A138: Hawthorne, City of | B138: Los Angeles | C138: 5 | D138: 240
A139: Inglewood, City of | B139: Los Angeles | C139: 7.5
A140: Irwindale, City of | B140: Los Angeles | D140: 4330
A141: La Verne, City of | B141: Los Angeles
A142: Lancaster, City of | B142: Los Angeles | C142: 6.5 | D142: 330.43
A143: Los Angeles, City of (Sanitation) | B143: Los Angeles | C143: 32.44 | D143: 950
A144: Montebello, City of | B144: Los Angeles
A145: Palmdale, City of | B145: Los Angeles | C145: 8.64 | D145: 2510
A146: Pasadena, City of | B146: Los Angeles
A147: Pico Rivera, City of | B147: Los Angeles | C147: 50.5
A148: Pomona, City of | B148: Los Angeles | D148: 2.96
A149: Redondo Beach, City of | B149: Los Angeles | C149: 16.25
A150: San Gabriel, City of | B150: Los Angeles
A151: San Marino, City of | B151: Los Angeles
A152: Sanitation District No. 15 of Los Angeles County | B152: Los Angeles | C152: 11.75 | D152: 4210
A153: Sierra Madre, City of | B153: Los Angeles | C153: 29.22
A154: Torrance, City of | B154: Los Angeles | C154: 4.68
A155: Vernon, City of | B155: Los Angeles
A156: West Hollywood, City of | B156: Los Angeles | C156: 3.26 | D156: 75
A157: Whittier, City of | B157: Los Angeles | C157: 14
A158: County Sanitation District No. 21 of Los Angeles County | B158: Los Angeles | C158: 12.75 | D158: 4320
A159: County Sanitation District No. 22 of Los Angeles County | B159: Los Angeles | C159: 12.67 | D159: 4450
A160: County Sanitation District No. 23 of Los Angeles County | B160: Los Angeles | C160: 10 | D160: 3800
A161: County Sanitation District No. 27 of Los Angeles County | B161: Los Angeles | D161: 1460
A162: County Sanitation District No. 28 of Los Angeles County | B162: Los Angeles | C162: 11 | D162: 3807
A163: County Sanitation District No. 29 of Los Angeles County | B163: Los Angeles | C163: 28.31 | D163: 4530
A164: Long Beach, City of - Water Department | B164: Los Angeles | D164: 97.31
A165: Santa Clarita Valley Sanitation District of Los Angeles County | B165: Los Angeles | C165: 22.25 | D165: 5500
A166: South Bay Cities Sanitation District of Los Angeles County | B166: Los Angeles | C166: 10.33 | D166: 4610 | F166: User | G166: Conn
A167: Chowchilla, City of | B167: Madera | C167: 20.8 | D167: 697.7 | F167: =MEDIAN(C167:C168) -> 23.655 | G167: =MEDIAN(D167:D168) -> 697.7
A168: Madera, City of | B168: Madera | C168: 26.51 | F168: User | G168: Conn
A169: Almonte Sanitary District | B169: Marin | C169: 33.33 | D169: 4000 | F169: =MEDIAN(C169:C185) -> 50.92 | G169: =MEDIAN(D169:D185) -> 5526.75
A170: Alto Sanitary District | B170: Marin | C170: 41.67 | D170: 4000
A171: Bolinas Community Public Utility District | B171: Marin | C171: 81.33 | D171: 19056.3
A172: Central Marin Sanitation Agency | B172: Marin | D172: 5526.75
A173: Homestead Valley Sanitary District | B173: Marin | C173: 47.92 | D173: 4000
A174: Las Gallinas Sanitary District | B174: Marin | C174: 53.92 | D174: 6200
A175: Marin County Sanitary District No.2 | B175: Marin | C175: 41.67 | D175: 2103
A176: Mill Valley, City of | B176: Marin | C176: 67.43 | D176: 5000
A177: North Marin Water District | B177: Marin | C177: 68 | D177: 15200
A178: Novato Sanitary District | B178: Marin | C178: 44.42 | D178: 9870
A179: Richardson Bay Sanitary District | B179: Marin | C179: 20.5 | D179: 9220
A180: Sanitary District No. 5 of Marin County | B180: Marin | D180: 314
A181: Sausalito, City of | B181: Marin | C181: 41.11
A182: Sausalito-Marin City Sanitary District | B182: Marin | C182: 64.17 | D182: 6130
A183: Sewerage Agency of Southern Marin | B183: Marin
A184: Tamalpais Community Services District | B184: Marin | C184: 65.62 | D184: 4600
A185: Tomales Village Community Service District | B185: Marin | C185: 63 | D185: 10000 | F185: User | G185: Conn
A186: Mariposa Public Utility District | B186: Mariposa | C186: 29 | D186: 1050 | F186: =MEDIAN(C186) -> 29 | G186: =MEDIAN(D186) -> 1050
A187: Calpella County Water District | B187: Mendocino | C187: 35 | D187: 1400 | F187: User | G187: Conn
A188: Covelo Community Service District | B188: Mendocino | C188: 50 | D188: 8500 | F188: =MEDIAN(C187:C194) -> 54.5 | G188: =MEDIAN(D187:D194) -> 8500
A189: Fort Bragg, City of | B189: Mendocino | C189: 36.88 | D189: 3375
A190: Gualala Community Service District | B190: Mendocino | C190: 59 | D190: 15881
A191: Hopland Public Utiltiy District | B191: Mendocino | C191: 62.4 | D191: 6866
A192: Mendocino City Community Service District | B192: Mendocino | C192: 46.85 | D192: 9200
A193: Mendocino County Waterworks D#2 | B193: Mendocino | C193: 144.37
A194: Ukiah, City of | B194: Mendocino | C194: 82.04 | D194: 12002 | F194: User | G194: Conn
A195: Atwater, City of | B195: Merced | F195: =MEDIAN(C195:C205) -> 31.97 | G195: =MEDIAN(D195:D205) -> 2295
A196: Dos Palos, City of | B196: Merced | C196: 30.94 | D196: 1450
A197: Franklin County Water District | B197: Merced | C197: 33
A198: LeGrand Communtiy Service District | B198: Merced | D198: 2190
A199: Livingston, City of | B199: Merced | C199: 42.8 | D199: 1892
A200: Los Banos, City of | B200: Merced | C200: 22.69 | D200: 5420
A201: Merced, City of | B201: Merced | C201: 40.29 | D201: 4769
... 289 more rows

Sheet Raw Survey Data (By Agency)
A1: Agency: (Disclaimer: Data presented are as reported by the agency. Non-reported data is shown as blank.) | B1: Agency Information | E1: Service Area | G1: Single Family Residence | I1: Multiple Family | K1: Mobile Homes | M1: Industrial | O1: Commercial | Q1: Institutional | S1: Number of Sewer Accounts | Y1: Wastewater User Fee (per month) | AE1: Connection Fees (flat fee) | AK1: Source of Revenue (%) | AQ1: Is loading considered when setting rates? If yes, specify the type. | AV1: Wastewater debt service included in: | AZ1: Wastewater Budgets | BC1: Agency Role/Responsibilities: | BN1: Please list the name(s) and location(s) of the treatment facilities your agency is responsible for: | BX1: The treatment facilities include the following processes or components: | CB1: The treatment facilities include the following Primary processes or components: | CG1: The treatment facilities include the following Secondary processes or components: | CJ1: The treatment facilities include the following Disinfection processes or components: | CN1: The treatment facilities include the following Tertiary processes or components: | CP1: The treatment facilities include the following Sludge processes or components: | CU1: Other Processes not mentioned above include (please explain): | CV1: Does treatment facility process include Nutrient Removal? | CW1: Recycled Water | CY1: Is your agency responsible for the wastewater discharge? | DA1: Discharge is regulated under: | DC1: Capital Improvement Plan | DE1: Comments
B2: City/Town: | C2: ZIP: | D2: County: | E2: Approx. Population | F2: Median Household Income | G2: Billing Frequency | H2: Rate Structure | I2: Billing Frequency | J2: Rate Structure | K2: Billing Frequency | L2: Rate Structure | M2: Billing Frequency | N2: Rate Structure | O2: Billing Frequency | P2: Rate Structure | Q2: Billing Frequency | R2: Rate Structure | S2: Single-family residence | T2: Multiple family | U2: Mobile homes | V2: Industrial | W2: Commercial | X2: Institutional | Y2: Single-family residence | Z2: Multiple family (per unit) | AA2: Mobile homes (per unit) | AB2: Industrial | AC2: Commercial | AD2: Institutional | AE2: Single-family residence | AF2: Multiple family (per unit) | AG2: Mobile homes (per unit) | AH2: Industrial | AI2: Commercial | AJ2: Institutional | AK2: Sewer service charge % | AL2: Sewer connection fees % | AM2: Industrial waste fees % | AN2: Ad valorem (property) taxes % | AO2: Interest % | AP2: Other, please describe % | AQ2: Response (Yes/No) | AR2: Biochemical Oxygen Demand (BOD) | AS2: Chemical Oxygen Demand (COD) | AT2: Suspended Solids (SS) | AU2: Other (please specify) | AV2: The wastewater user fee | AW2: Other wastewater-related charges to the customer (i.e., property taxes) | AX2: Neither of the above, the agency has no debt | AY2: Are connection fees used for anything other than capital expansion (or replacement)? | AZ2: a. Agency's FY 2012-13 wastewater operation and maintenance budget is: $ | BA2: b. Agency's FY 2012-13 wastewater debt service budget is: $ | BB2: c. Agency's FY 2012-13 wastewater capital expenditure budget is: $ | BC2: Collection | BD2: Interceptor | BE2: Treatment | BF2: Disposal | BG2: Pretreatment program? | BH2: Current average dry weather flow (ADWF): | BI2: Current design (or contractual) flow capacity: | BJ2: Is your agency responsible for onsite septic system maintenance? | BK2: Is onsite septic system maintenance your agency's only responsibility? | BL2: Is your agency responsible for treatment? | BM2: If no, please list Agency: | BN2: 1 | BO2: 2 | BP2: 3 | BQ2: 4 | BR2: 5 | BS2: 6 | BT2: 7 | BU2: 8 | BV2: 9 | BW2: 10 | BX2: Community Septic System | BY2: Septic Tank Effluent Pump (STEP) System | BZ2: Ponds and/or Lagoon System | CA2: Extended Aeration | CB2: Comminutor/Grinder | CC2: Screening | CD2: Scum and/or Grit Removal | CE2: Sedimentation Tank | CF2: Other (please explain): | CG2: Suspended Growth/Activated Sludge (i.e., Sequencing Batch Reactor, Membrane Bioreactor, etc.) | CH2: Attached Growth (i.e., Trickling Filter, Biotower, Rotating Biological Contactor, etc.) | CI2: Other (please explain): | CJ2: Chlorine | CK2: Ozone | CL2: Ultraviolet Light | CM2: Other (please explain): | CN2: Filtration | CO2: Provide Filtration type: | CP2: Anaerobic Digestion | CQ2: Dewatering | CR2: Thickening | CS2: Compost | CT2: Disposal/Landfill | CU2: Open-Ended Response | CV2: Response (Yes/No) | CW2: Amount of recycled water used (AFY): | CX2: Volume of potable water usage offset (AFY): | CY2: Response (Yes/No) | CZ2: If, No. List Agency: | DA2: Waste Discharge Requirements (WDRs) Order No. | DB2: National Pollutant Discharge Elimination System (NPDES) Permit NPDES No. | DC2: Does the agency have an electronic improvement plan available? | DD2: If Yes, please provide website address | DE2: Open-Ended Response
A3: Adin Community Services District | B3: Adin | C3: 96006 | D3: Modoc | E3: 117 | F3: 20000 | G3: Monthly | H3: Flat Rate | I3: Monthly | J3: Flat Rate | K3: Monthly | L3: Flat Rate | M3: Monthly | N3: Flat Rate | O3: Monthly | P3: Flat Rate | Q3: Monthly | R3: Flat Rate | S3: 123 | W3: 19 | Y3: 21 | AC3: 32 | AE3: 1500 | AI3: 1500 | AK3: 99.5 | AO3: 0.5 | AQ3: No | AX3: x | AY3: No | AZ3: 40000 | BC3: x | BG3: No | BH3: 0.02 | BI3: 0.05 | BJ3: No | BK3: No | DC3: No
A4: Almonte Sanitary District | B4: Mill Valley | C4: 94942 | D4: Marin | E4: 1400 | F4: 90535 | G4: Annual | H4: Flat Rate | I4: Annual | J4: Flat Rate | O4: Annual | P4: Variable Based on Water Use. | Q4: Annual | R4: Variable Based on Water Use. | S4: 547 | T4: 200 | W4: 69.3 | X4: 19 | Y4: 33.33 | Z4: 33.33 per Equivalent Dwelling Unit | AB4: 33.33 per Equivalent Dwelling Unit | AC4: 33.33 per Equivalent Dwelling Unit | AE4: 4000 | AF4: 4000 | AI4: 4000 | AJ4: 4000 | AK4: 75.5 | AL4: <1.0 | AM4: 0 | AN4: 23.2 | AO4: <1.0 | AP4: 1.25 from franchise fee for solid waste contract | AQ4: Yes | AR4: x | AT4: x | AU4: Only for commercial accounts (eg. restraurants) | AV4: x | AY4: N/A | AZ4: 444000 | BA4: 12000 | BB4: 120000 | BC4: x | BG4: No | BH4: 0.13 | BI4: 0.187 | BJ4: No | BN4: N/A | DC4: No
A5: Alpine Springs County Water District | B5: Alpine Meadows | C5: 96146 | D5: Placer | E5: 650 | G5: Annual | H5: Flat Rate | I5: Annual | J5: Flat Rate | O5: Annual | P5: Flat Rate | S5: 495 | T5: 147 | W5: 8 | Y5: 27.58 | Z5: 27.41 | AC5: 203.1 | AE5: 5000 | AF5: 5000 + Sewer Capacity Based on meter size | AG5: 5000 + Sewer Capacity Based on meter size | AH5: 5000 + Sewer Capacity Based on meter size | AI5: 5000 + Sewer Capacity Based on meter size | AJ5: 5000 + Sewer Capacity Based on meter size | AK5: 100 | AQ5: No | AX5: x | AY5: No | BA5: 0 | BB5: 310000 | BC5: x | BG5: Yes | BJ5: No | BL5: No | BM5: TTSA - Truckee Tahoe Sanitation Agency | DC5: No
A6: Alto Sanitary District | B6: Mill Valley | C6: 94942 | D6: Marin | E6: 1200 | G6: Annual | H6: Flat Rate | I6: Annual | J6: Flat Rate | K6: Annual | L6: Flat Rate | M6: Annual | N6: Flat Rate | O6: Annual | P6: Variable Based on Water Use. | Q6: Annual | R6: Flat Rate | S6: 235 | T6: 281 | U6: 0 | V6: 0 | W6: 21.6 | Y6: 41.67 | Z6: 41.67 | AC6: 41.67 | AE6: 4000 | AF6: 4000 | AI6: 4000 | AK6: 80 | AN6: 16 | AP6: 4, Franchise Fee | AQ6: No | AX6: x | AY6: N/A | AZ6: 285000 | BC6: x | BG6: No | BH6: 0.085 | BJ6: No | BL6: No | BM6: SASM (Sewerage Agency of Southern Marin) | DC6: No
A7: Alturas, City of | B7: Alturas | C7: 96101 | D7: Modoc | E7: 2754 | F7: 34146 | G7: Monthly | H7: Flat Rate | I7: Monthly | J7: Flat Rate | K7: Monthly | L7: Flat Rate | M7: Monthly | N7: Flat Rate/Variable Based | O7: Monthly | P7: Flat Rate/Variable Based | Q7: Monthly | R7: Flat Rate/Variable Based | S7: 1030 | T7: 33 | W7: 171 | Y7: 30.22 | Z7: 28.9 | AC7: 24.07 | AE7: 620 | AF7: 620 | AG7: 620 | AH7: 1320 | AI7: 1320 | AJ7: 1320 | AK7: 99.84 | AL7: 0.16 | AQ7: No | AV7: x | AY7: No | AZ7: 562737 | BA7: 95844 | BB7: 544 | BC7: x | BE7: x | BF7: x | BG7: No | BH7: 0.25 | BI7: 0.5 | BJ7: No | BK7: No | BN7: City of Alturas Waste Water Treatment Plant 20099 CO. RD. 54 ALTURAS, CA 96101 | CB7: x | CC7: x | CD7: x | CE7: x | CH7: x | CJ7: x | CP7: x | CQ7: x | CT7: x | CV7: No | CY7: Yes | DA7: R5-2014-0033 | DB7: CA0078921 | DC7: No
A8: Amador Regional Sanitation Authority | B8: Sutter Creek | C8: 95685 | D8: Amador | E8: N/A | F8: N/A | Q8: Quarterly | R8: Flat Rate/Variable Based | X8: 3 | AD8: 32700 | AJ8: None established / Irrigation Only | AP8: 100% Irrigation | AQ8: No | AX8: x | AY8: N/A | AZ8: 392079 | BA8: 0 | BB8: 36000 | BF8: x | BG8: No | BH8: 200000 | BI8: 0.58 | BJ8: No | DC8: No | DE8: Amador Regional Sanitation Authority receives secondary treated wastewater from the City of Sutter Creek for irrigation purposes only.
A9: Anaheim, City of | B9: Anaheim | C9: 92805 | D9: Orange | E9: 345000 | F9: 59165
A10: Anderson, City of | B10: Anderson | C10: 96007 | D10: Shasta | E10: 9500 | F10: 34862 | G10: Annual | H10: Flat Rate/Variable Based | I10: Annual | J10: Flat Rate/Variable Based | K10: Annual | L10: Flat Rate/Variable Based | M10: Annual | N10: Flat Rate/Variable Based | O10: Annual | P10: Flat Rate/Variable Based | Q10: Annual | R10: Flat Rate/Variable Based | S10: 2667 | T10: 1457 | U10: 2 | V10: 2 | W10: 384 | X10: 8 | Y10: 27.16 | Z10: 26.67 | AA10: 27.16 | AB10: 41.67 | AC10: 40.5 | AD10: 40.5 | AE10: 3490 | AF10: 2542 | AG10: 2542 | AH10: 8420 | AI10: 8420 | AJ10: 8420 | AK10: 99 | AL10: 1 | AQ10: No | AV10: x | AY10: No | AZ10: 1439947 | BB10: 155903 | BC10: x | BD10: x | BE10: x | BF10: x | BG10: No | BH10: 1.1 | BI10: 2 | BJ10: No | BK10: No | BN10: Anderson Water Pollution Control Plant 3701 Rupert Rd. Anderson, CA. 96007 | CC10: x | CD10: x | CG10: x | CJ10: x | CN10: Filtration | CO10: Dual media pressure filters | CQ10: x | CU10: Aerobic digestion | CV10: No | CW10: 0 | CX10: 0 | CY10: Yes | DB10: CA0077704 | DC10: No | DE10: City does have a Master Sewer Plan
A11: Angels, City of | B11: Angels Camp | C11: 95222 | D11: Calaveras | E11: 3400 | F11: 52088 | G11: Monthly | H11: Flat Rate | I11: Monthly | J11: Flat Rate | K11: Monthly | L11: Flat Rate | M11: Monthly | N11: Flat Rate | O11: Monthly | P11: Flat Rate | Q11: Monthly | R11: Flat Rate | S11: 1432 | T11: 25 | U11: 3 | V11: 0 | W11: 150 | X11: 38 | Y11: 71.92 | Z11: 71.92 | AA11: 71.92 | AB11: 90.95 | AC11: 90.95 | AD11: 90.95 | AE11: 9277 | AF11: 6958 | AG11: 8697 | AH11: 6958 | AI11: 6958 | AJ11: 6958 | AK11: 97 | AL11: 2 | AP11: 1 | AQ11: No | AV11: x | AY11: No | AZ11: 2165024 | BA11: 558778 | BB11: 349308 | BC11: x | BE11: x | BF11: x | BG11: No | BH11: 0.6 | BI11: 1.9 | BJ11: No | BL11: Yes | BN11: City of Angels Treatment Plant, 3000 Centennial Rd, Angels Camp, CA 95222 | CC11: x | CD11: x | CG11: x | CL11: x | CN11: Filtration | CO11: sand | CQ11: x | CT11: x | CU11: belt filter press | CV11: No | CW11: 422.6 | CX11: 0 | CY11: Yes | DA11: 98-110, 98-098, 2013-0058-Exec, 2006-0003-DWQ | DC11: No | DE11: Total effluent is applied to sprayfields and golf course. Golf course may or may not take all the effluent, but what effluent they take is offset to the taking of creek water. Creek water is not potable.
A12: Arbuckle Public Utility District | B12: Arbuckle | C12: 95912 | D12: Colusa | E12: 2400 | F12: 42000 | G12: Monthly | H12: Flat Rate | I12: Monthly | J12: Flat Rate | K12: Monthly | L12: Flat Rate | M12: Monthly | N12: Variable Based on Water Use. | O12: Monthly | P12: Variable Based on Water Use. | Q12: Bimonthly | R12: Flat Rate | S12: 740 | T12: 110 | U12: 18 | V12: 0 | W12: 22 | X12: 2 | Y12: 17.5 | Z12: 17.5 | AA12: 17.5 | AB12: Varies | AC12: 17.5 | AD12: 220 | AE12: 2000 | AF12: 2000 | AG12: 2000 | AH12: 2000 | AI12: 2000 | AJ12: 2000 | AK12: 80 | AL12: 5 | AN12: 10 | AO12: 5 | AQ12: No | AX12: x | AY12: No | AZ12: 150000 | BA12: 0 | BB12: 15000 | BC12: x | BD12: x | BE12: x | BF12: x | BG12: No | BH12: 0.25 | BI12: 0.5 | BJ12: No | BN12: Arbuckle Wastewater Plant, Bailey Road & Salt Creek, Arbuckle CA. 95912 | BZ12: x | CE12: x | CF12: Digester | CP12: x | CT12: x | CV12: No | CY12: Yes | DA12: R5-93-208 | DC12: No
A13: Arcadia, City of | B13: Arcadia | C13: 91006 | D13: Los Angeles | E13: 57500 | F13: 77342 | G13: Bimonthly | H13: Flat Rate | I13: Bimonthly | J13: Flat Rate | O13: Bimonthly | P13: Flat Rate/Variable Based | S13: 11399 | T13: 1112 | W13: 736 | Y13: 0 | Z13: 0 | AC13: 0 | AE13: 8.21 | AF13: 8.21 | AI13: $25.16 plus .13/CF | AL13: 100 | AQ13: No | AX13: x | AY13: No | AZ13: 361300 | BA13: 0 | BB13: 140000 | BC13: x | BG13: No | BJ13: No | DC13: Yes | DD13: www.ci.arcadia.ca.us | DE13: Sewer Master Plan to be updated by June 30, 2015.
A14: Arcata, City of | B14: Arcata | C14: 95521 | D14: Humboldt | E14: 17000 | F14: 32097 | G14: Monthly | H14: Flat Rate/Variable Based | I14: Monthly | J14: Flat Rate/Variable Based | M14: Monthly | N14: Flat Rate/Variable Based | O14: Monthly | P14: Flat Rate/Variable Based | Q14: Monthly | R14: Flat Rate/Variable Based | S14: 4416 | T14: 573 | V14: 66 | W14: 563 | X14: 20 | Y14: 52.31 | Z14: 52.35 | AB14: 45.45 | AC14: 53.28 | AD14: 3000 | AE14: 6360 | AF14: 3390/10 units | AG14: 6360 | AH14: 9420 | AI14: 9420 | AJ14: 9420 | AK14: 89 | AL14: 10 | AM14: <1 | AQ14: Yes | AR14: x | AT14: x | AV14: x | AY14: N/A | AZ14: 3324000 | BA14: 94000 | BB14: 527000 | BC14: x | BE14: x | BF14: x | BG14: Yes | BH14: 1.061 | BI14: 2.3 | BJ14: No | BN14: Arcata Wastewater Treatment Plant, 600 South G Street, Arcata, CA | BZ14: x | CC14: x | CD14: x | CE14: x | CI14: oxidation ponds, treatment marshes, treatment wetlands | CP14: x | CS14: x | CY14: Yes | DA14: R1-2012-0031 | DB14: CA0022713 | DC14: Yes | DD14: http://arcata.granicus.com/MetaViewer.php?view_id=6&clip_id=788&meta_id=47112
A15: Arrowbear Park County Water District | B15: Arrowbea Lake | C15: 92382 | D15: San Bernardino | E15: 1396 | F15: 54814 | G15: Monthly | H15: Flat Rate | I15: Monthly | J15: Flat Rate | K15: Monthly | L15: Flat Rate | M15: Monthly | N15: Flat Rate/Variable Based | O15: Monthly | P15: Flat Rate/Variable Based | Q15: Monthly | R15: Flat Rate/Variable Based | S15: 954 | W15: 6 | Y15: 29 | Z15: 29 | AA15: 29 | AB15: 87 | AC15: 87 | AD15: 87 | AE15: 0 | AF15: 0 | AG15: 0 | AH15: 0 | AI15: 0 | AJ15: 0 | AK15: 100 | AL15: 0 | AM15: 0 | AN15: 0 | AO15: 0 | AP15: 0 | AQ15: No | AV15: x | AY15: No | AZ15: 391005 | BA15: 34560 | BB15: 3400 | BC15: x | BG15: No | BH15: 0.056 | BI15: 0.58 | BJ15: No | BK15: No | CY15: No | CZ15: Running Springs Water District | DC15: No
A16: Atascadero, City of | B16: Atascadero | C16: 93422 | D16: San Luis Obispo | E16: 15000 | F16: 66603 | G16: Annual | H16: Flat Rate | I16: Annual | J16: Flat Rate | K16: Annual | L16: Flat Rate | M16: Annual | N16: Flat Rate | O16: Annual | P16: Flat Rate | Q16: Annual | R16: Flat Rate | S16: 5116 | T16: 5116 | U16: 5116 | V16: 5116 | W16: 5116 | X16: 5116 | Y16: 20.18 | Z16: 15.13 | AA16: 12.11 | AE16: 1789 | AF16: 1656 | AG16: 1401 | AH16: 637 | AI16: 637 | AJ16: 637 | AK16: 75 | AL16: 18 | AO16: 4 | AP16: 4 | AQ16: No | AX16: x | AY16: Yes | AZ16: 1415310 | BB16: 653000 | BC16: x | BE16: x | BG16: Yes | BH16: 1.4 | BI16: 2.39 | BJ16: No | BN16: Water Reclamation Facility, 8005 Gabarda Rd., Atascadero, CA 93422 | BZ16: x | CC16: x | CI16: Facultative Lagoon | CU16: Sludge Beds, Percolation Ponds, and Aeration Lagoon | CV16: No | CY16: Yes | DA16: 2006-0003-DWQ (3-400100001) | DC16: Yes | DD16: www.atascadero.org
A17: Atwater, City of | B17: Atwater | C17: 95301 | D17: Merced | E17: 28818
A18: Auburn, City of | B18: Auburn | C18: 95603 | D18: Placer | E18: 13800 | F18: 55690 | G18: Annual | H18: Flat Rate | I18: Annual | J18: Flat Rate | K18: Annual | L18: Flat Rate | M18: Annual | N18: Flat Rate | O18: Annual | P18: Flat Rate | Q18: Annual | R18: Flat Rate | S18: 3671 | T18: 2408 | U18: 109 | W18: 864 | X18: 37 | Y18: 81.42 | Z18: 33.00 to 81.63 | AA18: 52.82 | AC18: 6.70 to 321.00 | AD18: 40.00 to 67.00 | AE18: 7775.17 | AF18: 5551 | AG18: 5551 | AI18: 777.00 to 37,321.00 | AJ18: 7775.17 per 100 students | AK18: 98 | AL18: 2 | AQ18: Yes | AR18: x | AT18: x | AV18: x | AY18: No | AZ18: 2443169 | BA18: 853734 | BB18: 6035000 | BC18: x | BE18: x | BF18: x | BG18: No | BH18: 1 | BI18: 1.67 | BJ18: No | BN18: City of Auburn Wastewater Treatment Plant, 10441 Ophir Road, Auburn, Ca. 95603 | BZ18: x | CA18: x | CC18: x | CD18: x | CG18: x | CL18: x | CN18: Filtration | CO18: Sand | CQ18: x | CT18: x | CV18: Yes | CW18: 0 | CX18: 0 | CY18: Yes | DB18: CA0077712 | DC18: No
A19: Avila Beach Community Services District | B19: Avila Beach | C19: 93424 | D19: San Luis Obispo | E19: 400 | G19: Monthly | H19: Flat Rate/Variable Based | I19: Monthly | J19: Flat Rate/Variable Based | K19: Monthly | L19: Flat Rate/Variable Based | M19: Monthly | N19: Flat Rate/Variable Based | O19: Monthly | P19: Flat Rate/Variable Based | Q19: Monthly | R19: Flat Rate/Variable Based | S19: 253 | T19: 22 | U19: 0 | V19: 0 | W19: 51 | X19: 0 | Y19: 35.9 | Z19: 37.95 | AC19: 51.7 | AE19: 12481 | AF19: 9965 | AI19: 3994 | AK19: 80 | AL19: 0 | AN19: 20 | AO19: 5 | AQ19: Yes | AR19: x | AT19: x | AX19: x | AY19: No | AZ19: 471699 | BA19: 0 | BB19: 747500 | BC19: x | BE19: x | BF19: x | BG19: No | BH19: 0.06 | BI19: 0.2 | BJ19: No | BN19: Avila Beach Wastewater Treatment Plant 2850 Avila Beach Drive Avila Beach CA 93424 | CD19: x | CE19: x | CH19: x | CJ19: x | CT19: x | CV19: No | CW19: 0 | CX19: 0 | CY19: Yes | DA19: R3-2009-0055 | DB19: CA0047830 | DC19: Yes | DD19: avilabeachcsd.org
A20: Baker Community Services District | B20: Baker | C20: 92309 | D20: San Bernardino | E20: 600 | F20: 33068 | G20: Monthly | H20: Flat Rate | I20: Monthly | J20: Flat Rate | K20: Monthly | L20: Flat Rate | O20: Monthly | P20: Flat Rate | S20: 46 | T20: 58 | U20: 96 | W20: 28 | Y20: 20 | Z20: 20 | AA20: 20 | AC20: 236 | AE20: 600 | AF20: 600 | AG20: 600 | AI20: 2750 | AK20: Not given | AQ20: No | AX20: x | AY20: Yes | AZ20: Not Given | BC20: x | BG20: No | BH20: 0.4 | BJ20: No | BZ20: x | CV20: No | CY20: No | DC20: No
A21: Baker Community Services District | B21: Baker | C21: 92309 | D21: San Bernardino | E21: 735
A22: Baldwin Park, City of | B22: Baldwin Park | C22: 91706 | D22: Los Angeles | E22: 75390 | F22: 52094 | G22: Annual | H22: Flat Rate | I22: Annual | J22: Flat Rate | K22: Annual | L22: Flat Rate | M22: Annual | N22: Flat Rate | O22: Annual | P22: Flat Rate | Q22: Annual | R22: Flat Rate | AQ22: Yes | AU22: This done by Los Angeles County Sanitation District | AX22: x | AY22: N/A | AZ22: by LACDPW | BA22: sewer maintence | BB22: Division | BC22: x | BG22: No | BJ22: No | BL22: No | BM22: Los Angeles County Sanitation District | DC22: Yes | DD22: www.baldwinpark.com | DE22: Most of these questions can be answered by the Los Angeles County Sanitation District
A23: Barstow, City of | B23: Barstow | C23: 92311 | D23: San Bernardino | E23: 25000 | F23: 44600 | G23: Bimonthly | H23: Flat Rate | I23: Bimonthly | J23: Flat Rate | K23: Bimonthly | L23: Flat Rate | M23: Monthly | N23: Variable Based on Water Use. | O23: Monthly | P23: Variable Based on Water Use. | Q23: Monthly | R23: Variable Based on Water Use. | S23: 5565 | T23: 216 | U23: 6 | V23: 6 | W23: 451 | X23: 4 | Y23: 31 | Z23: 31 | AA23: 31 | AB23: 100 | AC23: 31 | AD23: 31 | AE23: 1500 | AF23: 1500 | AG23: 1500 | AH23: 1500 | AI23: 1500 | AJ23: 1500 | AK23: 56.6 | AL23: 0.27 | AO23: 0.27 | AP23: 42.8 | AQ23: Yes | AR23: x | AS23: x | AT23: x | AV23: x | AY23: No | AZ23: 3167717 | BA23: 616668 | BB23: 5843214 | BC23: x | BE23: x | BF23: x | BG23: Yes | BH23: 2.1 | BI23: 4.5 | BJ23: No | BK23: No | BN23: Barstow Wastewater Treatment Plant, 2200 E. Riverside Dr. Barstow, CA 92311 | CC23: x | CD23: x | CE23: x | CG23: x | CQ23: x | CR23: x | CV23: Yes | CX23: 3 million gallons | CY23: Yes | DA23: R6-94-26, 6B360101001 | DC23: No
A24: Bayshore Sanitary District | B24: Brishane | C24: 94005 | D24: San Mateo | E24: 5150 | F24: 72762 | G24: Annual | H24: Flat Rate/Variable Based | I24: Annual | J24: Flat Rate/Variable Based | M24: Annual | N24: Flat Rate/Variable Based | O24: Annual | P24: Flat Rate/Variable Based | Q24: Annual | R24: Flat Rate/Variable Based | S24: 1327 | T24: 257 | U24: N/A | V24: 40 | W24: 73 | X24: 14 | Y24: 43 | Z24: 44 | AB24: 95 | AC24: 192 | AD24: 67 | AE24: 3417 | AF24: 3417 | AH24: 17.07 per gallon per day | AI24: 17.07 per gallon per day | AJ24: 17.07 per gallon per day | AK24: 85.6 | AL24: 0.82 | AN24: 12.4 | AO24: 1 | AP24: 0.18 | AQ24: Yes | AR24: x | AS24: x | AT24: x | AX24: x | AY24: No | AZ24: 929100 | BA24: 0 | BB24: 170000 | BC24: x | BG24: No | BH24: 0.26 | BI24: 5 | BJ24: No | BL24: No | BM24: SFPUC | DC24: No
A25: Bear Valley Water District | B25: Bear Valley | C25: 95223 | D25: Alpine | E25: 100 | F25: 20000 | G25: Quarterly | H25: Flat Rate | I25: Quarterly | J25: Flat Rate | O25: Quarterly | P25: Variable Based on Water Use. | S25: 544 | W25: 20 | Y25: 90.37 | Z25: 90.37 | AC25: 80.48 + 0.064 per gallon | AE25: 15740 | AF25: 15,740 (3) + 5247 each additional | AI25: 15,740 (3) + 5247 each additional | AK25: 100 | AQ25: No | AV25: x | AY25: No | AZ25: 521231 | BA25: 56338 | BB25: 133500 | BC25: x | BD25: x | BE25: x | BF25: x | BG25: No | BH25: 11.45 MGD | BI25: design .5MGD, permitted .1MGD | BJ25: No | BK25: No | BN25: Bear Valley Wastewater Treatment Plant | BZ25: x | CA25: x | CB25: x | CJ25: x | CV25: No | CY25: Yes | DA25: R5-2001-0208 | DB25: R5-2011-0053 | DC25: No
A26: Bell, City of | B26: Bell | C26: 90201 | D26: Los Angeles | E26: 35700 | F26: 38473 | G26: Annual | H26: Flat Rate | I26: Annual | J26: Flat Rate | K26: Annual | L26: Flat Rate | M26: Annual | N26: Flat Rate | O26: Annual | P26: Flat Rate | Q26: Annual | R26: Flat Rate | S26: 4250 | T26: 4250 | U26: 4250 | V26: 4250 | W26: 4250 | X26: 4250 | Y26: 33.12 | Z26: 42.64/unit | AA26: 33.12/Unit | AB26: 151 - 252 per parcel | AC26: 151 - 252 per parcel | AD26: 151 - 252 per parcel | AE26: 0 | AF26: 0 | AG26: 0 | AH26: 0 | AI26: 0 | AJ26: 0 | AK26: 100 | AQ26: Yes | AX26: x | AY26: N/A | AZ26: 482000 | BA26: 0 | BB26: 0 | BC26: x | BG26: No | BJ26: No | DC26: No
A27: Belmont, City of | B27: Belmont | C27: 94002 | D27: San Mateo | E27: 26800 | F27: 103000 | G27: Annual | H27: Variable Based on Water Use. | I27: Annual | J27: Variable Based on Water Use. | K27: Annual | L27: Variable Based on Water Use. | M27: Annual | N27: Variable Based on Water Use. | O27: Annual | P27: Variable Based on Water Use. | Q27: Annual | R27: Variable Based on Water Use. | S27: 7128 | T27: 284 | U27: 0 | V27: 68 | W27: 187 | X27: 573 | Y27: 60.09 | Z27: 51.32 | AB27: 79.77 | AC27: 284.17 | AD27: 59.72 | AE27: 12025 | AF27: 12025 | AH27: 12025 | AI27: 12025 | AJ27: 12025 | AK27: 98 | AL27: <1 | AO27: 0 | AP27: <1 | AQ27: No | AV27: x | AY27: No | AZ27: 6817248 | BA27: 1436190 | BB27: 1805000 | BC27: x | BG27: No | BH27: 1.78 | BI27: 2.74 | BJ27: No | DC27: No | DE27: Silicon Valley Clean Water is the agency responsible for septic system maintenance.
A28: Benicia, City of -Wastewater Treatment Plant | B28: Benicia | C28: 94510 | D28: Solano | E28: 28000 | F28: 88619 | G28: Bimonthly | H28: Flat Rate | I28: Bimonthly | J28: Flat Rate | K28: Bimonthly | L28: Flat Rate | M28: Bimonthly | N28: Variable Based on Water Use. | O28: Bimonthly | P28: Variable Based on Water Use. | Q28: Bimonthly | R28: Variable Based on Water Use. | S28: 8317 | T28: 308 | U28: 12 | V28: 73 | W28: 449 | X28: 24 | Y28: 53.26 | Z28: $53.26/Equivelent Dwelling Unit (EDU) | AA28: $53.26/Equivelent Dwelling Unit (EDU) | AB28: $53.26/Equivelent Dwelling Unit (EDU) | AC28: $53.26/Equivelent Dwelling Unit (EDU) | AD28: $53.26/Equivelent Dwelling Unit (EDU) | AE28: 7620 | AF28: $3,810/accessory Dwelling | AG28: $7,620/EDU | AH28: $7,620/EDU | AI28: $7,620/EDU | AJ28: $7,620/EDU | AK28: 96% | AL28: 0.2% | AM28: 0.2% | AP28: 3-6% | AQ28: Yes | AR28: x | AT28: x | AV28: x | AY28: No | AZ28: 5702720 | BA28: 2336040 | BB28: $$166,240 (capitol outlay) | BC28: x | BD28: x | BE28: x | BF28: x | BG28: Yes | BH28: 2.2 mgd | BI28: 4.5 mgd | BJ28: No | BN28: Cit of Benicia Wastewater Treatment Plant - 614 East 5th Street, Benicia, CA 94510 | CB28: x | CC28: x | CD28: x | CE28: x | CG28: x | CH28: x | CJ28: x | CP28: x | CQ28: x | CR28: x | CT28: x | CU28: N/A | CV28: No | CW28: N/A | CX28: N/A | CY28: Yes | DA28: R2-2014-0023 | DB28: 38091 | DC28: Yes | DD28: www.ci.benicia.ca.us, City Departments, Finance, 5 year CIP
A29: Bishop, City of | B29: Bishop | C29: 93514 | D29: Inyo | E29: 3879 | F29: 28089 | G29: Monthly | H29: Flat Rate | I29: Monthly | J29: Flat Rate/Variable Based | K29: Monthly | L29: Flat Rate/Variable Based | M29: Monthly | N29: Flat Rate/Variable Based | O29: Monthly | P29: Flat Rate/Variable Based | Q29: Monthly | R29: Flat Rate/Variable Based | S29: 543 | T29: 281 | U29: 0 | V29: 0 | W29: 292 | X29: 0 | Y29: 30 | Z29: 24 | AC29: 28.5 | AE29: 2000 | AF29: 2000 | AG29: 2000 | AH29: 2000 | AI29: 2000 | AJ29: 2000 | AK29: 100 | AQ29: Yes | AR29: x | AT29: x | AU29: MBAS | AX29: x | AY29: No | AZ29: 636850 | BA29: 0 | BB29: 420000 | BC29: x | BE29: x | BF29: x | BG29: No | BH29: 0.697 MGD | BI29: 1.6 MGD | BJ29: No | BK29: No | BN29: City of Bishop Waste Water Treatment Plant, 980 Poleta Rd, Bishop, Ca | BZ29: x | CC29: x | CF29: Grit Removal | CP29: x | CQ29: x | CV29: No | CY29: Yes | DA29: R6-94-025 (WDID No. 6B140101001) | DC29: Yes | DD29: www.ca-bishop.us
A30: Blythe Regional Wastewater Reclamation | B30: Blythe | C30: 92225 | D30: Riverside | E30: 10200 | F30: 44539 | G30: Monthly | H30: Flat Rate | I30: Monthly | J30: Flat Rate | K30: Monthly | L30: Flat Rate | M30: Monthly | N30: Flat Rate | O30: Monthly | P30: Flat Rate/Variable Based | Q30: Monthly | S30: 2878 | T30: 20.5 | W30: 311 | X30: 13 | Y30: 43.09 | Z30: 43.09 | AC30: 68.12 | AD30: 1.67 per ADA | AE30: 1300 | AF30: 1300 | AG30: 1300 | AH30: 9000 | AI30: 3225 | AJ30: 2500 | AK30: 99 | AL30: 1 | AQ30: No | AV30: x | AY30: No | AZ30: 4466181 | BA30: 458201 | BB30: 256000 | BC30: x | BD30: x | BE30: x | BF30: x | BG30: No | BH30: 1.1 | BI30: 2.4 | BJ30: Yes | CA30: x | CC30: x | CD30: x | CG30: x | CT30: x | CU30: Farm land applied | CV30: No | CY30: Yes | DA30: R7-2005-0103 | DC30: No
A31: Bodega Bay Public Utility District | B31: Bodega Bay | C31: 94923 | D31: Sonoma | E31: 1077 | F31: 74563 | G31: Bimonthly | H31: Variable Based on Water Use. | I31: Bimonthly | J31: Variable Based on Water Use. | K31: Bimonthly | L31: Variable Based on Water Use. | M31: Bimonthly | N31: Variable Based on Water Use. | O31: Bimonthly | P31: Variable Based on Water Use. | Q31: Bimonthly | R31: Variable Based on Water Use. | S31: 1075 | T31: 0 | U31: 0 | V31: 0 | W31: 70 | X31: 0 | Y31: Variable, $113.36 | Z31: Variable, $113.36 | AA31: Variable, $113.36 | AB31: Variable, $113.36 | AC31: Variable, $113.36 | AD31: Variable, $113.36 | AE31: 29920 | AF31: Variable, $29,920 | AG31: Variable, $29,920 | AH31: Variable, $29,920 | AI31: Variable, $29,920 | AJ31: Variable, $29,920 | AK31: 100% | AQ31: No | AV31: x | AY31: No | AZ31: 1300000 | BA31: 201000 | BB31: 308350 | BC31: x | BD31: x | BE31: x | BF31: x | BG31: No | BH31: 0.25 | BI31: 432 | BJ31: No | BK31: No | BN31: Bodega Bay Public Utility District, 265 Doran Park Rd, Bodega bay, CA 94923 | CA31: x | CC31: x | CE31: x | CG31: x | CJ31: x | CN31: Filtration | CO31: Aqua-Aerobic, AquaDisk cloth media filter | CQ31: x | CR31: x | CT31: x | CU31: Flocculation | CV31: No | CW31: 0 | CX31: 0 | CY31: Yes | DA31: R1-91-130 (WDID 1B750280SON) | DC31: No
A32: Bolinas Community Public Utility District | B32: Bolinas | C32: 94924 | D32: Marin | E32: 1000 | F32: 54635 | G32: Annual | H32: Flat Rate | O32: Annual | P32: Flat Rate | S32: 142 | W32: 21 | Y32: 81.33 | AC32: 101.54 | AE32: 19056.3 | AI32: 19056.3 | AK32: 90 | AN32: 9 | AP32: 1, septic tank dump fees | AQ32: Yes | AR32: x | AV32: x | AW32: x | AY32: N/A | AZ32: 175350 | BA32: 33350 | BB32: 57085 | BC32: x | BE32: x | BF32: x | BG32: No | BH32: 0.023 | BI32: 0.065 | BJ32: No | BN32: Bolinas Wastewater Treatment Facility, 101 Mesa Road, Bolinas CA 94924 | BZ32: x | CF32: Oxidation Ponds | CI32: Methane formation with aeration and recirculation | CS32: x | CY32: Yes | DA32: R2-88-100 | DC32: Yes | DD32: bcpud.org
A33: Boranda County Sanitation District | B33: Salinas | C33: 93901 | D33: Monterey | E33: 1710 | F33: 46797 | G33: Monthly | H33: Flat Rate | I33: Monthly | J33: Flat Rate | K33: Monthly | L33: Flat Rate | M33: Monthly | N33: Flat Rate | O33: Monthly | P33: Flat Rate | Q33: Monthly | R33: Flat Rate | S33: 319 | T33: 27 | U33: 4 | V33: 4 | W33: 11 | Y33: 23.18 | Z33: 18.54 | AA33: 18.54 | AB33: 23.18 | AC33: 667.39 | AD33: 1485.56 | AE33: 100 | AF33: 100 | AG33: 100 | AK33: 100 | AQ33: No | AV33: x | AY33: Yes | AZ33: 121504 | BA33: 37590 | BC33: x | BG33: No | BH33: 0.067 | BI33: 0.15 | BJ33: No | BL33: No | BM33: Monterey Regional Water Pollution Control Agency | DC33: No
A34: Boron Community Services District | B34: Boron | C34: 93596 | D34: Kern | E34: 2250 | F34: 25760 | G34: Monthly | H34: Flat Rate | I34: Monthly | J34: Flat Rate | K34: Monthly | L34: Flat Rate | O34: Monthly | P34: Variable Based on Water Use. | S34: 393 | T34: 28 | U34: 26 | V34: 0 | W34: 13 | X34: 0 | Y34: 17 | Z34: 15 | AA34: 13 | AB34: 0 | AC34: $10.00 for first 100 cf, $1.75 per 100 cf for overage | AD34: 0 | AE34: 1500 | AF34: 1500 | AG34: 1500 | AH34: 0 | AI34: 1500 | AJ34: 0 | AK34: 20 | AL34: 0 | AM34: 0 | AN34: 0 | AO34: 0 | AQ34: No | AX34: x | AY34: No | AZ34: 100000 | BA34: 0 | BB34: 0 | BC34: x | BE34: x | BG34: No | BH34: 0.085 | BI34: 0.0288 | BJ34: No | BK34: No | BN34: Boron Waste Water Treatment Plant - 20 Mule Team Road | BZ34: x | CB34: x | CC34: x | CV34: No | CY34: No | DC34: No
A35: Borrego Water District | B35: Borrego Springs | C35: 92004 | D35: San Diego | E35: 833
A36: Brea, City of | B36: Brea | C36: 92821 | D36: Orange | E36: 41000 | F36: 79124 | G36: Monthly | H36: Flat Rate | I36: Monthly | J36: Flat Rate | K36: Monthly | L36: Flat Rate | M36: Monthly | N36: Flat Rate/Variable Based | O36: Monthly | P36: Flat Rate/Variable Based | Q36: Monthly | R36: Flat Rate/Variable Based | S36: 10656 | T36: 190 | V36: 261 | W36: 688 | X36: 585 | Y36: 7.88 | Z36: 4.95 | AB36: 321.52 | AD36: 101.67 | AE36: 5937.14 | AF36: 2785.69 | AG36: 2785.69 | AH36: 5937.14 | AI36: 5937.14 | AJ36: 57570.92 | AK36: 95.5 | AL36: 2.5 | AO36: 2 | AQ36: No | AX36: x | AY36: Yes | AZ36: 1179006 | BA36: 0 | BB36: 2016450 | BC36: x | BG36: No | BH36: 0.55 | BJ36: No | BL36: No | BM36: Orange County Sanitation District | DC36: Yes | DD36: www.ci.brea.ca.us/documentcenter/view/716 | DE36: The rate structure for Industrial/Commercial/Institutional is both fat rate & variable. 3" meters & over are based on water use. 2" & under are a flat rate. Multiple Family & Mobile Homes are not per unit. Sewer fees are charged per meter. For example, charge is based on how many meters service the mobile home park as a whole. Wastewater user fees vary greatly for Industrial for Industrial/Commercial/Institutional. For Industrial/Commercial, the range is $17.36 - $1,116.13. The rate range for Institutional is $7.29 - $315.17.
A37: Brentwood, City of | B37: Brentwood | C37: 94513 | D37: Contra Costa | E37: 53000 | F37: 83777 | G37: Monthly | H37: Variable Based on Water Use. | I37: Monthly | J37: Variable Based on Water Use. | K37: Monthly | L37: Variable Based on Water Use. | M37: Monthly | N37: Variable Based on Water Use. | O37: Monthly | P37: Variable Based on Water Use. | Q37: Monthly | R37: Variable Based on Water Use. | S37: 16912 | T37: 51 | U37: 3 | V37: 0 | W37: 477 | X37: 18 | Y37: 14.62 | Z37: 14.62 | AA37: 14.62 | AD37: 14.62 | AE37: 4469.56 | AF37: 3399.41 | AH37: .5735 per sq ft | AI37: 1.0903 per sq ft | AK37: 99 | AO37: 1 | AQ37: No | AV37: x | AY37: No | AZ37: 10874137 | BA37: 833238 | BB37: 5606017 | BC37: x | BE37: x | BF37: x | BG37: Yes | BH37: 3.7 | BI37: 5 | BJ37: No | BN37: Brentwood Wastewater Treatment Plant 2251 Elkins Way Brentwood, CA 94513 | CA37: x | CC37: x | CD37: x | CG37: x | CJ37: x | CN37: Filtration | CO37: Sand, Conventional | CQ37: x | CV37: Yes | CW37: 410 | CX37: 410 | CY37: Yes | DB37: R5 2013-0106 | DC37: Yes | DD37: www.brentwoodca.gov/gov/finance/docs/cip.asp
A38: Bridgeport Public Utility District | B38: Bridgeport | C38: 93517 | D38: Mono | E38: 180 | F38: 35000 | G38: Monthly | H38: Flat Rate | I38: Monthly | J38: Flat Rate | K38: Monthly | L38: Flat Rate | O38: Monthly | P38: Flat Rate | S38: 141 | T38: 22 | U38: 13 | W38: 20 | Y38: 78.54 | Z38: 78.54 | AA38: 78.54 | AC38: 160 | AE38: 2500 | AG38: 2500 | AI38: 3600 | AK38: 99.9 | AL38: 0.1 | AQ38: No | AY38: N/A | AZ38: 250000 | BC38: x | BD38: x | BE38: x | BF38: x | BG38: No | BH38: 0.04 | BI38: 0.2 | BJ38: No | BN38: Bridgeport sewer ponds- 1111Aurora Canyon Road, Bridgeport, CA, 93517 | BZ38: x | CA38: x | CB38: x | CF38: Ponds/ lagoon system | CI38: Aeration | CV38: No | CY38: No | CZ38: Bridgeport sewer ponds dose not discharge | DA38: 2006-0003-DWQ | DC38: No
A39: Buelton, City of | B39: Buellton | C39: 93427 | D39: Santa Barbara | E39: 4858 | G39: Monthly | H39: Flat Rate | I39: Monthly | J39: Flat Rate | K39: Monthly | L39: Flat Rate | M39: Monthly | N39: Variable Based on Water Use. | O39: Monthly | P39: Variable Based on Water Use. | Q39: Monthly | R39: Variable Based on Water Use. | S39: 1220 | T39: 63 | U39: 3 | V39: 27 | W39: 179 | X39: 2 | Y39: 21 | Z39: 21 | AA39: 21 | AB39: 26.84 | AC39: 26.84 | AD39: 26.84 | AE39: 2640 | AF39: 2420 | AG39: 2420 | AH39: 1920 | AI39: 1920 | AJ39: 1920 | AK39: 57 | AL39: 0 | AM39: 0 | AN39: 0 | AO39: 0.5 | AP39: 0 | AQ39: No | AX39: x | AY39: N/A | AZ39: 1226815 | BA39: 0 | BB39: 150000 | BC39: x | BD39: x | BE39: x | BF39: x | BG39: Yes | BH39: 0.485 | BI39: 0.65 | BJ39: No | BK39: No | BN39: City of Buellton Wastewater Treatment Plant, 79 Industrial Way, Buellton | BZ39: x | CA39: x | CB39: x | CC39: x | CG39: x | CM39: filtration through sand ponds | CN39: Filtration | CQ39: x | CR39: x | CV39: No | CW39: 0 | CX39: 0 | CY39: Yes | DA39: WDR R2-99-134 | DC39: No
A40: Buena Park, City of | B40: Buena Park | C40: 90620 | D40: Orange | E40: 82364 | F40: 64809 | G40: Bimonthly | H40: Variable Based on Water Use. | I40: Bimonthly | J40: Flat Rate | K40: Bimonthly | L40: Flat Rate | M40: Bimonthly | N40: Flat Rate | O40: Bimonthly | P40: Flat Rate | Q40: Bimonthly | R40: Flat Rate | S40: 16396 | T40: 677 | V40: 4 | W40: 1416 | X40: 428 | Y40: 11% of water consumption and meter capacity charge. | AE40: recovered through consumption fee | AK40: 11% | AP40: 10% CIP charge | AQ40: No | AX40: x | AY40: Yes | AZ40: 910830 | BB40: 2200000 | BC40: x | BG40: No | BH40: 7.96 | BI40: 8.62 | BJ40: No | BK40: No | DC40: Yes | DD40: http://www.buenapark.com/Modules/ShowDocument.aspx?documentid=6846
A41: Burbank, City of | B41: Burbank | C41: 91502 | D41: Los Angeles | E41: 104000 | F41: 66844 | G41: Monthly | H41: Flat Rate | I41: Monthly | J41: Flat Rate | M41: Monthly | N41: Variable Based on Water Use. | O41: Monthly | P41: Variable Based on Water Use. | Q41: Monthly | S41: 18651 | T41: 25358 | V41: 1046 | W41: 3106 | X41: 8 | Y41: 23.36 | Z41: 19.93 | AB41: $3.70/HCF (medium strength dischargers) | AC41: $3.70/HCF (medium strength dischargers) | AD41: $0.64/pupil/mo. (elem) & $1.26/pupil/mo. (HS) | AE41: 814 | AF41: 667 | AH41: $500/1000 SF (average) | AI41: $300/1000 SF (average) | AJ41: $450/1000 SF | AK41: 98 | AL41: 1 | AM41: 1 | AQ41: Yes | AR41: x | AT41: x | AV41: x | AY41: No | AZ41: 16800000 | BA41: 1500000 | BB41: 10700000 | BC41: x | BE41: x | BG41: Yes | BH41: 8.5 MGD | BI41: 12.5 MGD | BJ41: No | BK41: No | BN41: Burbank Water Reclamation Plant, 740 N. Lake Street, Burbank CA 91502 | CB41: x | CC41: x | CG41: x | CJ41: x | CN41: Filtration | CO41: Tetra Deep Bed Gravity Filter | CU41: All sludge is processed by the City of Los Angeles and transported via the North Outfall Sewer. | CV41: Yes | CY41: Yes | DA41: R4-97-03DW (WDID 4SSO10373) | DB41: CA0055531 | DC41: No
A42: Burney Water District | B42: Burney | C42: 96013 | D42: Shasta | E42: 3154 | F42: 39240 | G42: Monthly | H42: Variable Based on Water Use. | I42: Monthly | J42: Variable Based on Water Use. | K42: Monthly | L42: Variable Based on Water Use. | M42: Monthly | N42: Variable Based on Water Use. | O42: Monthly | P42: Variable Based on Water Use. | Q42: Monthly | R42: Variable Based on Water Use. | S42: 1170 | T42: 26 | U42: 1 | V42: 0 | W42: 159 | X42: 0 | Y42: 25.4 | Z42: 23.35 | AA42: 242.4 | AC42: 25.5 | AE42: 6130.6 | AK42: 100 | AQ42: No | AW42: x | AY42: No | AZ42: 138638 | BA42: 0 | BB42: 320800 | BC42: x | BE42: x | BF42: x | BG42: No | BH42: 0.194 | BI42: 0.44 | BJ42: No | BK42: No | BN42: Burney Water District Wastewater Treatment Facility, 21111 Black Ranch Road, Burney, CA 96013 | BZ42: x | CA42: x | CB42: x | CC42: x | CI42: EXTENDED AERATION AND CLARIFICATION | CT42: x | CU42: PERC/EVAP STORAGE PONDS FOR EFFLUENT, LINED FACULTATIVE SLUDGE LAGOON FOR SLUDGE STORAGE, SLUDGE DREDGING, DEWATER AND LANDFILL DISPOSAL BY CONTRACTOR. | CV42: No | CW42: 0 | CX42: 0 | CY42: Yes | DA42: R5-94-017 | DC42: No
A43: Calaveras County Water District | B43: San Andreas | C43: 95249 | D43: Calaveras | E43: 13008 | F43: 54086 | G43: Bimonthly | H43: Flat Rate | I43: Bimonthly | J43: Variable Based on Water Use. | O43: Bimonthly | P43: Variable Based on Water Use. | Q43: Bimonthly | R43: Variable Based on Water Use. | S43: 4426 | T43: 2 | V43: N/A | W43: 302 | X43: 7 | Y43: 86.16 | Z43: 47.39 | AA43: 86.16 | AB43: N/A | AC43: 159.58 | AD43: 452.34 | AE43: 10950 | AK43: 83.2 | AL43: 0 | AM43: 0 | AN43: 10.4 | AO43: 0.1 | AP43: 6.2 | AQ43: No | AV43: x | AY43: No | AZ43: 3592555 | BA43: 508549 | BB43: 2348600 | BC43: x | BD43: x | BE43: x | BF43: x | BG43: No | BH43: 0.462 | BI43: 1.968 | BJ43: Yes | BK43: No | BN43: Arnold Wastewater Treatment Plant, Arnold, CA | BO43: Copper Cove Wastewater Treatment Plant/RF, Copperopolis, CA | BP43: Douglas Flat/Vallecito Wastewater Treatment Plant, Douglas Flat, CA | BQ43: Forest Meadows Wastewater Treatment Plant, Murphys, CA | BR43: Indian Rock Wastewater Treatment Plant, Murphy's, CA | BS43: LaContenta Wastewater Treatment Plant, Valley Springs, CA | BT43: Millwoods Wastewater Treatment Plant, Arnold, CA and Sequoia Woods Moutain Retreat WWTP, Arnold CA | BU43: Southworth Wastewater Treatment Plant, Burson CA | BV43: Wallace Wastewater Treatment Plant, Wallace CA | BW43: West Point Wastewater Treatment Plant, Wilseyville CA and Wilseyville WWTP, Wilseyville, CA | BY43: x | BZ43: x | CA43: x | CB43: x | CC43: x | CD43: x | CE43: x | CG43: x | CH43: x | CJ43: x | CL43: x | CN43: Filtration | CO43: Membrane Bioreactor and multi-media filtration | CQ43: x | CT43: x | CV43: No | CW43: 232.4 | CX43: 566.47 | CY43: Yes | DA43: 97-073, 5-00-136, R5-2013-0072, R5-2013-0009, 5-00-066, 90-259, R5-2013-0133, 88-028, 95-069, 90-258, 93-078, 98-44 | DB43: CA0084620, CA0085278 | DC43: Yes | DD43: www.ccwd.org
A44: Calistoga, City of | B44: Calistoga | C44: 94515 | D44: Napa | E44: 5208 | F44: 51207 | G44: Bimonthly | H44: Flat Rate/Variable Based | I44: Bimonthly | J44: Flat Rate/Variable Based | K44: Monthly | L44: Flat Rate/Variable Based | O44: Monthly | P44: Flat Rate/Variable Based | S44: 1025 | T44: 106 | U44: 4 | W44: 207 | Y44: 61.82 | Z44: 52.52 | AA44: 33.91 | AC44: 5.07 | AE44: 23748 | AF44: 13252 | AG44: 22584 | AH44: 106019 | AI44: 106019 | AJ44: 106019 | AK44: 100 | AQ44: Yes | AR44: x | AT44: x | AV44: x | AY44: Yes | AZ44: 2689620 | BA44: 696363 | BB44: 1784000 | BC44: x | BE44: x | BF44: x | BG44: No | BH44: 0.5 | BI44: 0.84 | BJ44: No | BN44: Dunaweal Waste Waer Treatment Plant 1100 Dunaweal Lane, Calistoga, CA | BZ44: x | CA44: x | CC44: x | CG44: x | CJ44: x | CN44: Filtration | CO44: Parkson Dynasand Filter | CQ44: x | CR44: x | CT44: x | CV44: No | CW44: 402.28 | CX44: 209.44 | CY44: Yes | DA44: R2-2010-0104 | DB44: CA0039766 | DC44: Yes | DD44: www.ci.calistoga.ca.us | DE44: Under Fy 14-15 Budget one year actual project to be completed and funded; 4 years in concept only.
A45: Calpella County Water District | B45: Calpella | C45: 95418 | D45: Mendocino | E45: 221 | G45: Monthly | H45: Flat Rate | I45: Monthly | J45: Flat Rate | K45: Monthly | L45: Flat Rate | M45: Monthly | N45: Variable Based on Water Use. | O45: Monthly | P45: Variable Based on Water Use. | S45: 156 | T45: 39 | U45: 15 | V45: 4 | W45: 7 | Y45: 35 | Z45: 35 | AA45: 35 | AB45: 35 | AC45: 35 | AE45: 1400 | AF45: 1400 | AG45: 1400 | AH45: 1400 | AI45: 1400 | AK45: 45 | AN45: 5 | AO45: 1 | AQ45: Yes | AR45: x | AT45: x | BC45: x | BE45: x | BF45: x | BG45: No | BH45: 0.035 | BI45: 0.04 | BJ45: No | BN45: Calpella County Water District Wastewater Treatment Facility | BZ45: x | CB45: x | CJ45: x | CT45: x | CY45: Yes | DA45: R1-86-116 | DC45: No
A46: Camarillo Sanitary District | B46: Camarillo | C46: 93011 | D46: Ventura | E46: 46000 | F46: 83892 | G46: Monthly | H46: Flat Rate | I46: Monthly | J46: Flat Rate | K46: Monthly | L46: Flat Rate | M46: Monthly | N46: Variable Based on Water Use. | O46: Monthly | P46: Variable Based on Water Use. | Q46: Monthly | R46: Variable Based on Water Use. | S46: 13771 | T46: 3552 | U46: 702 | V46: 11 | W46: 758 | X46: 64 | Y46: 44.1 | Z46: 31.41 | AA46: 27.64 | AB46: 721.16 | AC46: 149.08 | AD46: 226.11 | AE46: 4591 | AF46: 2407 | AG46: 2407 | AH46: 61272 | AI46: 20424 | AJ46: 20424 | AK46: 97.7 | AL46: 1 | AM46: 1.3 | AN46: 0 | AO46: 0 | AP46: 0 | AQ46: Yes | AR46: x | AT46: x | AV46: x | AY46: No | AZ46: 9591711 | BA46: 1438350 | BB46: 14340000 | BC46: x | BD46: x | BE46: x | BF46: x | BG46: Yes | BH46: 3.81 | BI46: 7.25 | BJ46: No | BK46: No | BN46: Camarillo Water Reclamation Plant | CA46: x | CB46: x | CC46: x | CD46: x | CE46: x | CG46: x | CM46: hypochlorite | CN46: Filtration | CO46: cloth filters | CP46: x | CT46: x | CU46: aerobic digestion - secondary WAS | CV46: Yes | CW46: 1232 | CX46: 0 | CY46: Yes | DA46: R4-2014-0062 | DB46: CA00053597 | DC46: No
A47: Carlsbad, City of | B47: Carlsbad | C47: 92008 | D47: San Diego | E47: 85000 | F47: 83875 | G47: Monthly | H47: Flat Rate | I47: Monthly | J47: Variable Based on Water Use. | K47: Monthly | L47: Variable Based on Water Use. | M47: Monthly | N47: Variable Based on Water Use. | O47: Monthly | P47: Variable Based on Water Use. | Q47: Monthly | R47: Variable Based on Water Use. | S47: 20860 | T47: 843 | V47: 0 | W47: 1457 | X47: 64 | Y47: 25.52 | AE47: 842 | AF47: 842 | AI47: 842 | AJ47: 842 | AK47: 87.34 | AL47: 1.9 | AO47: 2.53 | AP47: 8.23,sewer pre-treatment late charges labor reimbursement | AQ47: Yes | AR47: x | AT47: x | AW47: x | AZ47: 12401071 | BA47: 928419 | BB47: 64751255 | BC47: x | BG47: Yes | BH47: 2015-06-07 | BJ47: No | BN47: Encina Wastewater Authority
A48: Carmel Area Wastewater District | B48: Carmel | C48: 93922 | D48: Monterey | E48: 11000 | F48: 78971 | G48: Annual | H48: Flat Rate | I48: Annual | J48: Flat Rate | K48: Annual | L48: Flat Rate | M48: Annual | N48: Flat Rate | O48: Annual | P48: Flat Rate | Q48: Annual | R48: Flat Rate | Y48: 42.86 | AC48: 25.96 | AE48: 3811.47 | AI48: 3811.47 | AK48: 62.97 | AL48: 0.12 | AN48: 17.67 | AO48: 0.85 | AP48: 18.39 | AQ48: Yes | AR48: x | AT48: x | AX48: x | AY48: No | AZ48: 5493248 | BA48: 0 | BB48: 9185510 | BC48: x | BE48: x | BG48: Yes | BH48: 1.2 | BI48: 3 | BJ48: No | BN48: 26900 Hwy One, Carmel Ca 93923 | CA48: x | CB48: x | CD48: x | CE48: x | CG48: x | CJ48: x | CN48: Filtration | CO48: MF-RO | CP48: x | CV48: Yes | CW48: 1000 | CX48: 1000 | CY48: Yes | DA48: R3-2014-0012 | DB48: CA0047996 | DC48: Yes | DD48: www.cawd.org/financials.html
A49: Caruthers Community Services District | B49: Caruthers | C49: 93609 | D49: Fresno | E49: 2500 | F49: 41948 | G49: Monthly | H49: Flat Rate | I49: Monthly | J49: Flat Rate | K49: Monthly | L49: Flat Rate | M49: Monthly | N49: Flat Rate | O49: Monthly | P49: Flat Rate | Q49: Monthly | R49: Flat Rate | S49: 640 | T49: 2 | U49: 2 | V49: 4 | W49: 4 | X49: 3 | Y49: 35 | Z49: 35 | AA49: 35 | AB49: 35 | AC49: 35 | AD49: 35 | AE49: 5700 | AF49: 5700 | AG49: 5700 | AH49: 5700 | AI49: 5700 | AJ49: 5700 | AK49: 95 | AL49: 5 | AQ49: No | AV49: x | AY49: No | AZ49: 178895 | BB49: 5500 | BC49: x | BE49: x | BF49: x | BG49: No | BH49: 0.18 | BI49: 0.28 | BJ49: No | BK49: No | BL49: Yes | BN49: Caruthers Community Service District | CA49: x | CC49: x | CG49: x | CM49: none | CP49: x | CS49: x | CV49: Yes | CW49: 0 | CX49: 0 | CY49: Yes | DA49: R5-2014-0137 | DC49: No
A50: Castro Valley Sanitary District | B50: Castro Valley | C50: 94546 | D50: Alameda | E50: 55000 | F50: 81482 | G50: Annual | H50: Variable Based on Water Use. | I50: Annual | J50: Variable Based on Water Use. | K50: Annual | L50: Variable Based on Water Use. | M50: Annual | N50: Variable Based on Water Use. | O50: Annual | P50: Variable Based on Water Use. | Q50: Annual | R50: Variable Based on Water Use. | S50: 16170 | T50: 1954 | U50: 324 | V50: 1 | W50: 714 | X50: 771 | Y50: 25.25 | Z50: 25.25 | AA50: 25.25 | AB50: 4341.33 | AC50: 115.94 avg | AD50: 168.26 avg | AE50: 14261 | AF50: 14261 | AG50: 14261 | AH50: 874.75 | AI50: 874.75 | AJ50: 874.75 | AK50: 80 | AL50: 5 | AN50: 5 | AO50: 5 | AP50: 5, solid waste grants funds | AQ50: Yes | AR50: x | AT50: x | AV50: x | AY50: No | AZ50: 9 million | BA50: 275000 | BB50: 2.175 Million | BC50: x | BE50: x | BG50: Yes | BH50: 2.69 | BI50: 36 | BJ50: No | BK50: No | BN50: Castro Valley Oro Loma Treatment Plant | BZ50: x | CA50: x | CC50: x | CD50: x | CE50: x | CG50: x | CJ50: x | CN50: Filtration | CO50: Sand | CP50: x | CQ50: x | CV50: No | CW50: 84.04 mgy | CX50: 84.04 mgy | CY50: Yes | DA50: 2006-0003DWQ | DB50: CA0037869 | DC50: No
A51: Cayucos Sanitary District | B51: Cayucos | C51: 93430 | D51: San Luis Obispo | E51: 3400 | F51: 42841 | G51: Monthly | H51: Flat Rate | I51: Monthly | J51: Flat Rate | K51: Monthly | L51: Flat Rate | O51: Monthly | P51: Flat Rate | Q51: Monthly | R51: Flat Rate | S51: 1822 | T51: 361 | U51: 136 | V51: 0 | W51: 54 | X51: 19 | Y51: 52 | Z51: 52 | AA51: 52 | AB51: N/A | AC51: 52 | AD51: 52 | AE51: 7860 | AF51: 7860 | AG51: 7860 | AH51: 7860 | AI51: 7860 | AJ51: 7860 | AK51: 67% | AL51: 1% | AM51: 0 | AN51: 27% | AO51: 2% | AP51: 3% Solid Waste Franchise & Rental | AQ51: No | AV51: x | AY51: No | AZ51: 1738000 | BA51: 112000 | BB51: 681000 | BC51: x | BG51: No | BH51: 0.26 | BI51: 0.7 | BJ51: No | DC51: No
A52: Central Contra Costa Sanitary District | B52: Martinez | C52: 94553 | D52: Contra Costa | E52: 470865 | F52: 83600 | G52: Annual | H52: Flat Rate | I52: Annual | J52: Flat Rate | K52: Annual | L52: Variable Based on Water Use. | M52: Annual | N52: Variable Based on Water Use. | O52: Annual | P52: Variable Based on Water Use. | Q52: Annual | R52: Variable Based on Water Use. | S52: 108938 | T52: 2861 | W52: 2946 | Y52: 36.58 | Z52: 36.58 | AC52: 360.82 | AE52: 5995 | AF52: 5995 | AG52: 5995 | AK52: 65 | AL52: 8 | AM52: 0.1 | AN52: 7 | AO52: 0.3 | AP52: 19 | AQ52: Yes | AR52: x | AT52: x | AW52: x | AY52: No | AZ52: 86231600 | BA52: 5576347 | BB52: 25079000 | BC52: x | BD52: x | BE52: x | BF52: x | BG52: Yes | BH52: 33.8 | BI52: 53.8 | BJ52: No | BN52: 5019 Imhoff Place, Martinez, CA 94553 | CB52: x | CC52: x | CD52: x | CE52: x | CG52: x | CL52: x | CN52: Filtration | CO52: Dual Media | CQ52: x | CR52: x | CT52: x | CU52: Open hearth furnace, co-generation | CV52: No | CW52: 1866 | CX52: 1547 | CY52: Yes | DA52: R2-2012-0016 | DB52: CA0037648 | DC52: Yes | DD52: http://www.centralsan.org/index.cfm?navid=1285
A53: Central Marin Sanitation Agency | B53: San Rafael | C53: 94901 | D53: Marin | E53: 122500 | F53: 96580 | Q53: Quarterly | X53: 4 | Y53: N/A | Z53: N/A | AA53: N/A | AB53: N/A | AC53: N/A | AD53: N/A | AE53: 5526.75 | AF53: 5526.75 | AG53: 5526.75 | AH53: 5526.75 | AI53: 5526.75 | AJ53: 5526.75 | AK53: 86.1 | AP53: 13.9 | AQ53: Yes | AR53: x | AT53: x | AU53: Wastewater Volume | AV53: x | AY53: No | AZ53: 10129676 | BA53: 4652501 | BB53: 4902700 | BE53: x | BF53: x | BG53: Yes | BH53: 5.6 | BI53: 10 | BJ53: No | BN53: Central Marin Sanitation Agency - 1301 Anderson Dr., San Rafael, CA | CC53: x | CD53: x | CE53: x | CG53: x | CH53: x | CJ53: x | CP53: x | CQ53: x | CR53: x | CT53: x | CV53: No | CW53: 1453.22 | CY53: Yes | DB53: CA 0038628 | DC53: Yes | DD53: www.cmsa.us, FY2014-15 Adopted Budget: 10-Year Capital Improvement Plan
A54: Ceres, City of | B54: Ceres | C54: 95307 | D54: Stanislaus | E54: 45854 | F54: 47306 | G54: Monthly | H54: Flat Rate | I54: Monthly | J54: Variable Based on Water Use. | K54: Monthly | L54: Variable Based on Water Use. | M54: Monthly | N54: Variable Based on Water Use. | O54: Monthly | P54: Variable Based on Water Use. | Q54: Monthly | R54: Variable Based on Water Use. | S54: 11076 | T54: 452 | U54: 5 | V54: 95 | W54: 387 | X54: 62 | Y54: 49.33 | Z54: 85.48 | AA54: 68.39 | AB54: 75.46 | AC54: 57.77 | AD54: 42.2 | AF54: 3.24 | AG54: 3.24 | AH54: 3.58 | AI54: 2.74 | AJ54: 2 | AK54: 90 | AL54: 10 | AQ54: Yes | AR54: x | AT54: x | AU54: Flow G.P.D | AX54: x | AY54: No | AZ54: 14007248.12 | BA54: 0 | BB54: 6311541.58 | BC54: x | BE54: x | BF54: x | BG54: Yes | BH54: 2.41 | BI54: 3.5 | BJ54: No | BN54: City of Cores Wastewater Treatment Plant 4200Morgan Rd., Ceres, CA | BZ54: x | CA54: x | CC54: x | CF54: Aerated Lagoons | CP54: x | CV54: No | CW54: 0.1 | CX54: 0.1 | CY54: Yes | DA54: R5-1993-0237 | DC54: No
A55: Cerritos, City of | B55: Cerritos | C55: 90703 | D55: Los Angeles | E55: 50000 | F55: 88743 | G55: Bimonthly | H55: Variable Based on Water Use. | I55: Bimonthly | J55: Variable Based on Water Use. | M55: Bimonthly | N55: Variable Based on Water Use. | O55: Bimonthly | P55: Variable Based on Water Use. | Q55: Bimonthly | S55: 13371 | T55: 866 | V55: 218 | W55: 762 | Y55: 0.15 | Z55: 270 | AB55: 45 | AC55: 225 | AE55: 15 | AF55: 15 | AH55: 15 | AI55: 15 | AK55: 90 | AL55: 10 | AQ55: No | AV55: x | AY55: No | AZ55: 376110 | BA55: 605000 | BB55: 0 | BC55: x | BG55: No | BJ55: No | CY55: No | CZ55: LA Sanitation District | DC55: Yes | DD55: http://www.cerritos.us/GOVERNMENT/_pdfs/combined_financial_program_1415_approved.pdf
A56: Chico, City of | B56: Chico | C56: 95928 | D56: Butte | E56: 38762 | F56: 58700 | G56: Monthly | H56: Flat Rate | I56: Monthly | J56: Flat Rate | K56: Monthly | L56: Flat Rate | M56: Monthly | N56: Flat Rate/Variable Based | O56: Monthly | P56: Flat Rate/Variable Based | Q56: Monthly | R56: Flat Rate/Variable Based | S56: 17267 | T56: 743 | V56: 20 | W56: 1902 | X56: 148 | Y56: 22.98 | Z56: 22.98 | AA56: 22.98 | AB56: 22.98 + 5.22 ccf | AC56: 22.98 + 5.22 ccf | AD56: 22.98 + 5.22 ccf | AE56: 2251 | AF56: 2251 | AG56: 2251 | AH56: 9003.00 per acre | AI56: 9003.00 per acre | AJ56: 1688.00 per unit | AK56: 98 | AL56: 1 | AP56: 1 rental/lease income | AQ56: Yes | AR56: x | AV56: x | AY56: No | AZ56: 6122751 | BA56: 1124712 | BB56: 4859758 | BC56: x | BE56: x | BG56: Yes | BH56: 6 | BI56: 12 | BJ56: No | BN56: Water Pollution Control Plant - 4827 Chico River Rd. Chico, CA | CC56: x | CD56: x | CE56: x | CG56: x | CI56: We are a Nitrification Activated Sludge facility | CJ56: x | CP56: x | CQ56: x | CR56: x | CT56: x | CV56: No | CW56: N/A | CX56: N/A | CY56: Yes | DA56: R5-2010-0019 | DB56: CA00790814 | DC56: Yes | DD56: www.ci.chico.ca.us
A57: Chino Hills, City of | B57: Chino Hills | C57: 91709 | D57: San Bernardino | E57: 76131 | F57: 93332 | G57: Monthly | H57: Flat Rate | I57: Monthly | J57: Flat Rate | K57: Monthly | L57: Flat Rate | M57: Monthly | N57: Flat Rate | O57: Monthly | P57: Flat Rate | Q57: Monthly | R57: Flat Rate | S57: 19350 | T57: 631 | W57: 176 | X57: 17 | Y57: 7.2 | Z57: 7.2 | AC57: 7.2 | AD57: 7.2 | AE57: 0 | AK57: 99 | AL57: 1 | AQ57: No | AX57: x | AY57: No | AZ57: 6629100 | BA57: 0 | BB57: 5470100 | BC57: x | BG57: Yes | BJ57: No | BK57: No | CW57: 2000 | CX57: 2000 | DC57: No
A58: Chowchilla, City of | B58: Chowchilla | C58: 93610 | D58: Madera | E58: 11759 | F58: 30729 | G58: Monthly | H58: Flat Rate | I58: Monthly | J58: Flat Rate | K58: Monthly | L58: Flat Rate | M58: Monthly | N58: Flat Rate | O58: Monthly | P58: Flat Rate | Q58: Monthly | R58: Flat Rate | S58: 3538 | T58: 87 | U58: 2 | V58: 9 | W58: 333 | X58: 2 | Y58: 20.8 | Z58: $15.60 per unit | AA58: $15.60 per unit | AD58: $27.47 per line | AE58: 697.7 | AK58: 99% | AL58: 1% | AQ58: No | AV58: x | AY58: No | AZ58: 1364587 | BA58: 103344 | BB58: 100000 | BC58: x | BD58: x | BE58: x | BF58: x | BG58: No | BH58: 1.012 MGD | BI58: 1.8 MGD | BJ58: No | BK58: No | BN58: City of Chowchilla, 15750 Avenue 24 1/2 Chowchilla, Ca. 93610 | BZ58: x | CC58: x | CD58: x | CF58: Primary Clarifiers | CG58: x | CI58: Secondary and Final Clarifiers | CQ58: x | CU58: Aerobic Digester, Robert's dewatering tile block bed prior to drying clay bed | CV58: No | CY58: Yes | DA58: R5-90-271 | DC58: No
A59: Chula Vista, City of | B59: Chula Vista | C59: 91911 | D59: San Diego | E59: 256780 | F59: 65364 | G59: Monthly | H59: Variable Based on Water Use. | I59: Monthly | J59: Variable Based on Water Use. | K59: Monthly | L59: Variable Based on Water Use. | M59: Quarterly | N59: Variable Based on Water Use. | O59: Quarterly | P59: Variable Based on Water Use. | Q59: Quarterly | R59: Variable Based on Water Use. | S59: 46102 | T59: 2179 | U59: 13 | V59: 3 | W59: 440 | X59: 4 | Y59: 32 | Z59: 122.33 | AA59: 128 | AC59: 380 | AE59: 3450 | AF59: 2725 | AG59: 2725 | AK59: 70 | AL59: 5 | AM59: 5 | AN59: 20 | AQ59: Yes | AR59: x | AS59: x | AT59: x | AU59: Volume | AX59: x | AY59: No | AZ59: 21535000 | BA59: N/A | BB59: 794500 | BC59: x | BG59: Yes | BH59: 15.47 | BI59: 20.864 | BJ59: No | BK59: No | BL59: No | BM59: San Diego Metropolitan | DC59: Yes | DD59: www.chulavistaca.gov
A60: Circle Oaks County Water District | B60: Napa | C60: 94558 | D60: Napa | E60: 500 | F60: 38500 | G60: Monthly | H60: Flat Rate | S60: 186 | Y60: 52.15 | AE60: N/A | AK60: 100 | AQ60: No | AV60: x | AW60: x | AY60: No | AZ60: 9699.9 | BA60: 15050 | BC60: x | BE60: x | BF60: x | BG60: No | BH60: 33000 | BI60: 72000 | BJ60: Yes | BN60: Sewer Ponds- 3900 Monticello Road, Napa, CA 94558 | BZ60: x | CF60: Facultative ponds (3)- no discharge | CV60: No | CY60: Yes | DA60: 94-097 | DC60: No
A61: Clearlake Oaks County Water District | B61: Clearlake Oaks | C61: 95423 | D61: Lake | E61: 1675 | F61: 29057 | G61: Monthly | H61: Variable Based on Water Use. | I61: Monthly | J61: Variable Based on Water Use. | K61: Monthly | L61: Variable Based on Water Use. | M61: Monthly | N61: Variable Based on Water Use. | O61: Monthly | P61: Variable Based on Water Use. | Q61: Monthly | R61: Variable Based on Water Use. | S61: 1582 | T61: 30 | U61: 9 | W61: 54 | Y61: 45.93 | Z61: 45.93 | AA61: 37.65 | AC61: 47.13 | AE61: 6000 | AF61: 6000 | AG61: 6000 | AI61: 8000 | AK61: 95 | AN61: 5 | AQ61: No | AV61: x | AY61: No | AZ61: 1050850 | BC61: x | BD61: x | BE61: x | BH61: 0.23 | BJ61: No | BN61: Clearlake Oaks County Water District | BZ61: x | CC61: x | CD61: x | CG61: x | CI61: Secondary Clarifier, partially mixed lagoons | CJ61: x | CQ61: x | CR61: x | CV61: No | CY61: Yes | DA61: R5-98-211 | DC61: Yes
A62: Clovis, City of | B62: Clovis | C62: 93611 | D62: Fresno | E62: 102188 | F62: 63983 | G62: Bimonthly | H62: Flat Rate | I62: Bimonthly | J62: Flat Rate | K62: Bimonthly | L62: Flat Rate | M62: Bimonthly | N62: Variable Based on Water Use. | O62: Bimonthly | P62: Variable Based on Water Use. | Q62: Bimonthly | R62: Flat Rate | S62: 27342 | T62: 817 | U62: 7 | V62: 35 | W62: 1072 | X62: 30 | Y62: 28.2 | Z62: 23.54 | AA62: 23.54 | AB62: 2077 | AC62: 150.05 | AD62: 728.42 | AE62: 9002 | AF62: 8192 | AG62: 8192 | AH62: 9002 | AI62: 9002 | AJ62: 9002 | AK62: 75.4 | AL62: 24.6 | AQ62: Yes | AR62: x | AT62: x | AV62: x | AY62: No | AZ62: 10146400 | BA62: 7990700 | BB62: 268000 | BC62: x | BD62: x | BE62: x | BF62: x | BG62: No | BH62: 7 | BI62: 12.1 | BJ62: No | BK62: No | BN62: Clovis Sewage Treatment and Water Reuse Facility, 9700 Ashlan Avenue. | CC62: x | CD62: x | CG62: x | CL62: x | CN62: Filtration | CO62: Membrane | CQ62: x | CR62: x | CT62: x | CV62: Yes | CW62: 2400 | CX62: 60 | CY62: Yes | DA62: R5-2014-0005 | DB62: CA0085235 | DC62: Yes | DD62: cityofclovis.com | DE62: City of Fresno provides treatment for a large portion of the City's wastewater and also provides the pretreatment program.
A63: Coalinga, City of | B63: Coalinga | C63: 93210 | D63: Fresno | E63: 13500 | F63: 45821 | G63: Monthly | H63: Flat Rate | I63: Monthly | J63: Flat Rate | K63: Monthly | L63: Flat Rate | M63: Monthly | N63: Variable Based on Water Use. | O63: Monthly | P63: Variable Based on Water Use. | Q63: Monthly | R63: Variable Based on Water Use. | S63: 3150 | T63: 819 | U63: 257 | V63: 0 | W63: 198 | X63: 2 | Y63: 15.68 | Z63: 15.68 | AA63: 15.68 | AB63: N/A | AC63: 116.5 | AD63: 11695 | AE63: 125 | AF63: 125 | AG63: 125 | AH63: Based on projected use | AI63: Based on projected use | AJ63: Based on projected use | AK63: 98% | AL63: 2% | AQ63: Yes | AV63: x | AY63: No | AZ63: 1429000 | BA63: 149000 | BB63: 300000 | BC63: x | BE63: x | BF63: x | BG63: No | BH63: 0.9 | BI63: 1.34 | BJ63: No | BK63: No | BN63: Coalinga Wastewater Treatment Plant, 30500 Jayne Avenue, Coalinga, CA 93210 | BZ63: x | CC63: x | CD63: x | CE63: x | CI63: Aerated facultative lagoons | CM63: N/A | CQ63: x | CS63: x | CU63: N/A | CV63: No | CW63: ~ 1,000 acre-feet per year | CX63: None yet | CY63: Yes | DA63: R5-94-184 | DC63: No | DE63: Long-range plan is to treat wastewater to tertiary levels and disinfect in order for the reclaimed water to have other uses in place of potable or irrigation water.
A64: Colusa, City of | B64: Colusa | C64: 95932 | D64: Colusa | E64: 6387 | F64: 32750 | G64: Monthly | H64: Flat Rate/Variable Based | I64: Monthly | J64: Flat Rate/Variable Based | K64: Monthly | L64: Flat Rate/Variable Based | M64: Monthly | N64: Flat Rate/Variable Based | O64: Monthly | P64: Flat Rate/Variable Based | Q64: Monthly | R64: Flat Rate/Variable Based | S64: 1589 | T64: 104 | U64: 0 | V64: 0 | W64: 224.19 | X64: 962.27 | Y64: 77.75 | Z64: 459.78 | AA64: 0 | AB64: 0 | AC64: 224.19 | AD64: 962.27 | AE64: 25 | AF64: 25 | AG64: 25 | AH64: 25 | AI64: 25 | AJ64: 25 | AK64: 99.9 | AL64: 0.1 | AQ64: No | AV64: x | AY64: Yes | AZ64: 1686661 | BA64: 797994 | BB64: 494000 | BC64: x | BD64: x | BE64: x | BF64: x | BG64: No | BH64: 0.44 | BI64: 0.7 | BJ64: No | BN64: Wastewater Treatment Plant, 2820 Will S Green ave | CA64: x | CC64: x | CG64: x | CL64: x | CN64: Filtration | CU64: Aerobic Solid Storage Lagoon | CV64: No | CY64: Yes | DB64: CA0078999/R5-2008-0184 | DC64: No
A65: Concord, City of | B65: Concord | C65: 94520 | D65: Contra Costa | E65: 122000 | F65: 82218 | G65: Annual | H65: Flat Rate | I65: Annual | J65: Flat Rate | K65: Annual | L65: Flat Rate | M65: Annual | N65: Variable Based on Water Use. | O65: Annual | P65: Variable Based on Water Use. | Q65: Annual | R65: Variable Based on Water Use. | S65: 34557 | V65: 1 | W65: 1055 | X65: 0 | Y65: 33.5 | Z65: 33.5 | AA65: 33.5 | AB65: 127.66 | AC65: 270.43 | AD65: 0 | AE65: 5043 | AF65: 3731 | AG65: 5043 | AH65: determined individually | AI65: $1,009 per water fixture | AJ65: determined individually | AK65: 97 | AL65: 2 | AM65: 0 | AN65: 0 | AO65: 1 | AP65: 0 | AQ65: No | AV65: x | AY65: N/A | AZ65: 4896570 | BA65: 1610064 | BB65: 750000 | BC65: x | BG65: Yes | BH65: 10.32 | BI65: 30 | BJ65: No | BK65: No | CY65: No | CZ65: Central Contra Costa Sanitation District | DC65: Yes | DD65: http://www.ci.concord.ca.us/pdf/dept/finance/budget/budget2014_2015/CIP.pdf
A66: Consolidated Sewer Maintenance District | B66: Alhambra | C66: 91802 | D66: Los Angeles | E66: 2000000 | F66: 56000 | G66: Annual | H66: Flat Rate | I66: Annual | J66: Flat Rate | K66: Annual | L66: Flat Rate | M66: Annual | N66: Flat Rate | O66: Annual | P66: Flat Rate | Q66: Annual | R66: Flat Rate | S66: 436527 | T66: 78248 | U66: 14879 | V66: 67281 | W66: 49066 | X66: 11753 | Y66: 4.21 | Z66: 4.21 | AA66: 4.21 | AB66: 4.21 | AC66: 4.21 | AD66: 4.21 | AE66: 0 | AF66: 0 | AG66: 0 | AH66: 0 | AI66: 0 | AJ66: 0 | AK66: 100 | AL66: 0 | AM66: 0 | AN66: 0 | AO66: 0 | AP66: 0 | AQ66: No | AX66: x | AY66: No | AZ66: 46476000 | BA66: 0 | BB66: 20325000 | BC66: x | BG66: Yes | BH66: 200 | BJ66: No | DC66: No | DE66: The information provided herein is applicable to the following 36 Consolidated Sewer Maintenance District member cities: Agoura Hills, Artesia, Bell Gardens, Bellflower, Baldwin Park, Bradbury, Calabasas, Carson, Commerce, Cudahy, Diamond Bar, Duarte, Glendora, Hawaiian Gardens, Hidden Hills, Industry, Lakewood, La Mirada, Lawndale, La Canada - Flintridge, La Habra Heights, Lomita, Malibu, Paramount, Palos Verdes Estates, Rolling Hills Estates, Rolling Hills, Rosemead, Rancho Palos Verdes, South El Monte, Santa Fe Springs, San Dimas, Santa Clarita, Temple City, Walnut, Westlake Village
A67: Corning, City of | B67: Corning | C67: 96021 | D67: Tehama | E67: 7663 | F67: 38225 | G67: Monthly | H67: Flat Rate | I67: Monthly | J67: Flat Rate | K67: Monthly | L67: Flat Rate | O67: Monthly | P67: Flat Rate/Variable Based | Q67: Monthly | R67: Flat Rate/Variable Based | S67: 1910 | T67: 108 | V67: 0 | W67: 246 | X67: 8 | Y67: 33.64 | Z67: 33.64 | AA67: 33.64 | AC67: 67.65 | AD67: 29.29 | AE67: 5720 | AF67: 655 | AG67: 655 | AI67: 655 | AJ67: 655 | AK67: 99 | AL67: 0.5 | AO67: 0.5 | AQ67: No | AV67: x | AW67: x | AY67: No | AZ67: 829000 | BA67: 370000 | BB67: 75000 | BG67: Yes | BH67: 0.7 | BI67: 1.4 | BN67: Corning Wastewater Treatment Plant, Corning CA | CA67: x | CC67: x | CI67: Activated Sludge | CJ67: x | CV67: No | CY67: Yes | DB67: CA 0004995 | DC67: No
A68: Corona, City of (Department of Water & Power) | B68: Corona | C68: 92882 | D68: Riverside | E68: 159503 | F68: 77123 | G68: Monthly | H68: Flat Rate/Variable Based | I68: Monthly | J68: Flat Rate/Variable Based | K68: Monthly | L68: Flat Rate/Variable Based | M68: Monthly | N68: Flat Rate/Variable Based | O68: Monthly | P68: Flat Rate/Variable Based | S68: 33691 | T68: 1945 | V68: 632 | W68: 1411 | X68: 139 | Y68: 45.6 | Z68: 45.6 | AA68: 45.6 | AB68: 173.85 | AC68: 185.04 | AD68: 275.78 | AE68: 3396 | AF68: 2716 | AG68: 3396 | AH68: 11320 | AI68: 11433.2 | AJ68: varies | AK68: 93.1 | AL68: 4 | AM68: 0.6 | AO68: 1 | AP68: 1.4, Pretreatment Proh; Sewer Construction fee. Ret'dCk/Penalties/FNFees, & MIsc Rev. | AQ68: No | AV68: x | AY68: No | AZ68: 26698769.99 | BA68: 0 | BB68: 28864094.47 | BC68: x | BE68: x | BG68: Yes | BH68: 12.5 | BI68: 15.5 | BJ68: No | BN68: Water Reclamation Facility #'s 1,2, &3: #1 -2205 Railroad St. Corona, CA 92880; # 2 - 650 E. Harrison St., Corona, CA | CA68: x | CB68: x | CC68: x | CD68: x | CE68: x | CG68: x | CJ68: x | CN68: Filtration | CO68: Membrane & sand | CP68: x | CQ68: x | CR68: x | CS68: x | CV68: Yes | CW68: 1508.5 | CX68: 1508.5 | CY68: Yes | DA68: R8-2011-0015 | DB68: CA8000-383, CA8000-395 | DC68: Yes | DD68: www.discovercorona.com | DE68: For question III, Section I, customers are billed a flat fee (ready to serve charge) and a variable charge based on water consumption.
A69: Costa Mesa Sanitary District | B69: Costa Mesa | C69: 92627 | D69: Orange | E69: 116700 | F69: 65532 | G69: Annual | H69: Flat Rate | I69: Annual | J69: Flat Rate | M69: Annual | N69: Flat Rate/Variable Based | O69: Annual | P69: Flat Rate/Variable Based | S69: 17788 | T69: 5922 | V69: 789 | W69: 1577 | Y69: 7.25 | Z69: 4.26 | AB69: 100.3 | AC69: 66.87 | AE69: 120 | AF69: 120 | AH69: 120 | AI69: 120 | AK69: 97 | AL69: 1 | AO69: 1 | AP69: 1 | AQ69: No | AX69: x | AY69: No | AZ69: 3652080 | BA69: 0 | BB69: 1787000 | BC69: x | BG69: No | BH69: 10.1 | BJ69: No | BK69: No | CY69: No | CZ69: Orange County Sanitation District | DC69: No
A70: Cotati, City of | B70: Cotati | C70: 94931 | D70: Sonoma | E70: 7265 | F70: 64107 | G70: Bimonthly | H70: Variable Based on Water Use. | I70: Bimonthly | J70: Variable Based on Water Use. | M70: Bimonthly | N70: Variable Based on Water Use. | O70: Bimonthly | P70: Variable Based on Water Use. | Q70: Bimonthly | R70: Variable Based on Water Use. | S70: 2078 | T70: 103 | U70: N/A | V70: N/A | W70: 166 | X70: N/A | Y70: 82.14 | Z70: 1724.94 | AA70: N/A | AB70: 494.94 | AC70: 359.62 | AD70: N/A | AE70: 7615 | AF70: 40588 | AG70: N/A | AH70: 40588 | AI70: 12717 | AJ70: N/A | AK70: 84 | AL70: 10 | AQ70: No | AX70: x | AY70: No | AZ70: 1.7 million | BA70: 0 | BB70: 370000 | BC70: x | BG70: No | BH70: 0.46 | BI70: 0.76 | BJ70: No | BK70: No | BL70: No | BM70: City of Santa Rosa Waste Water Treatment Plant | DC70: No
A71: County of Santa Barbara CSA 12 | B71: Santa Maria | C71: 93455 | D71: Santa Barbara | E71: 2381 | F71: 84918 | G71: Annual | H71: Flat Rate | O71: Annual | P71: Flat Rate | S71: 818 | W71: 3 | Y71: 67.5 | AC71: 135 | AE71: 5633 | AK71: 100 | AQ71: No | AX71: x | AY71: No | AZ71: 600960 | BA71: 0 | BB71: 60000 | BC71: x | BG71: No | BH71: 0.16 | BJ71: No | BN71: County Service Area 12 sewer system - Mission Canyon area of unincorporated Santa Barbara | CY71: No | CZ71: City of Santa Barbara | DC71: No | DE71: County Service Area 12 sewer system is operated by the County of Santa Barbara Public Works Department. The County Health Department does have a septic tank pumping fee used for septic tank pumping rebates and data tracking.
A72: Los Angeles County Sanitation District No. 14 | B72: Whittier | C72: 90601 | D72: Los Angeles | E72: 197512 | F72: 59271 | G72: Annual | H72: Flat Rate | I72: Annual | J72: Flat Rate | K72: Annual | L72: Flat Rate | M72: Quarterly | N72: Variable Based on Water Use. | O72: Annual | P72: Flat Rate | Q72: Annual | R72: Flat Rate | S72: 45910 | T72: 884 | U72: 715 | V72: 10 | W72: 1437 | Y72: 41.33 | Z72: 24.8 | AA72: 24.8 | AB72: 115.94 | AC72: 863.64 | AE72: 6190 | AF72: 3174 | AG72: 3174 | AH72: 526.5 | AI72: 10931.82 | AK72: 88 | AL72: 3 | AM72: 6 | AN72: 2 | AO72: 1 | AQ72: Yes | AS72: x | AT72: x | AV72: x | AY72: No | AZ72: 12690000 | BA72: 18431000 | BB72: 11177000 | BD72: x | BE72: x | BF72: x | BG72: Yes | BH72: 13.4 | BI72: 18 | BJ72: No | BN72: Lancaster Water Reclamation Plant, 1865 West Ave "D", Lancaster, California | CB72: x | CC72: x | CD72: x | CE72: x | CG72: x | CM72: Sodium Hypochlorite | CN72: Filtration | CO72: chemical coagulation and dual-medi filtration | CP72: x | CQ72: x | CR72: x | CS72: x | CT72: x | CW72: 10623 | CX72: 5046 | CY72: Yes | DA72: R6V-2002-0053, R6V-2002-053A1, R6V-2002-0053A2, R6V-2006-0051 | DC72: No | DE72: Note 1- Institutional units were included in Commercial units
A73: Los Angeles County Sanitation District No. 16 | B73: Whittier | C73: 90601 | D73: Los Angeles | E73: 268140 | F73: 73829 | G73: Annual | H73: Flat Rate | I73: Annual | J73: Flat Rate | K73: Annual | L73: Flat Rate | M73: Quarterly | N73: Variable Based on Water Use. | O73: Annual | P73: Flat Rate | Q73: Annual | R73: Flat Rate | S73: 40422 | T73: 8737 | U73: 0 | V73: 15 | W73: 3960 | Y73: 11.83 | Z73: 7.1 | AA73: 7.1 | AB73: 57.51 | AC73: 253.29 | AE73: 4220 | AF73: 2532 | AG73: 2532 | AH73: 506 | AI73: 7531.71 | AK73: 72 | AL73: 7 | AM73: 3 | AN73: 16 | AO73: 2 | AQ73: Yes | AS73: x | AT73: x | AV73: x | AY73: No | AZ73: 14556000 | BA73: 3466000 | BB73: 5798000 | BD73: x | BE73: x | BF73: x | BG73: Yes | BH73: Note-2 in Comments | BJ73: No | CV73: No | CY73: Yes | DC73: No | DE73: Note 1- Institutional units were included in Commercial units Note 2- District No.16 is part of Joint Outfall System (JOS) which is consists of seven (7) treatment plants. See separate sheet for each individual plant’s responsibilities and treatment process.
A74: Los Angeles County Sanitation District No. 17 | B74: Whittier | C74: 90601 | D74: Los Angeles | E74: 55678 | F74: 85287 | G74: Annual | H74: Flat Rate | I74: Annual | J74: Flat Rate | K74: Annual | L74: Flat Rate | M74: Quarterly | N74: Variable Based on Water Use. | O74: Annual | P74: Flat Rate | Q74: Annual | R74: Flat Rate | S74: 10997 | T74: 964 | U74: 1 | V74: 0 | W74: 381 | Y74: 11.92 | Z74: 7.15 | AA74: 7.15 | AB74: 57.92 | AC74: 255.08 | AE74: 4220 | AF74: 2532 | AG74: 2532 | AH74: 551 | AI74: 8160.47 | AK74: 76 | AL74: 7 | AM74: 1 | AN74: 14 | AO74: 2 | AQ74: Yes | AS74: x | AT74: x | AV74: x | AY74: No | AZ74: 1866000 | BA74: 446000 | BB74: 734000 | BD74: x | BE74: x | BF74: x | BG74: Yes | BH74: Note 2 in comments | CV74: No | CY74: Yes | DC74: No | DE74: Note 1- Institutional units were included in Commercial units Note 2- District No.17 is part of Joint Outfall System (JOS) which is consists of seven (7) treatment plants. See separate sheet for each individual plant’s responsibilities and treatment process.
A75: Los Angeles County Sanitation District No. 18 | B75: Whittier | C75: 90601 | D75: Los Angeles | E75: 338844 | F75: 70389 | G75: Annual | H75: Flat Rate | I75: Annual | J75: Flat Rate | K75: Annual | L75: Flat Rate | M75: Quarterly | N75: Variable Based on Water Use. | O75: Annual | P75: Flat Rate | Q75: Annual | R75: Flat Rate | S75: 68272 | T75: 3449 | U75: 18 | V75: 108 | W75: 4174 | Y75: 13 | Z75: 7.8 | AA75: 7.8 | AB75: 61.18 | AC75: 297.83 | AE75: 4590 | AF75: 2754 | AG75: 2754 | AH75: 551 | AI75: 8160.47 | AK75: 68 | AL75: 7 | AM75: 12 | AN75: 12 | AO75: 1 | AQ75: Yes | AS75: x | AT75: x | AV75: x | AY75: No | AZ75: 19014000 | BA75: 3501000 | BB75: 7186000 | BD75: x | BE75: x | BF75: x | BG75: Yes | BH75: Note 2 in Comments | BJ75: No | CV75: No | CY75: Yes | DC75: No | DE75: Note 1- Institutional units were included in Commercial units Note 2- District No.18 is part of Joint Outfall System (JOS) which is consists of seven (7) treatment plants. See separate sheet for each individual plant’s responsibilities and treatment process.
A76: Los Angeles County Sanitation District No. 19 | B76: Whittier | C76: 90601 | D76: Los Angeles | E76: 92550 | F76: 80543 | G76: Annual | H76: Flat Rate | I76: Annual | J76: Flat Rate | K76: Annual | L76: Flat Rate | M76: Quarterly | N76: Variable Based on Water Use. | O76: Annual | P76: Flat Rate | Q76: Annual | R76: Flat Rate | S76: 23478 | T76: 1002 | U76: 6 | V76: 9 | W76: 589 | Y76: 12.92 | Z76: 7.75 | AA76: 7.75 | AB76: 62.78 | AC76: 282.06 | AE76: 4440 | AF76: 2664 | AG76: 2664 | AH76: 553 | AI76: 7904.29 | AK76: 72 | AL76: 8 | AM76: 4 | AN76: 14 | AO76: 2 | AQ76: Yes | AS76: x | AT76: x | AV76: x | AY76: No | AZ76: 5206000 | BA76: 1055000 | BB76: 1954000 | BD76: x | BE76: x | BF76: x | BG76: Yes | BH76: Note 2 in Comments | BJ76: No | CV76: No | CY76: Yes | DC76: No | DE76: Note 1- Institutional units were included in Commercial units Note 2- District No.19 is part of Joint Outfall System (JOS) which is consists of seven (7) treatment plants. See separate sheet for each individual plant’s responsibilities and treatment process.
A77: Los Angeles County Sanitation District No. 2 | B77: Whittier | C77: 90601 | D77: Los Angeles | E77: 691957 | F77: 51505 | G77: Annual | H77: Flat Rate | I77: Annual | J77: Flat Rate | K77: Annual | L77: Flat Rate | M77: Quarterly | N77: Variable Based on Water Use. | O77: Annual | P77: Flat Rate | Q77: Annual | R77: Flat Rate/Variable Based | S77: 84963 | T77: 20001 | U77: 102 | V77: 174 | W77: 10238 | Y77: 12.92 | Z77: 7.75 | AA77: 7.75 | AB77: 23.25 | AC77: 280.43 | AE77: 4560 | AF77: 2736 | AG77: 2736 | AH77: 547 | AI77: 8108.45 | AK77: 66 | AL77: 7 | AM77: 15 | AN77: 10 | AO77: 2 | AQ77: Yes | AS77: x | AT77: x | AV77: x | AY77: No | AZ77: 34798000 | BA77: 6314000 | BB77: 15109000 | BD77: x | BE77: x | BF77: x | BG77: Yes | BH77: Note 2 in Comments | BJ77: No | BN77: Note 2 in Comments | CV77: No | CY77: Yes | DC77: No | DE77: Note 1- Institutional units were included in Commercial units. Note 2- District No.1 is part of Joint Outfall System (JOS) which consists of seven (7) treatment plants. See separate sheet for each individual plant's responsibilities and treatment profess.
A78: Los Angeles County Sanitation District No. 20 | B78: Whittier | C78: 90601 | D78: Los Angeles | E78: 127655 | F78: 49667 | G78: Annual | H78: Flat Rate | I78: Annual | J78: Flat Rate | K78: Annual | L78: Flat Rate | M78: Quarterly | N78: Variable Based on Water Use. | O78: Annual | P78: Flat Rate | Q78: Annual | R78: Flat Rate | S78: 29630 | T78: 482 | U78: 234 | V78: 2 | W78: 791 | Y78: 44.58 | Z78: 26.75 | AA78: 26.75 | AB78: 121.86 | AC78: 929.53 | AE78: 6190 | AF78: 3714 | AG78: 3714 | AH78: 526.5 | AI78: 10931.82 | AK78: 93 | AL78: 1 | AM78: 2 | AN78: 3 | AO78: 1 | AQ78: Yes | AS78: x | AT78: x | AV78: x | AY78: No | AZ78: 10646000 | BA78: 12524000 | BB78: 1797000 | BD78: x | BE78: x | BF78: x | BG78: Yes | BH78: 9.23 | BI78: 12 | BJ78: No | BN78: Palmdale Water Reclamation Plant, 39300 30th Street East, Plamdale, California | CB78: x | CC78: x | CD78: x | CE78: x | CG78: x | CM78: Sodium Hypochlorite | CN78: Filtration | CO78: Cloth-Media Filtration | CP78: x | CQ78: x | CR78: x | CS78: x | CT78: x | CV78: No | CW78: 8583 | CX78: 79 | CY78: Yes | DA78: R6V-2011-0012 | DC78: No | DE78: Note 1- Institutional units were included in Commercial units
A79: Los Angeles County Sanitation Distirct No. 21 | B79: Whittier | C79: 90601 | D79: Los Angeles | E79: 410055 | F79: 70707 | G79: Annual | H79: Flat Rate | I79: Annual | J79: Flat Rate | K79: Annual | L79: Flat Rate | M79: Annual | N79: Variable Based on Water Use. | O79: Annual | P79: Flat Rate | Q79: Annual | R79: Flat Rate | S79: 82500 | T79: 3200 | U79: 221 | V79: 73 | W79: 4439 | Y79: 12.75 | Z79: 7.65 | AA79: 7.65 | AB79: 61.97 | AC79: 272.91 | AE79: 4320 | AF79: 2592 | AG79: 2592 | AH79: 518 | AI79: 7703.34 | AK79: 68 | AL79: 8 | AM79: 12 | AN79: 10 | AO79: 2 | AQ79: Yes | AS79: x | AT79: x | AV79: x | AY79: No | AZ79: 22011000 | BA79: 3964000 | BB79: 8208000 | BD79: x | BE79: x | BF79: x | BG79: No | BJ79: No | CV79: No | CY79: Yes | DC79: No | DE79: Note 1-Institutional were included in Commercial units Note 2-District No. 21 is part of Joint Outfall System (JOS) which consists of seven treatment plants. See separate sheet for each plant's responsibilities and treatment process
A80: Los Angeles County Sanitation District No. 22 | B80: Whittier | C80: 90601 | D80: Los Angeles | E80: 333742 | F80: 71032 | G80: Annual | H80: Flat Rate | I80: Annual | J80: Flat Rate | K80: Annual | L80: Flat Rate | M80: Quarterly | N80: Variable Based on Water Use. | O80: Annual | P80: Flat Rate | Q80: Annual | R80: Flat Rate | S80: 66562 | T80: 2532 | U80: 49 | V80: 51 | W80: 3786 | Y80: 12.67 | Z80: 7.6 | AA80: 7.6 | AB80: 61.56 | AC80: 271.13 | AE80: 4450 | AF80: 2670 | AG80: 2670 | AH80: 534 | AI80: 7918.82 | AK80: 68 | AL80: 10 | AM80: 10 | AN80: 10 | AO80: 2 | AQ80: Yes | AS80: x | AT80: x | AV80: x | AY80: No | AZ80: 18488000 | BA80: 3379000 | BB80: 6990000 | BD80: x | BE80: x | BF80: x | BG80: Yes | BH80: Note 2 in Comments | BJ80: No | CV80: No | CY80: Yes | DC80: No | DE80: Note 1- Institutional units were included in Commercial units Note 2- District 22 is part of Joint Outfall System (JOS) which consists of 7 treatment plants. See separate sheet for each individual plant's responsibilities and treatment process.
A81: Los Angeles County Sanitation District No. 23 | B81: Whittier | C81: 90601 | D81: Los Angeles | E81: 122 | F81: 32188 | G81: Annual | H81: Flat Rate | I81: Annual | J81: Flat Rate | K81: Annual | L81: Flat Rate | M81: Quarterly | N81: Variable Based on Water Use. | O81: Annual | P81: Flat Rate | Q81: Annual | R81: Flat Rate | S81: 10 | T81: 1 | U81: 0 | V81: 37 | W81: 487 | Y81: 10 | Z81: 6 | AA81: 6 | AB81: 48 | AC81: 214.05 | AE81: 3800 | AF81: 2280 | AG81: 2280 | AH81: 456 | AI81: 6812 | AK81: 14 | AL81: 6 | AM81: 70 | AN81: 7 | AO81: 3 | AQ81: Yes | AS81: x | AT81: x | AV81: x | AY81: No | AZ81: 3300000 | BA81: 593000 | BB81: 949000 | BD81: x | BE81: x | BF81: x | BG81: Yes | BH81: (Note 2) | BJ81: No | CV81: No | CY81: Yes | DC81: No | DE81: Note 1- Institutional units were included in Commericial units Note 2- District No. 23 is part of Joint Outfall System (JOS) which consists of 7 treatment plants. See separate sheet for each individual plant's responsibilities and treatment process
A82: Los Angeles County Sanitation District No. 27 | B82: Whittier | C82: 90601 | D82: Los Angeles | E82: 2241 | F82: 147557 | Y82: N/A | Z82: N/A | AA82: N/A | AB82: N/A | AC82: N/A | AD82: N/A | AE82: 1460 | AF82: 905.2 | AG82: 905.2 | AH82: see attached | AI82: see attached | AN82: 99 | AO82: 1 | AQ82: Yes | AS82: x | AT82: x | AV82: x | AY82: No | AZ82: 95000 | BA82: 64000 | BB82: 46000 | BD82: x | BG82: Yes | BH82: 0.144 | BJ82: No | BL82: No | BM82: City of Los Angeles | DC82: No | DE82: Note 1-District 27 does not have any service charge rate in effect as its other revenues have been sufficient to meet expenses.
A83: Los Angeles County Sanitation District No. 28 | B83: Whittier | C83: 90601 | D83: Los Angeles | E83: 11447 | F83: 138187 | G83: Annual | H83: Flat Rate | I83: Annual | J83: Flat Rate | K83: Annual | L83: Flat Rate | M83: Quarterly | N83: Variable Based on Water Use. | O83: Annual | P83: Flat Rate | Q83: Annual | R83: Flat Rate | S83: 3517 | T83: 9 | U83: 0 | V83: 0 | W83: 151 | Y83: 11 | Z83: 6.6 | AA83: 6.6 | AB83: 46.2 | AC83: 271.66 | AE83: 3807 | AF83: 2284 | AG83: 2284 | AH83: 438 | AI83: 8157.11 | AK83: 62 | AL83: 4 | AM83: 1 | AN83: 30 | AO83: 3 | AQ83: Yes | AS83: x | AT83: x | AV83: x | AY83: No | AZ83: 611000 | BA83: 519000 | BB83: 239000 | BD83: x | BE83: x | BF83: x | BG83: Yes | BH83: Note 2 in Comments | BJ83: No | CV83: No | CY83: Yes | DE83: Note 1-Institutional Units were included in Commercial units Note 2-District No. 28 is part of Joint Outfall System (JOS) which consists of seven treatment plants. See separate sheet for each individual plant's responsibilities and treatment process.
A84: Los Angeles County Sanitation District No. 29 | B84: Whittier | C84: 90601 | D84: Los Angeles | E84: 11411 | F84: 69445 | G84: Annual | H84: Flat Rate | I84: Annual | J84: Flat Rate | K84: Annual | L84: Flat Rate | M84: Quarterly | N84: Variable Based on Water Use. | O84: Annual | P84: Flat Rate | Q84: Annual | R84: Flat Rate | S84: 771 | T84: 534 | U84: 0 | V84: 9 | W84: 573 | Y84: 28.31 | Z84: 16.99 | AA84: 16.99 | AB84: 137.6 | AC84: 606.03 | AE84: 4530 | AF84: 2718 | AG84: 2718 | AH84: 544 | AI84: 7997.45 | AK84: 88 | AL84: 3 | AM84: 3 | AN84: 4 | AO84: 2 | AQ84: Yes | AS84: x | AT84: x | AV84: x | AY84: No | AZ84: 1182000 | BA84: 153000 | BB84: 530000 | BC84: x | BD84: x | BE84: x | BF84: x | BG84: Yes | BH84: Note 2 in Comments | BJ84: No | CV84: No | CY84: Yes | DC84: No | DE84: Note 1-Institutional units were included in Commercial units Note 2-District No. 29 is part of Joint Outfall System (JOS) which consists of 7 treatment plants. See separate sheet for each individual plant's responsibilities and treatment process
A85: Los Angeles County Sanitation District No. 4 | B85: Whittier | C85: 90601 | D85: Los Angeles | E85: 35723 | F85: 55115 | G85: Annual | H85: Flat Rate | I85: Annual | J85: Flat Rate | K85: Annual | L85: Flat Rate | M85: Quarterly | N85: Variable Based on Water Use. | O85: Annual | P85: Flat Rate | Q85: Annual | R85: Flat Rate | S85: 1390 | T85: 984 | U85: 0 | V85: 3 | W85: 1836 | Y85: 12.5 | Z85: 7.5 | AA85: 7.5 | AB85: 60.75 | AC85: 267.56 | AE85: 1710 | AF85: 1060.2 | AG85: 1060.2 | AK85: 79 | AL85: 6 | AM85: 0 | AN85: 9 | AO85: 6 | AQ85: Yes | AS85: x | AT85: x | AV85: x | AY85: No | AZ85: 1970000 | BA85: 324000 | BB85: 1769000 | BD85: x | BF85: x | BG85: Yes | BH85: 1.463 | BJ85: No | BL85: No | BM85: City of Los Angeles | DC85: No | DE85: Note 1- Institutional units were included in Commercial units.
A86: Los Angeles County Sanitation District No. 5 | B86: Whittier | C86: 90601 | D86: Los Angeles | E86: 743064 | F86: 65248 | G86: Annual | H86: Flat Rate | I86: Annual | J86: Flat Rate | K86: Annual | L86: Flat Rate | M86: Quarterly | N86: Variable Based on Water Use. | O86: Annual | P86: Flat Rate | Q86: Annual | R86: Flat Rate | S86: 99378 | T86: 21507 | U86: 80 | V86: 115 | W86: 9076 | Y86: 11.75 | Z86: 7.05 | AA86: 7.05 | AB86: 57.11 | AC86: 251.51 | AE86: 4610 | AF86: 2766 | AG86: 2766 | AH86: 553 | AI86: 8382.81 | AK86: 66 | AL86: 7 | AM86: 11 | AN86: 15 | AO86: 1 | AQ86: Yes | AS86: x | AT86: x | AV86: x | AY86: No | AZ86: 40661000 | BA86: 8920000 | BB86: 15310000 | BD86: x | BE86: x | BF86: x | BG86: Yes | BH86: Note 2 in Comments | BJ86: No | CV86: No | CY86: Yes | DC86: No | DE86: Note 1- Institutional units were included in Commercial units. Note 2- District No.5 is part of Joint Outfall System (JOS) which consists of seven (7) treatment plants. See separate sheet for each individual plant's responsibilities and treatment profess.
A87: Los Angeles County Sanitation District No. 8 | B87: Whittier | C87: 90601 | D87: Los Angeles | E87: 140803 | F87: 64867 | G87: Annual | H87: Flat Rate | I87: Annual | J87: Flat Rate | K87: Annual | L87: Flat Rate | M87: Quarterly | N87: Variable Based on Water Use. | O87: Annual | P87: Flat Rate | Q87: Annual | R87: Flat Rate | S87: 26181 | T87: 1094 | U87: 271 | V87: 128 | W87: 2997 | Y87: 12.83 | Z87: 7.7 | AA87: 7.7 | AB87: 62.37 | AC87: 274.7 | AE87: 4530 | AF87: 2718 | AG87: 2718 | AH87: 544 | AI87: 8250.62 | AK87: 40 | AL87: 7 | AM87: 45 | AN87: 7 | AO87: 1 | AQ87: Yes | AS87: x | AT87: x | AV87: x | AY87: No | AZ87: 16231000 | BA87: 2533000 | BB87: 5121000 | BD87: x | BE87: x | BF87: x | BG87: Yes | BH87: Note 2 in Comments | BJ87: No | CV87: No | CY87: Yes | DC87: No | DE87: Note 1- Institutional units were included in Commercial units. Note 2- District No.8 is part of Joint Outfall System (JOS) which consists of seven (7) treatment plants. See separate sheet for each individual plant's responsibilities and treatment profess.
A88: Los Angeles County Sanitation District No. 9 | B88: Whittier | C88: 90601 | D88: Los Angeles | E88: 2324 | F88: 66875 | G88: Annual | H88: Flat Rate | I88: Annual | J88: Flat Rate | K88: Annual | L88: Flat Rate | M88: Quarterly | N88: Variable Based on Water Use. | O88: Annual | P88: Flat Rate | Q88: Annual | R88: Flat Rate | S88: 267 | T88: 72 | U88: 0 | V88: 0 | W88: 82 | Y88: 6.5 | Z88: 3.9 | AA88: 3.9 | AB88: 31.59 | AC88: 139.13 | AE88: 1400 | AF88: 868 | AG88: 868 | AK88: 37 | AL88: 3 | AM88: 0 | AN88: 39 | AO88: 21 | AQ88: Yes | AS88: x | AT88: x | AV88: x | AY88: No | AZ88: 128000 | BA88: 46000 | BB88: 57000 | BH88: 0.245 | BJ88: No | BL88: No | BM88: City of Los Angeles | DC88: No | DE88: Note 1- Institutional units were included in Commercial units. Note 2- The Local sewer system is owned by County of Los Angeles, but the major trunk sewer and treatment plants are owned by the City of Los Angeles. District No. 9 serves as an agent between Cit of LA and parcel owners. City of LA bills District 9, and District 9 bills the parcel owners based on service charge rate through property tax bills.
A89: Los Angeles County Sanitation District No.1 | B89: Whittier | C89: 90601 | D89: Los Angeles | E89: 571853 | F89: 38806 | G89: Annual | H89: Flat Rate | I89: Annual | J89: Flat Rate | K89: Annual | L89: Flat Rate | M89: Quarterly | N89: Variable Based on Water Use. | O89: Annual | P89: Flat Rate | Q89: Annual | R89: Flat Rate | S89: 59600 | T89: 21991 | U89: 95 | V89: 124 | W89: 7471 | Y89: 13.58 | Z89: 8.15 | AA89: 8.15 | AB89: 61.97 | AC89: 272.91 | AE89: 4520 | AF89: 2712 | AG89: 2712 | AH89: 518 | AI89: 7703.34 | AK89: 68 | AL89: 8 | AM89: 16 | AN89: 7 | AO89: 1 | AQ89: Yes | AS89: x | AT89: x | AV89: x | AY89: No | AZ89: 23025000 | BA89: 4205000 | BB89: 8864000 | BD89: x | BE89: x | BF89: x | BG89: Yes | BH89: Note 2 in comments | BJ89: No | BN89: Note 2 in comments | CV89: No | CY89: Yes | DC89: No | DE89: Note 1- Institutional units were included in Commercial units. Note 2- District No.1 is part of Joint Outfall System (JOS) which consists of seven (7) treatment plants. See separate sheet for each individual plant's responsibilities and treatment profess.
A90: Los Angeles County Sanitation District No. 3 | B90: Whittier | C90: 90601 | D90: Los Angeles | E90: 509518 | F90: 58732 | G90: Annual | H90: Flat Rate | I90: Annual | J90: Flat Rate | K90: Annual | L90: Flat Rate | M90: Quarterly | N90: Variable Based on Water Use. | O90: Annual | P90: Flat Rate | Q90: Annual | R90: Flat Rate | S90: 69862 | T90: 16744 | U90: 15 | V90: 59 | W90: 5415 | Y90: 13.08 | Z90: 7.85 | AA90: 7.85 | AB90: 63.59 | AC90: 280.05 | AE90: 4320 | AF90: 2592 | AG90: 2592 | AH90: 518 | AI90: 7703.34 | AK90: 71 | AL90: 6 | AM90: 11 | AN90: 11 | AO90: 1 | AQ90: Yes | AS90: x | AT90: x | AV90: x | AY90: No | AZ90: 25974000 | BA90: 4844000 | BB90: 10195000 | BD90: x | BE90: x | BF90: x | BG90: Yes | BH90: Note 2 in Comments | BJ90: No | BN90: Note 2 in Comments | CV90: No | CY90: Yes | DC90: No | DE90: Note 1- Institutional units were included in Commercial units. Note 2- District No.3 is part of Joint Outfall System (JOS) which consists of seven (7) treatment plants. See separate sheet for each individual plant's responsibilities and treatment profess.
A91: County Service Area #13- Alpine Meadows | B91: Redding | C91: 96001 | D91: Shasta | E91: 70 | F91: 32813 | G91: Bimonthly | H91: Flat Rate | I91: Bimonthly | J91: Flat Rate | K91: Bimonthly | L91: Flat Rate | M91: Bimonthly | N91: Flat Rate | O91: Bimonthly | P91: Flat Rate | Q91: Bimonthly | R91: Flat Rate | S91: 25 | W91: 5 | Y91: 109.5 | Z91: 109.5 | AA91: 109.5 | AB91: 109.5 | AC91: 109.5 | AD91: 109.5 | AK91: 99 | AL91: 1 | AQ91: No | AX91: x | AY91: No | AZ91: 39060 | BC91: x | BE91: x | BF91: x | BG91: No | BH91: 0.003 | BI91: 0.003 | BN91: Alpine Meadows, Chateau Leachfield ano Emigrant Leachfield, Shingletown, Ca | CU91: Leachfield | CV91: No | CY91: No | DC91: No | DE91: All rates and fees per HE.
A92: County Service Area #17 Cottonwood | B92: Redding | C92: 96001 | D92: Shasta | E92: 3316 | F92: 30191 | G92: Bimonthly | H92: Flat Rate | I92: Bimonthly | J92: Flat Rate | K92: Bimonthly | L92: Flat Rate | M92: Bimonthly | N92: Flat Rate | O92: Bimonthly | P92: Flat Rate | Q92: Bimonthly | R92: Flat Rate | S92: 901 | T92: 150 | U92: 75 | W92: 23 | X92: 2 | Y92: 68 | Z92: 68 | AA92: 68 | AB92: 68 | AC92: 68 | AD92: 68 | AE92: 5178.6 | AF92: 5178.6 | AG92: 5178.6 | AH92: 5178.6 | AI92: 5178.6 | AJ92: 5178.6 | AK92: 99 | AL92: 1 | AQ92: No | AX92: x | AY92: No | AZ92: 555350 | BC92: x | BE92: x | BF92: x | BG92: No | BH92: 0.33 | BI92: 0.43 | BJ92: No | BN92: Cottonwood Wastewater Treatment Plant, Live Oak Road, Cottonwood | BX92: x | CB92: x | CC92: x | CF92: Aeration Basins, Ponos | CG92: x | CJ92: x | CN92: Filtration | CO92: Traveling Bridge | CQ92: x | CT92: x | CV92: Yes | CY92: Yes | DA92: R5-2010-0044 | DB92: CA0081507 | DC92: No
A93: County Service Area #8- Palo Cedro Sewer | B93: Redding | C93: 96001 | D93: Shasta | E93: 500 | F93: 51471 | G93: Bimonthly | H93: Flat Rate | M93: Bimonthly | O93: Bimonthly | P93: Flat Rate | Q93: Bimonthly | R93: Flat Rate | S93: 140 | W93: 20 | X93: 2 | Y93: 42 | AC93: 42 | AD93: 42 | AE93: 3650 | AI93: 3650 | AJ93: 3650 | AK93: 99 | AL93: 1 | AQ93: No | AX93: x | AY93: No | AZ93: 336,473 (includes water) | BC93: x | BE93: x | BF93: x | BG93: No | BH93: 0.12 | BI93: 0.06 | BJ93: No | BN93: Palo Cedro Wastewater Treatment Plant, Charolais Way, Palo Cedro | BX93: x | CC93: x | CJ93: x | CV93: No | CY93: Yes | DA93: 99-090 | DC93: No
A94: County Service Area 28, Zone 173 - Dry Creek Sewer | B94: Auburn | C94: 95603 | D94: Placer | E94: 3165 | F94: 72921 | G94: Annual | H94: Flat Rate | I94: Annual | J94: Flat Rate | K94: Annual | L94: Flat Rate | M94: Annual | N94: Flat Rate | O94: Annual | P94: Flat Rate | Q94: Annual | R94: Flat Rate | S94: 1003 | T94: 0 | U94: 203 | V94: 0 | W94: 19 | X94: 0 | Y94: 38.14 | Z94: 38.14/edu | AA94: 38.14/edu | AB94: 38.14/edu | AC94: 38.14/edu | AD94: 38.14/edu | AE94: 8525 | AF94: 8,525/edu | AG94: 8,525/edu | AH94: 8,525/edu | AI94: 8,525/edu | AJ94: 8,525/edu | AK94: 89.15 | AL94: 6.42 | AM94: 0 | AN94: 0 | AO94: 3.74 | AP94: 0.68 - Inspection Fees | AQ94: No | AX94: x | AY94: No | AZ94: 387993 | BA94: 0 | BB94: 0 | BC94: x | BG94: No | BH94: 0.18 | BJ94: No | BK94: No | BN94: N/A | CY94: No | CZ94: City of Roseville, Dry Creek WWTP | DC94: No
A95: County Service Area 28, Zone 23 - Applegate | B95: Auburn | C95: 95603 | D95: Placer | E95: 59 | F95: 59238 | G95: Annual | H95: Flat Rate | I95: Annual | J95: Flat Rate | K95: Annual | L95: Flat Rate | M95: Annual | N95: Flat Rate | O95: Annual | P95: Flat Rate | Q95: Annual | R95: Flat Rate | S95: 47 | T95: 0 | U95: 1 | V95: 0 | W95: 0 | X95: 0 | Y95: 95.78 | Z95: N/A | AA95: 68.39/unit | AB95: N/A | AC95: 95.78/edu | AD95: N/A | AE95: 1500 | AF95: 1,500/edu | AG95: 1,500/edu | AH95: 1,500/edu | AI95: 1,500/edu | AJ95: 1,500/edu | AK95: 100 | AL95: 0 | AM95: 0 | AN95: 0 | AO95: 0 | AP95: 0 | AQ95: No | AX95: x | AY95: No | AZ95: 136444 | BA95: 0 | BB95: 0 | BC95: x | BG95: No | BH95: 0.0074 | BI95: 0.01 | BJ95: Yes | BK95: No | BN95: N/A | BY95: x | CV95: No | CW95: 0 | CX95: 0 | CY95: No | CZ95: Placer County SMD 1 WWTP | DC95: No | DE95: This district recently completed a regionalization project that decommissioned a pond system. The final decommissioning occurred this fiscal year.
A96: County Service Area 28, Zone 2A3 Sunset | B96: Auburn | C96: 95603 | D96: Placer | E96: N/A | F96: N/A | G96: Annual | H96: Flat Rate | I96: Annual | J96: Flat Rate | K96: Annual | L96: Flat Rate | M96: Annual | N96: Flat Rate | O96: Annual | P96: Flat Rate | Q96: Annual | R96: Flat Rate | S96: 0 | T96: 0 | U96: 0 | V96: 761 | W96: 181 | X96: 0 | Y96: 33.06 | Z96: 33.06 | AA96: 33.06 | AB96: 33.06/edu | AC96: 33.06/edu | AD96: 33.06/edu | AE96: 8525 | AF96: 8525 | AG96: 8525 | AH96: $8,525/edu | AI96: $8,525/edu | AJ96: $8,525/edu | AK96: 85.23 | AL96: 11.22 | AM96: 0 | AN96: 0 | AO96: 2.76 | AP96: 1.09 - Inspection Fees | AQ96: No | AX96: x | AY96: No | AZ96: 129989 | BA96: 0 | BB96: 0 | BC96: x | BG96: No | BH96: 0.1 | BJ96: No | BK96: No | BN96: N/A | CV96: No | CW96: 0 | CX96: 0 | CY96: No | CZ96: City of Roseville, Pleasant Grove WWTP | DC96: No
A97: County Service Area 28, Zone 55 - Livoti | B97: Auburn | C97: 95603 | D97: Placer | E97: 626 | F97: 74579 | G97: Annual | H97: Flat Rate | I97: Annual | J97: Flat Rate | K97: Annual | L97: Flat Rate | M97: Annual | N97: Flat Rate | O97: Annual | P97: Flat Rate | Q97: Annual | R97: Flat Rate | S97: 207 | T97: 30 | U97: 0 | V97: 0 | W97: 3 | X97: 0 | Y97: 38.64 | Z97: 29.75/unit | AA97: 29.75/unit | AB97: 38.64/edu | AC97: 38.64/edu | AD97: 38.64/edu | AE97: 10519 | AF97: 10519 | AG97: 10519 | AH97: 10,519/edu | AI97: 10,519/edu | AJ97: 10,519/edu | AK97: 97 | AL97: 0 | AM97: 0 | AN97: 0 | AO97: 3 | AP97: 0 | AQ97: No | AX97: x | AY97: No | AZ97: 93079 | BA97: 0 | BB97: 0 | BC97: x | BG97: No | BH97: 0.054 | BJ97: No | BK97: No | BN97: N/A | CY97: No | CZ97: Sacramento Regional County Sanitation District | DC97: No
A98: County Service Area 28, Zone 6 - Sheridan Sewer | B98: Auburn | C98: 95603 | D98: Placer | E98: 548 | F98: 32840 | G98: Annual | H98: Flat Rate | I98: Annual | J98: Flat Rate | K98: Annual | L98: Flat Rate | M98: Annual | N98: Flat Rate | O98: Annual | P98: Flat Rate | Q98: Annual | R98: Flat Rate | S98: 182 | T98: 0 | U98: 25 | V98: 0 | W98: 4 | X98: 0 | Y98: 89.12 | Z98: 63.63 | AA98: 63.63 | AB98: $89.12/edu | AC98: $89.12/edu | AD98: $89.12/edu | AE98: 5549 | AF98: 3962 | AG98: 3962 | AH98: $5,549/edu | AI98: $5,549/edu | AJ98: $5,549/edu | AK98: 99 | AL98: 0 | AM98: 0 | AN98: 0 | AO98: 1 | AP98: 0 | AQ98: No | AX98: x | AY98: No | AZ98: 154434 | BA98: 0 | BB98: 0 | BC98: x | BE98: x | BF98: x | BG98: No | BH98: 0.054 | BI98: 0.055 | BJ98: No | BK98: No | BN98: Sheridan Wastewater Treatment Plant, H Street, Sheridan, CA | BZ98: x | CF98: Aerated Lagoon | CJ98: x | CV98: No | CW98: 0 | CX98: 0 | CY98: Yes | DA98: R5-2008-0140 | DC98: No
A99: Covelo Community Service District | B99: Covelo | C99: 95428 | D99: Mendocino | E99: 110 | F99: 29205 | G99: Quarterly | H99: Flat Rate | J99: Flat Rate | K99: Quarterly | L99: Flat Rate | N99: Flat Rate | O99: Quarterly | P99: Flat Rate | Q99: Quarterly | R99: Flat Rate | S99: 181 | U99: 33 | W99: 74.25 | X99: 45.25 | Y99: 50 | AA99: 50 | AC99: 50 | AD99: 50 | AE99: 8500 | AG99: 8500 | AI99: 8500 | AJ99: 8500 | AK99: 97 | AL99: 3 | AQ99: No | AV99: x | AY99: No | AZ99: 148829.43 | BA99: 8800 | BB99: 0 | BC99: x | BE99: x | BG99: No | BH99: 0.035 | BI99: 0.077 | BJ99: No | BN99: Covelo Community Service District Treatment Plant 76001 Commercial St. Covelo | BZ99: x | CC99: x | CD99: x | CI99: Wetlands | CK99: x | CV99: Yes | CW99: 0 | CX99: 0 | CY99: Yes | DA99: R1-2011-0001 (WDID#:1B83009OMEN) | DB99: CA0023574 | DC99: No
A100: Crescent City, City of | B100: Crescent City | C100: 95531 | D100: Del Norte | E100: 7500 | F100: 30170 | G100: Monthly | H100: Flat Rate | I100: Monthly | J100: Flat Rate/Variable Based | K100: Monthly | L100: Flat Rate | M100: Monthly | N100: Flat Rate/Variable Based | O100: Monthly | P100: Flat Rate/Variable Based | Q100: Monthly | R100: Flat Rate/Variable Based | S100: 3715 | Y100: 72.21 | Z100: 41.90 +8.38 | AA100: 72.21 | AB100: 70.10 +14.02 | AC100: 44.75 +8.95 | AD100: n/a | AE100: 9682 | AF100: 9,682 per SFR equivalent | AG100: 9,682 per SFR equivalent | AH100: 9,682 per SFR equivalent | AI100: 9,682 per SFR equivalent | AJ100: n/a | AK100: 96 | AL100: 1 | AP100: 3 Sewer Lab | AQ100: Yes | AR100: x | AT100: x | AV100: x | AY100: Yes | AZ100: 2841862 | BA100: 2139716 | BB100: 97000 | BC100: x | BE100: x | BF100: x | BG100: Yes | BH100: 1.2 | BI100: 1.6 | BJ100: No | BN100: City of Crescent City Wastewater Treatment Facility | CC100: x | CD100: x | CE100: x | CG100: x | CH100: x | CJ100: x | CP100: x | CQ100: x | CR100: x | CT100: x | CV100: No | CW100: None | CX100: N/A | CY100: Yes | DB100: CA0022756 | DC100: No
A101: Crescenta Valley Water District | B101: La Crescenta | C101: 91214 | D101: Los Angeles | E101: 34000 | F101: 83000 | G101: Bimonthly | H101: Flat Rate | I101: Bimonthly | J101: Flat Rate | O101: Bimonthly | P101: Variable Based on Water Use. | Q101: Bimonthly | R101: Flat Rate | S101: 5271 | T101: 2546 | W101: 156 | X101: 14 | Y101: 33.75 | Z101: 33.75 | AC101: 5.5 | AD101: 5.5 | AE101: 2270 | AF101: 2270 | AI101: 2270 | AJ101: 2270 | AK101: 99 | AL101: 1 | AQ101: Yes | AR101: x | AX101: x | AY101: No | AZ101: 3712900 | BB101: 208500 | BC101: x | BD101: x | BG101: No | BH101: 1.49 | BI101: 4.5 | BJ101: No | BL101: No | BM101: City of Los Angeles
A102: Crestline Sanitation District | B102: Crestline | C102: 92325 | D102: San Bernardino | E102: 5000 | F102: 46439 | G102: Bimonthly | H102: Flat Rate | I102: Bimonthly | J102: Flat Rate | K102: Bimonthly | L102: Flat Rate | O102: Bimonthly | P102: Flat Rate | S102: 4596 | T102: 200 | U102: 121 | W102: 83 | Y102: 35.95 | Z102: $35.95 Per EDU | AA102: $35.95 Per EDU | AC102: $35.95 Per EDU | AE102: 3959.91 | AF102: 3959.91 | AG102: 3959.91 | AI102: 3959.91 | AK102: 67% | AL102: 1% | AN102: 26% | AP102: 6% | AQ102: No | AV102: x | AY102: Yes | AZ102: 3672070 | BA102: 313101.78 | BB102: 3057270 | BC102: x | BE102: x | BF102: x | BG102: No | BH102: .5 MGD | BI102: 1.4 MGD | BJ102: Yes | BK102: No | BN102: Huston Creek Wastewater Treatment Plant | BO102: Seeley Creek Wastewater Treatment Plant | BP102: Cleghorn Wastewater Treatment Plant | CA102: x | CB102: x | CC102: x | CD102: x | CE102: x | CH102: x | CJ102: x | CQ102: x | CR102: x | CS102: x | CT102: x | CV102: No | CW102: 0 | CX102: 0 | CY102: Yes | DA102: R6-94-57 | DC102: Yes | DD102: www.crestlinesanitation.com
A103: Crockett Community Services District | B103: Crockett | C103: 94525 | D103: Contra Costa | E103: 190 | F103: 92743 | G103: Annual | H103: Flat Rate | I103: Annual | J103: Flat Rate | K103: Annual | L103: Flat Rate | M103: Annual | N103: Variable Based on Water Use. | O103: Annual | P103: Variable Based on Water Use. | Q103: Annual | R103: Variable Based on Water Use. | S103: 71 | T103: 35 | U103: 0 | V103: 0 | W103: 3 | X103: 0 | Y103: 147 | Z103: 147 | AC103: 300 | AE103: 5500 | AF103: 5500 | AG103: 5500 | AH103: 5500 | AI103: 5500 | AJ103: 5500 | AK103: 100 | AQ103: No | AV103: x | AY103: No | AZ103: 258253 | BA103: 24889 | BB103: 15363 | BC103: x | BD103: x | BE103: x | BF103: x | BG103: No | BH103: 0.006 | BI103: 0.33 | BJ103: No | BK103: No | BN103: Port Costa Wastewater Treatment Plant - End of Canyon Lake Drive Port Costa CA 94569 | CI103: Sand Filter beds | CJ103: x | CT103: x | CV103: No | CW103: 0 | CX103: 0 | CY103: Yes | DB103: CA0037885 | DC103: No | DE103: Please provide me with a hard copy of the report for my records.
A104: Crockett Community Services District, Crockett Sanitary Department | B104: Crockett | C104: 94525 | D104: Contra Costa | E104: 3094 | F104: 81304 | G104: Annual | H104: Flat Rate | I104: Quarterly | J104: Flat Rate | K104: Annual | L104: Flat Rate | M104: Annual | N104: Variable Based on Water Use. | O104: Annual | P104: Variable Based on Water Use. | Q104: Annual | R104: Variable Based on Water Use. | S104: 931 | T104: 733 | U104: 0 | V104: 2 | W104: 24 | X104: 2 | Y104: 58.17 | Z104: 49 | AA104: 49 | AB104: 1241.28 average | AC104: 227.27 average | AD104: 1263.54 average | AE104: 2425 | AF104: 1617 | AG104: 1617 | AH104: variable, no average available | AI104: variable, no average available | AJ104: variable, no average available | AK104: 72.38 | AL104: 0.39 | AM104: 10.45 | AN104: 11.75 | AO104: 0.14 | AP104: 4.89 grants, permit fees | AQ104: No | AV104: x | AY104: No | AZ104: 1222163 | BA104: 99089 | BB104: 142295 | BC104: x | BD104: x | BE104: x | BF104: x | BG104: No | BH104: 0.23 | BI104: 0.3 | BJ104: No | BN104: Joint Use Philip F. Meeds Water Treatment Plant, Crockett, CA | CB104: x | CD104: x | CG104: x | CJ104: x | CQ104: x | CT104: x | CV104: No | CW104: 0 | CX104: 0 | CY104: Yes | DA104: R2-2012-0084 | DB104: CA0005240 | DC104: No | DE104: Please mail hard copy to our agency
A105: Cucamonga Valley Water District | B105: Rancho Cucamonga | C105: 91730 | D105: San Bernardino | E105: 142000 | F105: 77835 | G105: Bimonthly | H105: Flat Rate | I105: Bimonthly | J105: Flat Rate | K105: Bimonthly | L105: Flat Rate | M105: Bimonthly | N105: Variable Based on Water Use. | O105: Bimonthly | P105: Variable Based on Water Use. | Q105: Bimonthly | R105: Flat Rate | S105: 34139 | T105: 871 | U105: 13 | V105: 496 | W105: 1333 | X105: 123 | Y105: 20.12 | Z105: 40.24 bi-monthly | AA105: 40.24 bi-monthly | AB105: 1.3751/hcf/month | AC105: 1.3751/hcf/month | AD105: 0.5583/student/month | AE105: 6346 | AF105: 6346 | AG105: 6346 | AH105: Not Available | AI105: Not Available | AJ105: Not Available | AK105: 97.14 | AL105: 1.87 | AM105: 0.22 | AN105: 0 | AO105: 0.77 | AP105: 0 | AQ105: Yes | AR105: x | AT105: x | AX105: x | AY105: No | AZ105: 14865057 | BA105: N/A | BB105: 2803000 | BC105: x | BG105: Yes | BH105: 12.5 | BI105: N/A | BJ105: No | BK105: No | BN105: N/A | CW105: 1538 | CX105: 1538 | CY105: No | DC105: Yes | DD105: http://ca-cucamongavalleywaterdistrict.civicplus.com/Archive.aspx?AMID=37
A106: Culver City | B106: Culver City | C106: 90232 | D106: Los Angeles | E106: 38000 | F106: 76182 | G106: Annual | H106: Variable Based on Water Use. | I106: Annual | J106: Variable Based on Water Use. | K106: Annual | L106: Variable Based on Water Use. | M106: Annual | N106: Variable Based on Water Use. | O106: Annual | P106: Variable Based on Water Use. | Q106: Annual | R106: Variable Based on Water Use. | S106: 5653 | T106: 6272 | U106: 3 | V106: 290 | W106: 937 | X106: 60 | Y106: 29.42 | Z106: 23.71 | AA106: 21.1 | AB106: 144.12 | AC106: 279.1 | AD106: 398.63 | AE106: 2247 | AF106: 2034 | AG106: 1356 | AK106: 95 | AL106: 5 | AQ106: No | AV106: x | AY106: No | AZ106: 1300000 | BA106: 1600000 | BB106: 675000 | BC106: x | BG106: No | BH106: 4.5 | BI106: 6.7 | BJ106: No | BK106: No | BL106: No | DC106: Yes | DD106: http://www.culvercity.org/~/media/Files/Finance/BudgetBooks/14_15/Final%20Adopted%20Fiscal%20Year%2014-15%20Budget.ashx
A107: Cutler Public Utility District | B107: Cutler | C107: 93615 | D107: Tulare | E107: 6300 | F107: 19000 | G107: Monthly | H107: Flat Rate | I107: Monthly | J107: Flat Rate | M107: Monthly | N107: Flat Rate | O107: Monthly | P107: Flat Rate | Q107: Monthly | R107: Flat Rate | S107: 938 | T107: 220 | V107: 1 | W107: 45 | X107: 3 | Y107: 33.4 | Z107: 33.4 | AB107: 33.4 | AC107: 33.4 | AD107: 33.4 | AE107: 3520 | AF107: 3720 | AH107: board action depending on dwelling | AI107: board action depending on dwelling | AJ107: board action depending on dwelling | AK107: 100 | AQ107: No | AV107: x | AY107: No | AZ107: 839454 | BA107: 1.5 | BC107: x | BG107: No | BH107: 0.46 | BI107: 0.5 | BJ107: No | BN107: Cutler-Orosi Joint Powers Wastewater Authority | DC107: No
A108: Davis, City of Wastewater Treatement Plant | B108: Davis | C108: 95616 | D108: Yolo | E108: 68289 | F108: 61535 | G108: Monthly | H108: Variable Based on Water Use. | I108: Monthly | J108: Variable Based on Water Use. | K108: Monthly | L108: Variable Based on Water Use. | M108: Monthly | N108: Variable Based on Water Use. | O108: Monthly | P108: Variable Based on Water Use. | Q108: Monthly | R108: Variable Based on Water Use. | S108: 15653 | T108: 549 | U108: 6 | V108: 33 | W108: 607 | X108: 125 | Y108: 46.45 | Z108: 11490.12 | AA108: 5752.34 | AB108: 571.82 | AC108: 383.82 | AD108: 574.82 | AE108: 6150 | AF108: 3320 | AG108: 3400 | AH108: 1,300/1,000 SF | AI108: 1,300/1,000 SF | AJ108: 1,100/1,000 SF | AK108: 98.93 | AL108: 0.02 | AM108: 1.05 | AQ108: Yes | AR108: x | AV108: x | AY108: No | AZ108: 6238710 | BA108: 0 | BB108: 60875000 | BC108: x | BE108: x | BF108: x | BG108: Yes | BH108: 5 | BI108: 7.5 | BJ108: No | BN108: City of Davis Wastewater Treatment Plant 45400 County Road 28H Davis, CA 95616 | BZ108: x | CC108: x | CD108: x | CE108: x | CI108: Overland Flow System | CJ108: x | CP108: x | CT108: x | CU108: Sludge lagoons for stabilization and drying between digestion and disposal | CV108: No | CW108: 0 | CX108: 0 | CY108: Yes | DB108: CA0079049 | DC108: No | DE108: Connection fees for industrial/commercial vary based on flow and load: Flow: $14,346/hcf/day BOD: $1,556/lb/day TSS: $853/lb/day
A109: Del Mar, City of | B109: Del Mar | C109: 92014 | D109: San Diego | E109: 4199 | F109: 125625 | G109: Bimonthly | H109: Variable Based on Water Use. | I109: Bimonthly | J109: Variable Based on Water Use. | O109: Bimonthly | P109: Variable Based on Water Use. | Q109: Bimonthly | R109: Variable Based on Water Use. | S109: 1403 | T109: 200 | W109: 98 | X109: 17 | Y109: 83.26 | Z109: 238.5 | AC109: 418.78 | AD109: 221.57 | AE109: 6444 | AF109: 6444 | AI109: 6444 | AJ109: 6444 | AK109: 95.9% | AL109: 0.2% | AP109: 3.9% (Investment Income, Penalties, Grants + from other Agencies | AQ109: Yes | AS109: x | AT109: x | AV109: x | AY109: No | AZ109: 2521790 | BA109: 792260 | BB109: 140000 | BC109: x | BG109: No | BH109: 0.520 MGD | BI109: 0.800 MGD | BJ109: No | BK109: No | DC109: No
A110: Delta Diablo | B110: Antioch | C110: 94509 | D110: Contra Costa | E110: 192521 | F110: 63349 | G110: Annual | H110: Flat Rate | I110: Annual | J110: Flat Rate | K110: Annual | L110: Flat Rate | M110: Monthly | N110: Variable Based on Water Use. | O110: Annual | P110: Variable Based on Water Use. | Q110: Annual | R110: Variable Based on Water Use. | S110: 47894 | T110: 3599 | U110: 10 | V110: 265 | W110: 1785 | X110: 576 | Y110: 24.25 | Z110: 24.25 | AA110: 24.25 | AB110: 3.51 per hcf | AC110: 3.50 per hcf | AD110: 3.50 per hcf | AE110: 4444 | AF110: 4444 | AG110: 4444 | AH110: 4444 | AI110: 4444 | AJ110: 4444 | AK110: 80.8 | AL110: 6.6 | AM110: 0.6 | AN110: 6 | AO110: 1.1 | AP110: 4.9 - reimbursements | AQ110: Yes | AR110: x | AT110: x | AV110: x | AY110: No | AZ110: 19675619 | BA110: 4127426 | BB110: 14025500 | BC110: x | BD110: x | BE110: x | BF110: x | BG110: Yes | BH110: 13.1 | BI110: 19.5 | BJ110: No | BN110: Delta Diablo Wastewater Treatment Plant - 2500 Pittsburg-Antioch Hwy, Antioch, CA 94509 | BO110: Delta Diablo Recycled Water Facility - 2500 Pittsburg-Antioch Hwy, Antioch, CA 94509 | CC110: x | CD110: x | CE110: x | CG110: x | CH110: x | CI110: Trickling filters followed by aeration basins | CJ110: x | CN110: Filtration | CO110: Continuously backwashed sand filters preceded by Actiflo flocculating clarifiers | CP110: x | CQ110: x | CR110: x | CS110: x | CT110: x | CV110: No | CW110: 8952 | CX110: 8952 | CY110: Yes | DA110: R2-2014-0030 | DB110: CA0038547 | DC110: Yes | DD110: http://www.deltadiablo.org/projects-innovations/capital-improvement-program | DE110: Delta Diablo has both a secondary and tertiary treatment plant. All of the flow receives secondary treatment, but not all of the flow receives tertiary treatment. In 2013, 4,763 million gallons went through secondary treatment and 2,917 million gallons received tertiary treatment. Recycled water is primarily used in cooling towers at two local power plants and about 10% is used for landscape irrigation at local parks and golf courses.
A111: Denair Community Services District | B111: Denair | C111: 95316 | D111: Stanislaus | E111: 4780 | F111: 49866 | G111: Monthly | H111: Flat Rate | I111: Monthly | J111: Flat Rate | K111: Monthly | L111: Flat Rate | M111: Monthly | N111: Flat Rate | O111: Monthly | P111: Flat Rate | Q111: Monthly | R111: Flat Rate | S111: 1319 | T111: 126 | U111: 117 | V111: 0 | W111: 51 | X111: 1 | Y111: 69.45 | Z111: 53.6 | AA111: 53.6 | AB111: none | AC111: 53.6 | AD111: 1105.6 | AE111: 9043.93 | AF111: 9043.93 | AG111: 8692.93 | AH111: not allowed | AI111: per 1,000 square foot | AJ111: per 1,000 square foot | AK111: 98 | AL111: 1 | AM111: 0 | AN111: 0.09 | AO111: 0.01 | AQ111: No | AX111: x | AY111: No | AZ111: 1300703.1 | BA111: 0 | BB111: 4864416.69 | BD111: x | BG111: No | BH111: 1.662 | BI111: 0.82 | BJ111: No | CY111: No | CZ111: City of Turlock | DC111: No
A112: Department of Facility Services | B112: Auburn | C112: 95603 | D112: Placer | E112: 18626 | F112: 126953 | G112: Annual | H112: Flat Rate | I112: Annual | J112: Flat Rate | K112: Annual | L112: Flat Rate | M112: Annual | N112: Flat Rate | O112: Annual | P112: Flat Rate | Q112: Annual | R112: Flat Rate | S112: 5837 | T112: 94 | U112: 245 | V112: 0 | W112: 995 | X112: 0 | Y112: 48.12 | Z112: 48.12 | AA112: 34.35 | AB112: $48.12/edu | AC112: $48.12/edu | AD112: $48.12/edu | AE112: 8525 | AF112: 8525 | AG112: 6087 | AH112: $8,525/edu | AI112: $8,525/edu | AJ112: $8,525/edu | AK112: 77.16 | AL112: 18.75 | AM112: 0 | AN112: 0.9 | AO112: 3.19 | AP112: 0 | AQ112: No | AX112: x | AY112: No | AZ112: 2169820 | BA112: 0 | BB112: 0 | BC112: x | BG112: No | BH112: 1.4 | BJ112: Yes | BK112: Yes | DC112: No
A113: Department of Facility Services | B113: Auburn | C113: 95603 | D113: Placer | E113: 59 | F113: 59238 | G113: Annual | H113: Flat Rate | I113: Annual | J113: Flat Rate | K113: Annual | L113: Flat Rate | M113: Annual | N113: Flat Rate | O113: Annual | P113: Flat Rate | Q113: Annual | R113: Flat Rate | S113: 47 | T113: 0 | U113: 1 | V113: 0 | W113: 0 | X113: 0 | Y113: 95.78 | Z113: 73.75 | AA113: 68.39 | AB113: $95.78/edu | AC113: $95.78/edu | AD113: $95.78/edu | AE113: 1500 | AF113: 1155 | AG113: 1071 | AH113: $1,500/edu | AI113: $1,500/edu | AJ113: $1,500/edu | AK113: 100 | AL113: 0 | AM113: 0 | AN113: 0 | AO113: 0 | AP113: 0 | AQ113: No | AX113: x | AY113: No | AZ113: 136444 | BA113: 0 | BB113: 0 | BC113: x | BG113: Yes | BH113: 0.0074 | BJ113: Yes | BK113: Yes | DC113: No | DE113: This district recently completed a regionalization project which decommissioned a pond system. The decommissioning of the pond system occurred this fiscal year. However, the wastewater was diverted to the SMD 1 WWTP on Joeger Road last fiscal year.
A114: Department of Facility Services | B114: Auburn | C114: 95603 | D114: Placer | E114: 14482 | F114: 45328 | G114: Annual | H114: Flat Rate | I114: Annual | J114: Flat Rate | K114: Annual | L114: Flat Rate | M114: Annual | N114: Flat Rate | O114: Annual | P114: Flat Rate | Q114: Annual | R114: Flat Rate | S114: 3525 | T114: 1422 | U114: 906 | V114: 874 | W114: 1655 | X114: 0 | Y114: 95.78 | Z114: 73.75 | AA114: 68.39 | AB114: $95.78/edu | AC114: $95.78/edu | AD114: $95.78/edu | AE114: 8057 | AF114: 6204 | AG114: 5753 | AH114: $8,057/edu | AI114: $8,057/edu | AJ114: $8,057/edu | AK114: 95.31 | AL114: 4.28 | AM114: 0 | AN114: 0 | AO114: 1.87 | AP114: 0.41 - Inspect and Annexation Fees | AQ114: No | AV114: x | AY114: No | AZ114: 2449131 | BA114: 0 | BB114: 9229621 | BC114: x | BE114: x | BF114: x | BG114: Yes | BH114: 1.5 | BI114: 2.18 | BJ114: Yes | BK114: No | BN114: Sewer Maintenance District 1 Wastewater Treatment Plant, 11755 Joeger Road, Auburn, CA 95603 | BY114: x | CB114: x | CC114: x | CD114: x | CE114: x | CH114: x | CJ114: x | CN114: Filtration | CO114: Anthracite Filter | CP114: x | CQ114: x | CR114: x | CT114: x | CV114: No | CW114: N/A | CX114: N/A | CY114: Yes | DA114: R5-2010-0092 | DB114: CA0079316 | DC114: No | DE114: SMD 1 is currently in construction on a regionalization project that will take the Joeger Road WWTP offline. All future treatment will occur at the City of Lincoln WWTRF. We currently have an SRF loan, but repayment will not commence until 1 year after completion of construction, estimated to be FY 16/17.
A115: Department of Facility Services | B115: Auburn | C115: 95603 | D115: Placer | E115: 1817 | F115: 80160 | G115: Annual | H115: Flat Rate | I115: Annual | J115: Flat Rate | K115: Annual | L115: Flat Rate | M115: Annual | N115: Flat Rate | O115: Annual | P115: Flat Rate | Q115: Annual | R115: Flat Rate | S115: 532 | T115: 2 | U115: 100 | V115: 0 | W115: 7 | X115: 0 | Y115: 111.72 | Z115: 86.02 | AA115: 79.77 | AB115: 111.72/edu | AC115: 111.72/edu | AD115: 111.72/edu | AE115: 8525 | AF115: 6564 | AG115: 6087 | AH115: $8,525/edu | AI115: $8,525/edu | AJ115: $8,525/edu | AK115: 86.44 | AL115: 2.51 | AM115: 0 | AN115: 10 | AO115: 1.05 | AP115: 0 | AQ115: No | AV115: x | AY115: No | AZ115: 732747 | BA115: 0 | BB115: 0 | BC115: x | BE115: x | BF115: x | BG115: No | BH115: 0.09 | BJ115: Yes | BK115: No | BN115: Sewer Maintenance District 3 Wastewater Treatment Plant, 4928 Auburn Folsom Road, Loomis, CA 95650 | BY115: x | CC115: x | CE115: x | CH115: x | CJ115: x | CP115: x | CQ115: x | CR115: x | CT115: x | CV115: Yes | CW115: N/A | CX115: N/A | CY115: Yes | DA115: R5-2013-0076 | DB115: CA0079367 | DC115: No | DE115: SMD 3 is currently in construction on a regionalization project that will take the Auburn Folsom WWTP offline. All future treatment will occur at the City of Roseville, Dry Creek WWTP. We currently have an SRF loan, but repayment will not commence until 1 year after completion of construction, estimated to be FY 15/16.
A116: Department of Facility Services-CSA 28, Zone 173 Dry Creek Sewer | B116: Auburn | C116: 95603 | D116: Placer | E116: 3165 | F116: 72921 | G116: Annual | H116: Flat Rate | I116: Annual | J116: Flat Rate | K116: Annual | L116: Flat Rate | M116: Annual | N116: Flat Rate | O116: Annual | P116: Flat Rate | Q116: Annual | R116: Flat Rate | S116: 1003 | T116: 0 | U116: 203 | V116: 0 | W116: 19 | X116: 0 | Y116: 38.14 | Z116: 38.14 | AA116: 38.14 | AB116: $38.14/edu | AC116: $38.14/edu | AD116: $38.14/edu | AE116: 8525 | AF116: 8525 | AG116: 8525 | AH116: $8,525/edu | AI116: $8,525/edu | AJ116: $8,525/edu | AK116: 89.15 | AL116: 6.42 | AM116: 0 | AN116: 0 | AO116: 3.74 | AP116: 0.68 Inspection Fees | AQ116: No | AX116: x | AY116: No | AZ116: 387993 | BA116: 0 | BB116: 0 | BC116: x | BG116: No | BH116: 0.18 | BJ116: No | BK116: Yes | DC116: No | DE116: Wastewater is treated by the City of Roseville Dry Creek WWTP.
A117: Department of Facility Services-CSA 28, Zone 2A3 - Sunset | B117: Auburn | C117: 95603 | D117: Placer | E117: N/A | F117: N/A | G117: Annual | H117: Flat Rate | I117: Annual | J117: Flat Rate | K117: Annual | L117: Flat Rate | M117: Annual | N117: Flat Rate | O117: Annual | P117: Flat Rate | Q117: Annual | R117: Flat Rate | S117: 0 | T117: 0 | U117: 0 | V117: 761 | W117: 181 | X117: 0 | Y117: 33.06 | Z117: 33.06 | AA117: 33.06 | AB117: $33.06/edu | AC117: $33.06/edu | AD117: $33.06/edu | AE117: 8525 | AF117: 8525 | AG117: 8525 | AH117: $8,525/edu | AI117: $8,525/edu | AJ117: $8,525/edu | AK117: 85.23 | AL117: 11.22 | AM117: 0 | AN117: 0 | AO117: 2.46 | AP117: 1.09 - Miscellaneous | AQ117: No | AX117: x | AY117: No | AZ117: 129989 | BA117: 0 | BB117: 0 | BC117: x | BG117: No | BH117: 0.1 | BJ117: No | BK117: Yes | DC117: No | DE117: Wastewater is treated by City of Roseville, Pleasant Grove Wastewater Treatment Plant.
A118: Department of Facility Services-CSA 28, Zone 55-Livoti | B118: Auburn | C118: 95603 | D118: Placer | E118: 626 | F118: 74579 | G118: Annual | H118: Flat Rate | I118: Annual | J118: Flat Rate | K118: Annual | L118: Flat Rate | M118: Annual | N118: Flat Rate | O118: Annual | P118: Flat Rate | Q118: Annual | R118: Flat Rate | S118: 207 | T118: 30 | U118: 0 | V118: 0 | W118: 3 | X118: 0 | Y118: 38.64 | Z118: 29.75 | AA118: 0 | AB118: 0 | AC118: 38.64 | AD118: 0 | AE118: 10519 | AF118: 8100 | AG118: 7511 | AH118: $10,519/edu | AI118: $10,519/edu | AJ118: $10,519/edu | AK118: 97 | AL118: 0 | AM118: 0 | AN118: 0 | AO118: 3 | AP118: 0 | AQ118: No | AX118: x | AY118: No | AZ118: 93079 | BA118: 0 | BB118: 0 | BC118: x | BG118: No | BH118: 0.054 | BJ118: No | BK118: Yes | DC118: No | DE118: Wastewater is treated by the Sacramento County Regional WWTP.
A119: Department of Facility Services-CSA 28/Zone 6 Sheridan Sewer | B119: Auburn | C119: 95603 | D119: Placer | E119: 548 | F119: 32840 | G119: Annual | H119: Flat Rate | I119: Annual | J119: Flat Rate | K119: Annual | L119: Flat Rate | M119: Annual | N119: Flat Rate | O119: Annual | P119: Flat Rate | Q119: Annual | R119: Flat Rate | S119: 182 | T119: 0 | U119: 25 | V119: 0 | W119: 4 | X119: 0 | Y119: 89.12 | Z119: 68.62 | AA119: 63.63 | AB119: $89.12/edu | AC119: $89.12/edu | AD119: $89.12/edu | AE119: 5549 | AF119: 4273 | AG119: 3962 | AH119: $5,549/edu | AI119: $5,549/edu | AJ119: $5,549/edu | AK119: 99 | AL119: 0 | AM119: 0 | AN119: 0 | AO119: 1 | AP119: 0 | AQ119: No | AX119: x | AY119: No | AZ119: 154434 | BA119: 0 | BB119: 0 | BC119: x | BE119: x | BF119: x | BG119: No | BH119: 0.054 | BJ119: No | BK119: No | BN119: Sheridan Wastewater Treatment Plant, H Street, Sheridan, CA | BZ119: x | CF119: Aerated Lagoon | CJ119: x | CT119: x | CU119: Land disposal of wastewater | CV119: No | CW119: N/A | CX119: N/A | CY119: Yes | DA119: R5-2008-0140 | DC119: No
A120: Devonshire County Sanitation District | B120: Redwood City | C120: 94065 | D120: San Mateo | E120: 2587 | G120: Annual | H120: Flat Rate | I120: Annual | J120: Flat Rate | Q120: Annual | R120: Variable Based on Water Use. | S120: 272 | T120: 1 | X120: 2 | Y120: 89.6 | Z120: 89.6 | AD120: 89.6 per ERU | AE120: 4187 | AF120: 4187 | AJ120: 4187 | AK120: 91 | AN120: 8 | AO120: 1 | AQ120: No | AX120: x | AY120: Yes | AZ120: 394600 | BB120: 450000 | BC120: x | BD120: x | BG120: No | BH120: 0.1 | BI120: n/a | BJ120: No | BK120: No | BN120: N/A | CY120: No | CZ120: Silicon Valley Clean Water | DC120: No | DE120: Please send a copy to Agency address.
A121: Dinuba, City of | B121: Dinuba | C121: 93618 | D121: Tulare | E121: 23000 | F121: 39228 | G121: Monthly | H121: Flat Rate | I121: Monthly | J121: Flat Rate | K121: Monthly | L121: Flat Rate | M121: Monthly | N121: Flat Rate | O121: Monthly | P121: Flat Rate | Q121: Monthly | R121: Flat Rate | S121: 4803 | T121: 1187 | U121: included w/ single family | W121: 461 | X121: 25 | Y121: 24.48 | Z121: 24.48 | AB121: 13480.43 | AC121: 69.95 | AD121: 178.14 | AE121: N/A | AF121: N/A | AG121: N/A | AH121: N/A | AI121: N/A | AJ121: N/A | AK121: 97.25 | AO121: 0.03 | AP121: 2.72 | AQ121: Yes | AR121: x | AT121: x | AV121: x | AY121: No | AZ121: 969729 | BA121: 1041825 | BB121: 40000 | BE121: x | BG121: No | BH121: 2 | BI121: 3.14 | BJ121: No | BL121: Yes | BN121: Ctiy of Dinuba Wastewater Reclamtion Factility | CC121: x | CG121: x | CQ121: x | CV121: No | CY121: Yes | DA121: R5-95-200 | DD121: www.dinuba.ca.gov
A122: Dorris, City of | B122: Dorris | C122: 96023 | D122: Siskiyou | E122: 938 | F122: 29792 | G122: Monthly | H122: Flat Rate | I122: Monthly | J122: Flat Rate | K122: Monthly | L122: Flat Rate | M122: Monthly | N122: Flat Rate | O122: Monthly | P122: Flat Rate | Q122: Bimonthly | R122: Flat Rate | S122: 453 | V122: 2 | W122: 27 | X122: 2 | Y122: 18.25 | Z122: 46.7 | AA122: 18.25 | AB122: 148.01 | AC122: 11.62 to 34.02 | AD122: 888.06 | AE122: 500 | AF122: 500 | AG122: 500 | AH122: 500 | AI122: 500 | AJ122: 500 | AK122: 10 | AQ122: No | AX122: x | AY122: No | AZ122: 122482 | BA122: N/A | BB122: 7000 | BC122: x | BG122: No | BH122: 68000 | BI122: 120000 | BJ122: No | BK122: No | BN122: Seattle Street Lift Station 218 Seattle Street | BO122: Pine Street Lift Station 460 South Pine Street | BP122: Sewer Ponds NE1/4 of Section 36, T48N, R1W MDB&M | BZ122: x | CF122: N/A | CI122: N/A | CM122: N/A | CO122: N/A | CU122: N/A | CV122: No | CW122: N/A | CX122: N/A | CY122: No | CZ122: N/A | DC122: No
A123: Dos Palos, City of | B123: Dos Palos | C123: 93620 | D123: Merced | E123: 6000 | F123: 34522 | G123: Monthly | H123: Flat Rate | I123: Monthly | J123: Flat Rate | K123: Monthly | L123: Flat Rate | M123: Monthly | N123: Flat Rate | O123: Monthly | S123: 1493 | T123: 113 | W123: 121 | Y123: 30.94 | AE123: 1450 | AM123: 0 | AN123: 0 | AO123: 0 | AP123: 0 | AQ123: No | AV123: x | AY123: No | AZ123: 706166 | BA123: 201295 | BB123: 149614 | BC123: x | BE123: x | BF123: x | BG123: No | BH123: 466 | BI123: 1.2 | BJ123: No | BN123: City of Dos Palos Wastewater Treatment Plant Dos Palos, CA | CA123: x | CC123: x | CI123: Extended air/activated sludge | CP123: x | CY123: Yes | DB123: CA0079286 | DC123: No
A124: Dublin San Ramon Services District | B124: Dublin | C124: 94568 | D124: Alameda | E124: 143000 | F124: 113936 | G124: Bimonthly | H124: Flat Rate | I124: Bimonthly | J124: Flat Rate | M124: Bimonthly | N124: Variable Based on Water Use. | O124: Bimonthly | P124: Variable Based on Water Use. | Q124: Bimonthly | R124: Variable Based on Water Use. | S124: 12157 | T124: 124 | V124: 11 | W124: 595 | X124: 83 | Y124: 31.08 | Z124: 17.845 | AB124: Fl:1347.93/mg; BOD:441.26/Klb; SS:219.07/Klb; Ld(BOD and SS):802.14/mg; Ld(Fl):51668.77/mgd | AC124: 3.16 | AD124: 3.33 | AE124: 16656 | AF124: 10977 | AH124: Fl:62.96/gpd; BOD:1479.74/ib/day; SS:778.65/lb/day; Local:8.33 | AI124: Fl:62.96/gpd; BOD:1479.74/ib/day; SS:778.65/lb/day; Local:8.33 | AJ124: Fl:62.96/gpd; BOD:1479.74/ib/day; SS:778.65/lb/day; Local:8.33 | AK124: 58.2 | AL124: 37.2 | AM124: 0.9 | AO124: 1.2 | AP124: 2.6 | AQ124: Yes | AR124: x | AS124: x | AT124: x | AU124: Demand (flow) | AV124: x | AW124: x | AY124: No | AZ124: 27295860 | BA124: 8077815 | BB124: 5418000 | BC124: x | BE124: x | BF124: x | BG124: Yes | BH124: 10.26 | BI124: 17 | BJ124: No | BK124: No | BN124: Regional Wastewater Treatment Plant, 7399 Johnson Drive, Pleasanton, CA 94588 | BZ124: x | CC124: x | CD124: x | CE124: x | CG124: x | CJ124: x | CN124: Filtration | CO124: Continuous backwash Sand Filtration | CP124: x | CT124: x | CU124: Facultative Sludge Lagoons | CV124: No | CW124: 2483.6 | CX124: 2483.6 | CY124: No | CZ124: East Bay Discharge Authority | DC124: Yes | DD124: http://www.dsrsd.com/open-gov/library/financial-reports
A125: Earlimart Public Utility District | B125: Earlimart | C125: 93219 | D125: Tulare | E125: 8600 | F125: 29000 | G125: Monthly | H125: Flat Rate | I125: Monthly | J125: Flat Rate | K125: Monthly | L125: Flat Rate | M125: Monthly | N125: Flat Rate | O125: Monthly | P125: Flat Rate | Q125: Monthly | R125: Flat Rate | S125: 1305 | T125: 130 | V125: 5 | W125: 42 | X125: 4 | Y125: 14.25 | Z125: 22.6 | AB125: 81.2 | AC125: 20.2 | AD125: 324.05 | AE125: 4600 | AK125: 100 | AQ125: No | AV125: x | AY125: No | AZ125: 970368 | BA125: 23215.95 | BB125: 0 | BC125: x | BD125: x | BE125: x | BF125: x | BG125: No | BH125: 0.628 | BI125: 0.907 | BJ125: No | BN125: Earlimart Wastewater Treatment Disposal Facility Location: (NE Quarter Section 31, T235, R25E MDE N1/2 SE1/4 Section 32, T235, R25E, MDE M | BZ125: x | CB125: x | CC125: x | CD125: x | CE125: x | CI125: Oxidation Ponds with recirculation | CT125: x | CV125: No | CY125: Yes | DA125: R5-98-140 | DC125: No
A126: East Bay Dischargers Authority | B126: San Lorenzo | C126: 94580 | D126: Alameda | E126: 800000 | AP126: 100 | BF126: x | BH126: 56 | BI126: 189 | BJ126: No | BL126: No | BM126: Union Sanitary District, Castro Valley/Ora Loma, City of Hayward and City of San Leandro
A127: East Independence Sanitary District | B127: Independence | C127: 93526 | D127: Inyo | E127: 62 | F127: 49554 | G127: Annual | H127: Flat Rate | I127: Annual | J127: Flat Rate | S127: 62 | Y127: 22.16 | AE127: 1625 | AK127: 100 | AQ127: No | AX127: x | AY127: N/A | BA127: 0 | BB127: 0 | BC127: x | BG127: No | BK127: No | BZ127: x | CF127: Oxidation Ponds | CG127: x | CT127: x | CV127: No | CY127: Yes | DC127: No | DE127: Chris Riesen is the man you need to speak to if you have another further needs. Email: chris.riesen@ladwp.com Office: (760) 878-3186 Cell:(760) 878-8097 Fax: (760) 878- 3028
A128: East Niles Community Services District | B128: Bakersfield | C128: 93386 | D128: Kern | E128: 26000 | G128: Annual | H128: Flat Rate | I128: Annual | J128: Flat Rate | K128: Annual | L128: Flat Rate | M128: Annual | N128: Flat Rate | O128: Annual | P128: Flat Rate | Q128: Annual | R128: Flat Rate | S128: 7006 | T128: 1008 | U128: 1079 | V128: 24 | W128: 115 | X128: 0 | Y128: 13.88 | Z128: 10.41 | AA128: 10.41 | AB128: 151.7 | AC128: 8.79 | AD128: N/A | AE128: 5310 | AF128: 3982 | AG128: 3982 | AH128: 8496 | AI128: 5000 | AJ128: 28000 | AK128: 90 | AL128: 10 | AQ128: Yes | AR128: x | AT128: x | AU128: Flow | AV128: x | AY128: No | AZ128: 950500 | BA128: 164310 | BB128: 520000 | BC128: x | BD128: x | BG128: No | BH128: 2.985 | BI128: 3.19 | BJ128: No | BN128: City of Bakersfield Wastewater Treatment Plant No. 2 - Mount Vernon Avenue | CY128: No | DC128: No
A129: East Quincy Services District | B129: Quincy | C129: 95971 | D129: Plumas | E129: 2500 | F129: 40984
A130: Eastern Municipal Water District | B130: Perris | C130: 92570 | D130: Riverside | E130: 122800 | F130: 57096 | G130: Monthly | H130: Flat Rate | I130: Monthly | J130: Flat Rate | K130: Monthly | L130: Flat Rate | M130: Monthly | N130: Flat Rate | O130: Monthly | P130: Flat Rate | Q130: Monthly | R130: Flat Rate | S130: 134656 | T130: combined with Single-family | U130: combined with Single-family | V130: 136 | W130: 3347 | X130: 679 | Y130: 29.47 | Z130: 29.47 | AA130: 29.47 | AB130: 29.47 | AC130: 29.47 | AD130: 29.47 | AE130: 7450 | AF130: 7450 | AG130: 7450 | AH130: 7450 | AI130: 7450 | AJ130: 7450 | AK130: 26 | AL130: 8 | AN130: 10 | AO130: 1 | AP130: 54 | AQ130: Yes | AR130: x | AT130: x | AV130: x | AW130: x | AY130: No | AZ130: 55655167 | BA130: 32422716 | BB130: 52000000 | BC130: x | BE130: x | BF130: x | BG130: Yes | BH130: 45.6 | BI130: 68 | BJ130: No | BK130: No | BN130: Perris Valley Regional Wastewater Reclamation Facility, Perris, CA | BO130: Moreno Valley Regional Wastewater Reclamation Facility, Moreno Valley, CA | BP130: Temecula Valley Regional Wastewater Reclamation Facility, Temecula, CA | BQ130: San Jacinto Regional Wastewater Reclamation Facility, San Jacinto, CA | CB130: x | CC130: x | CD130: x | CE130: x | CG130: x | CJ130: x | CN130: Filtration | CO130: Sand or Cloth Disk filters | CP130: x | CQ130: x | CR130: x | CT130: x | CU130: Sludge Handling - Land Application | CV130: Yes | CW130: 36000 | CX130: 36000 | CY130: Yes | DA130: R8-2008-0008 (ammended by R8-2014-0016); R9-2000-165 | DB130: R8-2009-0014 | DC130: Yes | DD130: www.emwd.org
A131: Eastern Sierra Community Service District | B131: Bishop | C131: 93514 | D131: Inyo | E131: 7538 | F131: 67362 | G131: Quarterly | H131: Flat Rate | I131: Quarterly | J131: Flat Rate | K131: Quarterly | L131: Flat Rate | M131: Quarterly | N131: Flat Rate | O131: Quarterly | P131: Flat Rate | Q131: Quarterly | R131: Flat Rate | S131: 1711 | T131: 59 | U131: 745 | V131: 1 | W131: 60 | X131: 11 | Y131: 19 | Z131: 19 | AA131: 19 | AB131: 72.94 | AC131: 19 | AD131: 36.45 | AE131: 2048 | AF131: 2048 | AG131: 2048 | AH131: 8.19 per gallon per day | AI131: 8.19 per gallon per day | AJ131: 8.19 per gallon per day | AK131: 98.78 | AO131: 0.79 | AP131: 0.43 | AQ131: No | AX131: x | AY131: No | AZ131: 897853 | BA131: 0 | BB131: 240000 | BC131: x | BD131: x | BE131: x | BF131: x | BG131: No | BH131: 0.66 | BI131: 0.85 | BJ131: No | BN131: Eastern Sierra Community Service District Wastewater Treatment Plant 984 Poleta Road, Bishop, CA 93514 | BZ131: x | CB131: x | CC131: x | CD131: x | CE131: x | CF131: Aerated Lagoon | CP131: x | CQ131: x | CT131: x | CV131: No | CY131: Yes | DA131: R6-94-024 (WDID No. 6B140108001) | DC131: No
A132: El Cajon, City of | B132: El Cajon | C132: 92020 | D132: San Diego | E132: 100000 | F132: 47000 | G132: Bimonthly | H132: Flat Rate/Variable Based | I132: Bimonthly | J132: Variable Based on Water Use. | K132: Bimonthly | L132: Variable Based on Water Use. | M132: Bimonthly | N132: Variable Based on Water Use. | O132: Bimonthly | P132: Variable Based on Water Use. | Q132: Bimonthly | R132: Variable Based on Water Use. | S132: 13400 | T132: 1500 | U132: 50 | W132: 1500 | X132: 76 | Y132: 38 | Z132: 30 | AA132: 30 | AB132: 180 | AC132: 180 | AD132: 400 | AE132: 3472 | AF132: 2604 | AG132: 1736 | AK132: 98% | AL132: 1% | AM132: 1% | AN132: 0 | AO132: 0 | AP132: 0 | AQ132: No | AX132: x | AY132: No | AZ132: 11349159 | BA132: 0 | BB132: 15829300 | BC132: x | BG132: No | BH132: 7.5 | BI132: 20 | BJ132: No | BK132: No | BL132: No | BM132: City of San Diego - Metropolitan Wastewater | DC132: Yes | DD132: http://www.ci.el-cajon.ca.us/dept/works/Forms/Sanitary%20Sewer%20Management%20Plan.pdf
A133: El Centro, City of | B133: El Centro | C133: 92243 | D133: Imperial | E133: 44311 | F133: 28351 | G133: Monthly | H133: Flat Rate | I133: Monthly | J133: Variable Based on Water Use. | K133: Monthly | L133: Variable Based on Water Use. | M133: Monthly | N133: Variable Based on Water Use. | O133: Monthly | P133: Variable Based on Water Use. | Q133: Monthly | R133: Variable Based on Water Use. | S133: 8419 | W133: 773 | X133: 173 | Y133: 49.64 | AE133: attachment | AK133: 98 | AO133: 2 | AQ133: No | AV133: x | AY133: No | AZ133: 586466 | BA133: 3022093 | BB133: 16041910 | BC133: x | BG133: No | BH133: 3.8 | BI133: 8 | BJ133: No | BL133: No | BM133: Imperial County | DC133: No
A134: El Dorado Irrigation District- DC | B134: Placerville | C134: 95667 | D134: El Dorado | E134: 52741 | F134: 68500 | G134: Bimonthly | H134: Variable Based on Water Use. | I134: Bimonthly | J134: Variable Based on Water Use. | K134: Bimonthly | L134: Variable Based on Water Use. | M134: Bimonthly | N134: Variable Based on Water Use. | O134: Bimonthly | P134: Variable Based on Water Use. | Q134: Bimonthly | R134: Variable Based on Water Use. | S134: 19932 | T134: 353 | U134: N/A | V134: N/A | W134: 827 | X134: 25 | Y134: 70.88 | AE134: 12862 | AF134: 12862 | AG134: N/A | AH134: N/A | AI134: 12862 | AJ134: 12862 | AK134: 65.8 | AL134: 9.4 | AN134: 10.9 | AO134: 1.2 | AP134: 12.7 | AQ134: Yes | AR134: x | AT134: x | AV134: x | AW134: x | AY134: No | AZ134: 16985545 | BA134: 8555176 | BB134: 3831000 | BE134: x | BG134: Yes | BH134: 2.1 | BI134: 3.6 | BJ134: No | BN134: Deer Creek Wastwater Treatment Plant- El Dorado County, CA | CA134: x | CC134: x | CD134: x | CG134: x | CI134: BNR | CL134: x | CN134: Filtration | CO134: Multi-Media, Cloth, Anthracite | CQ134: x | CR134: x | CT134: x | CU134: Aerobic Digestion | CV134: Yes | CW134: 3175 | CX134: 3175 | CY134: Yes | DB134: CA0078662 | DC134: Yes | DD134: http://eid.org/about-us/document-library
A135: El Dorado Irrigation District- EDH | B135: Placerville | C135: 95667 | D135: El Dorado | E135: 52741 | F135: 68500 | G135: Bimonthly | H135: Variable Based on Water Use. | I135: Bimonthly | J135: Variable Based on Water Use. | K135: Bimonthly | L135: Variable Based on Water Use. | M135: Bimonthly | N135: Variable Based on Water Use. | O135: Bimonthly | P135: Variable Based on Water Use. | Q135: Bimonthly | R135: Variable Based on Water Use. | S135: 19932 | T135: 353 | U135: N/A | V135: N/A | W135: 827 | X135: 25 | Y135: 70.88 | AE135: 12862 | AF135: 12862 | AG135: N/A | AH135: N/A | AI135: 12862 | AJ135: 12862 | AK135: 65.8 | AL135: 9.4 | AN135: 10.9 | AO135: 1.2 | AP135: 12.7 | AQ135: Yes | AR135: x | AT135: x | AV135: x | AW135: x | AY135: No | AZ135: 16985545 | BA135: 8555176 | BB135: 3831000 | BE135: x | BG135: Yes | BH135: 2.1 | BI135: 4 | BJ135: No | BN135: El Dorado Hills Wastewater Treatment Plant- El Dorado County, CA | CC135: x | CD135: x | CG135: x | CI135: BNR | CL135: x | CN135: Filtration | CO135: Dual-Media | CP135: x | CQ135: x | CT135: x | CU135: Aerobic Digestion | CV135: Yes | CW135: 3175 | CX135: 3175 | CY135: Yes | DB135: CA0078671 | DC135: Yes | DD135: http://www.eid.org/about-us/document-library
A136: El Dorado Irrigation District-CH | B136: Placerville | C136: 95667 | D136: El Dorado | E136: 52741 | F136: 68500 | G136: Bimonthly | H136: Variable Based on Water Use. | I136: Bimonthly | J136: Variable Based on Water Use. | K136: Bimonthly | L136: Variable Based on Water Use. | M136: Bimonthly | N136: Variable Based on Water Use. | O136: Bimonthly | P136: Variable Based on Water Use. | Q136: Bimonthly | R136: Variable Based on Water Use. | S136: 19932 | T136: 353 | U136: N/A | V136: N/A | W136: 827 | X136: 25 | Y136: 70.88 | AE136: 12862 | AF136: 12862 | AG136: N/A | AH136: N/A | AI136: 12862 | AJ136: 12862 | AK136: 65.8 | AL136: 9.4 | AN136: 10.9 | AO136: 1.2 | AP136: 12.7 | AQ136: Yes | AR136: x | AT136: x | AV136: x | AW136: x | AY136: No | AZ136: 16985545 | BA136: 8555176 | BB136: 3831000 | BE136: x | BG136: Yes | BH136: 0.01 | BI136: 0.06 | BJ136: No | BN136: Camino Heights Wastewater Treatment Plant- El Dorado County, CA | BZ136: x | CC136: x | CJ136: x | CM136: Sodium Hypochlorite | CN136: Filtration | CO136: Sand Filtration | CW136: 3175 | CX136: 3175 | CY136: Yes | DA136: R5-2012-0045 | DC136: Yes | DD136: http://www.eid.org/about-us/document -library
A137: El Monte Water Department, City of | B137: El Monte | C137: 91731 | D137: Los Angeles | E137: 116000 | F137: 42000 | G137: Annual | H137: Flat Rate | I137: Annual | J137: Flat Rate | K137: Annual | L137: Flat Rate | M137: Annual | N137: Flat Rate | O137: Annual | P137: Flat Rate | Q137: Annual | R137: Flat Rate | S137: 11234 | T137: 2842 | U137: 38 | V137: 432 | W137: 865 | X137: 105 | Y137: 8.49 | Z137: 5.1 | AA137: 5.1 | AB137: 54.55 | AC137: 81.64 | AD137: 64.19 | AE137: 48.5 | AF137: 48.5 | AG137: 48.5 | AH137: 48.5 | AI137: 48.5 | AJ137: 48.5 | AL137: 1.5 | AN137: 94.5 | AP137: 4 | AQ137: Yes | AT137: x | AU137: Flow | AW137: x | AY137: No | AZ137: 1892000 | BA137: 489000 | BB137: 600000 | BC137: x | BG137: Yes | BH137: 10 | BJ137: No | BN137: County Sanitation District | DC137: No
A138: El Toro Water District | B138: Lake Forest | C138: 92630 | D138: Orange | E138: 48625 | F138: 82302 | G138: Monthly | H138: Flat Rate | I138: Monthly | J138: Flat Rate | K138: Monthly | L138: Flat Rate | O138: Monthly | P138: Variable Based on Water Use. | S138: 6593 | T138: 1546 | U138: 25 | W138: 737 | Y138: 20.5 | Z138: 17.8 | AA138: 18.38 | AC138: 3.64 | AE138: 9.31 per gallon | AF138: 9.31 per gallon | AG138: 9.31 per gallon | AI138: 9.31 per gallon | AK138: 28 | AQ138: Yes | AR138: x | AV138: x | AY138: No | AZ138: 7.1 million | BA138: 0.8 million | BB138: 1.9 million | BC138: x | BE138: x | BG138: Yes | BH138: 3.7 | BI138: 5.4 | BJ138: No | BN138: 23542 Moulton Parkway, Laguna Hills, CA 92653 | CC138: x | CG138: x | CJ138: x | CN138: Filtration | CO138: cloth media disk filters | CV138: No | CW138: 500 | CX138: 500 | CY138: No | CZ138: SOCWA | DC138: No
A139: Elsinore Valley Municipal Water District | B139: Lake Elsinore | C139: 92530 | D139: Riverside | E139: 128232 | F139: 44616 | G139: Monthly | H139: Flat Rate | I139: Monthly | J139: Flat Rate/Variable Based | K139: Monthly | L139: Flat Rate/Variable Based | M139: Monthly | N139: Flat Rate/Variable Based | O139: Monthly | P139: Flat Rate/Variable Based | Q139: Monthly | R139: Flat Rate/Variable Based | S139: 32183 | T139: 835 | U139: 835 | V139: 835 | W139: 835 | X139: 835 | Y139: 43.5 | Z139: 32.97 | AA139: 7.88 | AB139: 31.5 | AC139: 31.5 | AD139: 31.5 | AE139: 7625 | AK139: 81.8 | AM139: 10.7 | AO139: 0.4 | AP139: 7, Recycled Water & Misc | AQ139: Yes | AR139: x | AV139: x | AY139: No | AZ139: 19255778 | BA139: 4336093 | BB139: 19705900 | BC139: x | BD139: x | BE139: x | BF139: x | BG139: Yes | BH139: 7.356 | BI139: 9.7 | BJ139: No | BK139: No | BL139: Yes | BN139: Regional Wastewater Treatment Plant, 14980 Strickland Ave, Lake Elsinore, CA 92530 | BO139: Railroad Wastewater Treatment Plant, 21982 Railroad Canyon Rd., Lake Elsinore, CA 92530 | BP139: Horsethief Wastewater Treatment Plant, 13200 Shotgun Trail, Lake Elsinore, CA 92530 | CA139: x | CF139: As a preliminary treatment, headworks filter scum/grit removal | CG139: x | CJ139: x | CN139: Filtration | CO139: Multi-media tertiary treatment | CQ139: x | CR139: x | CS139: x | CU139: Sludge hauled to secondary contracted facility, final disposal of compost-land application | CV139: Yes | CW139: 595 | CX139: 160 | CY139: Yes | DA139: R8-96-34, R8-96-63 | DB139: R8 2013-0017, CA8000027 | DC139: Yes
A140: Emerald Bay Service District | B140: Laguna Beach | C140: 92651 | D140: Orange | E140: 1100 | F140: 150000 | AN140: 100 | AQ140: No | AX140: x | AY140: N/A | AZ140: 481000 | BB140: 154000 | BC140: x | BG140: Yes | BH140: 0.07 | BI140: 0.2 | BJ140: No | BL140: No | BM140: South Orange County Wastewater Authority | DC140: No
A141: Empire Sanitary District | B141: Empire | C141: 95319 | D141: Stanislaus | E141: 1500 | F141: N/A | G141: Monthly | H141: Flat Rate | I141: Monthly | J141: Flat Rate | K141: Monthly | L141: Flat Rate | M141: Monthly | N141: Flat Rate | O141: Monthly | P141: Flat Rate | Q141: Monthly | R141: Flat Rate | S141: 855 | T141: 132 | U141: 473 | V141: 0 | W141: 41 | X141: 2 | Y141: 35.75 | Z141: 35.75 | AA141: 35.75 | AB141: 35.75 | AC141: 35.75 | AD141: 478.75 | AE141: 1200 | AF141: 1200 | AG141: 1200 | AH141: 1200 | AI141: 1200 | AJ141: 1200 | AK141: 100% | AL141: 0 | AM141: 0 | AN141: 0 | AO141: 0 | AP141: 0 | AQ141: No | AX141: x | AY141: No | AZ141: 566000 | BB141: 45000 | BC141: x | BG141: No | BH141: City of modesto maintains these records | BI141: City of modesto maintains these records | BJ141: No | BK141: No | BN141: none - The City of modesto is responsible for our treatment facilities | CY141: No | CZ141: City of Modesto | DC141: No
A142: Encina Wastewater Authority | B142: Carlsbad | C142: 92011 | D142: San Diego | E142: 358000 | F142: 61382 | G142: Monthly | H142: Flat Rate | S142: N/A | Y142: N/A | AE142: N/A | AK142: N/A | AQ142: No | AX142: x | AY142: N/A | AZ142: 14152686 | BA142: 0 | BB142: 10862818 | BE142: x | BF142: x | BG142: No | BH142: 20.97 | BI142: 43.3 | BJ142: No | BL142: Yes | BN142: Encina Water Pollution Control Facility | BO142: Carlsbad Water Recycling Facility | BY142: x | CB142: x | CC142: x | CD142: x | CE142: x | CF142: Chemically Enhanced Primary Treatment (CEPT) | CG142: x | CJ142: x | CN142: Filtration | CO142: Granular Media FIlter | CP142: x | CQ142: x | CR142: x | CT142: x | CU142: Heat drying | CV142: No | CW142: 1633.79 | CX142: 1633.79 | CY142: Yes | DA142: R9-2011-0019 | DB142: CA107395 | DC142: Yes | DD142: http://www.encinajpa.com/Portals/0/DOCUMENTS/CAMP/FY2015%20E-CAMP.pdf | DE142: Encina Wastewater Authority operates and maintains lift stations but member agencies are responsible for collection systems. Questions 1-3 of section 3 were marked "N/A" or left incomplete because rates are set and reported by each member agency.
A143: Encinitas, City of -Cardiff Sanitary Division | B143: Encinitas | C143: 92024 | D143: San Diego | E143: 19500 | F143: 84894 | G143: Annual | H143: Variable Based on Water Use. | I143: Annual | J143: Variable Based on Water Use. | K143: Annual | L143: Variable Based on Water Use. | M143: Annual | N143: Variable Based on Water Use. | O143: Annual | P143: Variable Based on Water Use. | Q143: Annual | R143: Variable Based on Water Use. | S143: 4623 | T143: 1571 | W143: 228 | Y143: 50.83 | Z143: 29.64 | AC143: 227.72 | AE143: 3417 | AF143: 3417/edu | AG143: 3417/edu | AH143: 3417/edu | AI143: 3417/edu | AJ143: 3417/edu | AK143: 96 | AL143: 2 | AO143: 2 | AQ143: Yes | AR143: x | AT143: x | AV143: x | AY143: No | AZ143: 2568260 | BA143: 705789 | BB143: 1051915 | BC143: x | BG143: Yes | BH143: 1.304 | BI143: 2.5 | BJ143: No | BK143: No | DC143: Yes | DD143: www.encinitasca.gov | DE143: Online survey does not include agency responsible for treatment. For the Cardiff Sanitary Division, it is the San Elijo Joint Powers Authority.
A144: Encinitas, City of-Encinitas Sanitary Division | B144: Encinitas | C144: 92024 | D144: San Diego | E144: 16500 | F144: 84894 | G144: Annual | H144: Variable Based on Water Use. | I144: Annual | J144: Variable Based on Water Use. | K144: Annual | L144: Variable Based on Water Use. | M144: Annual | N144: Variable Based on Water Use. | O144: Annual | P144: Variable Based on Water Use. | Q144: Annual | R144: Variable Based on Water Use. | S144: 2504 | T144: 1119 | W144: 393 | Y144: 45.78 | Z144: 24.76 | AC144: 161.06 | AE144: 2680 | AF144: 2680/edu | AG144: 2680/edu | AH144: 2680/edu | AI144: 2680/edu | AJ144: 2680/edu | AK144: 96 | AL144: 2 | AO144: 2 | AQ144: Yes | AR144: x | AT144: x | AX144: x | AY144: No | AZ144: 1333868 | BB144: 1170446 | BC144: x | BG144: Yes | BH144: 1.1 | BI144: 1.8 | BJ144: No | BK144: No | DC144: Yes | DD144: www.encinitasca.gov | DE144: Did not see spot for entering the agency that is responsible for treatment in online survey. For the Encinitas Sanitary Division, it is the Encina Wastewater Authority
A145: Escalon, City of | B145: Escalon | C145: 95320 | D145: San Joaquin | E145: 2450 | F145: 53935 | G145: Bimonthly | H145: Flat Rate | I145: Bimonthly | J145: Flat Rate | K145: Bimonthly | L145: Flat Rate | M145: Bimonthly | N145: Flat Rate | O145: Bimonthly | P145: Flat Rate | Q145: Bimonthly | R145: Flat Rate | S145: 2241 | T145: 45 | U145: 3 | V145: 4 | W145: 135 | X145: 21 | Y145: 20.24 | Z145: 20.24 | AA145: 20.24 | AB145: 47.81 AVG | AC145: 20.24 | AD145: 20.24 | AE145: 2.4 | AF145: 2.4 | AG145: 2.4 | AH145: 5.65 AVG | AI145: 2.4 | AJ145: 2.4 | AK145: 33 | AL145: 1 | AM145: 66 | AO145: >1 | AQ145: Yes | AR145: x | AT145: x | AV145: x | AY145: No | AZ145: 1319203 | BA145: 60260 | BB145: 1771500 | BC145: x | BE145: x | BF145: x | BG145: Yes | BH145: 1.27 | BI145: 4.3 | BJ145: No | BN145: Escalon Wastewater Treatment Facility 25100 River Road Escalon, CA 95320 | BZ145: x | CA145: x | CF145: AERATOR PONDS | CT145: x | CV145: No | CW145: NONE | CX145: NONE | CY145: Yes | DA145: R5-00-142 | DC145: Yes | DD145: WITHIN THE BUDGET ON OUR WEBSITE: www.cityofescalon.org
A146: Fairfield-Suisun Sewer District | B146: Fairfield | C146: 94534 | D146: Solano | E146: 133432 | F146: 66363 | G146: Monthly | H146: Flat Rate | I146: Monthly | J146: Flat Rate | K146: Monthly | L146: Flat Rate | M146: Monthly | N146: Variable Based on Water Use. | O146: Monthly | P146: Variable Based on Water Use. | Q146: Monthly | R146: Flat Rate | S146: 44185 | T146: 105 | U146: 10 | V146: 10 | W146: 888 | Y146: 32.71 | Z146: 32.71 | AA146: 32.71 | AE146: 5493 | AF146: 5493 for 1st unit, 3566 per addl unit | AG146: 1st unit 5493, 2971 per addl unit | AH146: 5493 per CU | AI146: 5493 per CU | AK146: 61 | AL146: 6 | AP146: 28% bond proceeds | AQ146: Yes | AR146: x | AT146: x | AV146: x | AY146: No | AZ146: $23M | BA146: 2.5M | BB146: 2.5M | BD146: x | BE146: x | BF146: x | BG146: Yes | BH146: 11 | BI146: 23.7 | BJ146: No | BK146: No | BN146: Fairfield-Suisun Wastewater Treatment Plant, 1010 Chadbourne Road, Fairfield CA | BX146: x | CC146: x | CD146: x | CE146: x | CG146: x | CH146: x | CL146: x | CN146: Filtration | CO146: dual media sand-anthracite | CP146: x | CQ146: x | CR146: x | CT146: x | CV146: Yes | CW146: 1270 | CY146: Yes | DA146: R2-2009-0039 | DB146: CA0038024 | DC146: Yes | DD146: http://www.fssd.com/FinanceBudgetAndFinancialPlan.html
A147: Fall River Valley Community Services District | B147: Fall River Mills | C147: 96028 | D147: Shasta | E147: 900 | F147: 30000 | G147: Monthly | H147: Variable Based on Water Use. | I147: Monthly | J147: Variable Based on Water Use. | K147: Monthly | L147: Variable Based on Water Use. | O147: Monthly | P147: Variable Based on Water Use. | Q147: Monthly | R147: Variable Based on Water Use. | S147: 207 | T147: N/A | U147: N/A | V147: N/A | W147: 40 | X147: N/A | Y147: 45.6 | Z147: N/A | AA147: N/A | AB147: N/A | AC147: 100 | AD147: N/A | AE147: 2500 | AF147: 2500 | AG147: 2500 | AH147: 2500 | AI147: 2500 | AJ147: 2500 | AK147: 93 | AL147: 1 | AN147: 6 | AQ147: Yes | AR147: x | AV147: x | AY147: No | AZ147: 161300 | BA147: 15325 | BB147: 0 | BC147: x | BE147: x | BF147: x | BG147: No | BH147: 0.069 | BI147: 0.072 | BJ147: Yes | BN147: Fall River Valley Community Services District Evaporative Ponds 141.01666 N, -121.441667 W | BZ147: x | CC147: x | CV147: No | CW147: 0 | CX147: 0 | CY147: Yes | DA147: R5-94-048 | DC147: No
A148: Fallbrook Public Utility District | B148: Fallbrook | C148: 92088 | D148: San Diego | E148: 23000 | G148: Monthly | H148: Flat Rate/Variable Based | I148: Monthly | J148: Flat Rate/Variable Based | K148: Monthly | L148: Flat Rate/Variable Based | M148: Monthly | N148: Flat Rate/Variable Based | O148: Monthly | P148: Flat Rate/Variable Based | Q148: Monthly | R148: Flat Rate/Variable Based | S148: 4053 | T148: 416 | U148: 11 | V148: 28 | W148: 371 | Y148: 21.23 | Z148: 21.23 | AA148: 21.23 | AB148: 21.23 | AC148: 21.23 | AE148: 6575 | AF148: 6575 | AG148: 6575 | AH148: 6575 | AI148: 6575 | AJ148: 6575 | AK148: 100 | AQ148: Yes | AR148: x | AT148: x | AV148: x | AW148: x | AY148: No | AZ148: 5350892 | BA148: 1565731 | BB148: 11618150 | BC148: x | BE148: x | BF148: x | BG148: Yes | BH148: 1.8 | BI148: 2.7 | BJ148: No | BN148: Fallbrook Water Reclamation Plant | CA148: x | CC148: x | CD148: x | CE148: x | CG148: x | CJ148: x | CN148: Filtration | CQ148: x | CR148: x | CU148: Dryer for solids | CV148: No | CW148: 742 | CX148: 742 | CY148: Yes | DA148: R9-91-039 | DB148: R9-2012-0004 | DC148: Yes | DD148: www.fpud.com
A149: Firebaugh, City of | B149: Firebaugh | C149: 93622 | D149: Fresno | E149: 7500 | F149: 32875 | G149: Monthly | H149: Variable Based on Water Use. | I149: Monthly | J149: Variable Based on Water Use. | K149: Monthly | L149: Variable Based on Water Use. | M149: Monthly | N149: Variable Based on Water Use. | O149: Monthly | P149: Variable Based on Water Use. | Q149: Monthly | S149: 1415 | T149: 45 | U149: 75 | V149: 6 | W149: 123 | Y149: 49.95 | Z149: 49.95 | AA149: 49.95 | AB149: 764.24 | AC149: varies depending on business | AE149: 0 | AF149: 0 | AG149: 0 | AH149: 0 | AI149: 0 | AP149: flat rate | AQ149: Yes | AV149: x | AY149: No | AZ149: 1504861 | BA149: 147056 | BB149: 453000 | BC149: x | BG149: No | BH149: 0.6 | BI149: 1.5 | BJ149: Yes | BN149: Firebaugh Waste Water Treatment Plant | BZ149: x | CC149: x | CV149: No | CY149: Yes | DA149: R5-98-230 | DC149: Yes | DD149: www.ci.firebaugh.ca.us
A150: Folsom, City of | B150: Folsom | C150: 95630 | D150: Sacramento | E150: 73098 | F150: 95623 | G150: Monthly | H150: Flat Rate | I150: Monthly | J150: Flat Rate | K150: Monthly | L150: Flat Rate | M150: Monthly | N150: Variable Based on Water Use. | O150: Monthly | P150: Flat Rate/Variable Based | Q150: Monthly | R150: Flat Rate/Variable Based | S150: 20403 | T150: 553 | U150: 585 | V150: 2 | W150: 876 | X150: 79 | Y150: 16.15 | Z150: 16.15 | AA150: 16.15 | AB150: .12/100 gal | AC150: varies - see uploaded Sewer Rates or website | AD150: varies - see uploaded Sewer Rates or website | AE150: 965 | AF150: 755 | AG150: 854 | AH150: varies - see uploaded Connection fees or website | AI150: varies - see uploaded Connection fees or website | AJ150: varies - see uploaded Connection fees or website | AK150: 95 | AL150: 5 | AQ150: No | AX150: x | AY150: No | AZ150: 4373613 | BA150: 0 | BB150: 2361235 | BC150: x | BG150: No | BH150: 5.18 | BI150: 12 | BJ150: No | BK150: No | DC150: Yes | DD150: www.folsom.ca.us | DE150: User rates and connections fees can be found on the City's website rates - www.folsom.ca.us/depts/ewr/2013_water_rates.asp connection fees - http://www.folsom.ca.us/depts/management_n_budget_(formerly_finance)/city_fees/default.asp
A151: Fontana, City of | B151: Fontana | C151: 92335 | D151: San Bernardino | E151: 186045 | F151: 64195 | G151: Bimonthly | H151: Flat Rate | I151: Bimonthly | J151: Flat Rate | K151: Bimonthly | L151: Flat Rate | M151: Monthly | N151: Variable Based on Water Use. | O151: Bimonthly | P151: Variable Based on Water Use. | Q151: Bimonthly | R151: Variable Based on Water Use. | S151: 37606 | T151: 8575 | U151: 564 | V151: 200 | W151: 790 | X151: 122 | Y151: 21.76 | Z151: 17.44 | AA151: 21.76 | AB151: 40.16 | AC151: 26.76 | AD151: 26.76 | AE151: 5876.61 | AF151: 5876.61 | AG151: 5876.61 | AH151: 5876.61 | AI151: 5876.61 | AJ151: 5876.61 | AK151: 96 | AL151: 1 | AM151: 3 | AQ151: Yes | AR151: x | AV151: x | AY151: No | AZ151: 15335639 | BA151: 133895 | BB151: 1193000 | BC151: x | BG151: Yes | BH151: 11 | BJ151: No | BN151: Inland Empire Utilities Agency
A152: Ford City-Taft Heights | B152: Bakersfield | C152: 93307 | D152: Kern | E152: 6000 | F152: 48000 | G152: Annual | H152: Flat Rate/Variable Based | I152: Annual | J152: Flat Rate/Variable Based | K152: Annual | L152: Flat Rate/Variable Based | M152: Annual | N152: Flat Rate/Variable Based | O152: Annual | P152: Flat Rate/Variable Based | Q152: Annual | R152: Flat Rate/Variable Based | S152: 1880 | T152: 80 | U152: 0 | V152: 0 | W152: 20 | X152: 0 | Y152: 24 | Z152: 48 | AA152: 0 | AB152: 0 | AC152: 96 | AD152: 0 | AE152: 715 | AF152: 1430 | AG152: 715 | AH152: 2860 | AI152: 2145 | AJ152: 0 | AK152: 99 | AL152: 1 | AQ152: Yes | AR152: x | AT152: x | AX152: x | AY152: No | AZ152: 1170000 | BA152: 0 | BB152: 0 | BC152: x | BD152: x | BG152: No | BH152: 1 | BI152: 1.2 | BJ152: No | BK152: No | BN152: Ford City-Taft Heights Sanitation District | BZ152: x | CC152: x | CV152: No | CY152: No | CZ152: City of Taft | DC152: No
A153: Fort Bragg, City of | B153: Fort Bragg | C153: 95437 | D153: Mendocino | E153: 7300 | G153: Monthly | H153: Flat Rate/Variable Based | I153: Monthly | J153: Flat Rate/Variable Based | K153: Monthly | L153: Flat Rate/Variable Based | M153: Monthly | N153: Flat Rate/Variable Based | O153: Monthly | P153: Flat Rate/Variable Based | Q153: Monthly | R153: Flat Rate/Variable Based | S153: 2222 | T153: 204 | U153: 5 | V153: 31 | W153: 398 | X153: 30 | Y153: 36.88 | Z153: 32.76 | AA153: 32.76 | AB153: 32.76 | AC153: 32.76 | AD153: 32.76 | AE153: 3375 | AF153: 3375 | AG153: 3510 | AH153: 3510 | AI153: 3510 | AJ153: 3510 | AK153: 99.5 | AL153: 0.27 | AO153: 0.17 | AQ153: No | AV153: x | AY153: No | AZ153: 2739869 | BA153: 59922 | BB153: 750000 | BC153: x | BD153: x | BE153: x | BF153: x | BG153: No | BH153: 0.6 | BI153: 1 | BJ153: No | BN153: City of Fort Bragg Municipal Improvement District #1 | CC153: x | CD153: x | CE153: x | CH153: x | CJ153: x | CP153: x | CQ153: x | CR153: x | CT153: x | CV153: No | CW153: No Flow Meter | CX153: 12.7 | CY153: Yes | DA153: R1-2015-0024 (WDID#:1B84083OMEN) | DB153: CA0023078
A154: Fort Jones, City of | B154: Fort jones | C154: 96032 | D154: Siskiyou | E154: 636 | F154: 29290 | G154: Monthly | H154: Flat Rate | I154: Monthly | J154: Flat Rate | K154: Monthly | L154: Flat Rate | M154: Monthly | N154: Flat Rate | O154: Monthly | P154: Flat Rate | Q154: Monthly | R154: Flat Rate | S154: 332 | W154: 14 | X154: 2 | Y154: 15 | Z154: 15 | AA154: 15 | AB154: 15 | AC154: 15 | AD154: 115 | AE154: 0 | AF154: 0 | AG154: 0 | AH154: 0 | AI154: 0 | AJ154: 0 | AK154: 98 | AL154: 2 | AQ154: No | AX154: x | AY154: No | AZ154: 48000 | BB154: 3300 | BC154: x | BE154: x | BF154: x | BG154: No | BH154: 0.5 | BI154: 0.6 | BJ154: No | BK154: No | BN154: Wastewater ponds scott river rd fj,ca.96032 | BZ154: x | CE154: x | CF154: imhoff tank | CS154: x | CV154: No | CW154: 0 | CX154: 0 | CY154: Yes | DA154: R1-2014-0029 | DC154: No
A155: Franklin County Water District | B155: Merced | C155: 95348 | D155: Merced | E155: 4500 | G155: Monthly | I155: Monthly | K155: Monthly | O155: Monthly | Q155: Monthly | Y155: 33 | Z155: 33 | AA155: 33 | AB155: 33 | AC155: 33 | AD155: 33 | AK155: 100 | AQ155: No | AV155: x | AW155: x | AY155: No | AZ155: 100000 | BB155: 100000 | BC155: x | BE155: x | BF155: x | BG155: No | BH155: 422 | BI155: 1 | BJ155: No | BZ155: x | CC155: x | CI155: Areation- pond system | CS155: x | CV155: No | CY155: No | DC155: No
A156: Galt, City of | B156: Galt | C156: 95632 | D156: Sacramento | E156: 24185
A157: Garberville Sanitary District | B157: Garberville | C157: 95542 | D157: Humboldt | E157: 847 | F157: 39637 | G157: Monthly | H157: Variable Based on Water Use. | I157: Monthly | J157: Variable Based on Water Use. | O157: Monthly | P157: Variable Based on Water Use. | S157: 238 | T157: 15 | W157: 111 | Y157: 78.72 | Z157: 80.58 | AC157: 80.58 | AE157: Not given | AK157: 94 | AL157: 1 | AN157: 5 | AQ157: No | AV157: x | AY157: No | AZ157: 349248 | BC157: x | BE157: x | BG157: No | BH157: 0.059 | BJ157: No | BN157: Garberville Sanitary, 410 Bear Canyon Rd., Garberville CA 95592 | BZ157: x | CB157: x | CG157: x | CJ157: x | CN157: Filtration | CT157: x | CV157: No | CY157: Yes | DA157: R1-2011-0096 | DC157: No
A158: Garden Grove Sanitary District | B158: Garden Grove | C158: 92843 | D158: Orange | E158: 174000 | F158: 59988 | G158: Monthly | H158: Variable Based on Water Use. | I158: Monthly | J158: Variable Based on Water Use. | K158: Monthly | L158: Variable Based on Water Use. | M158: Monthly | N158: Variable Based on Water Use. | O158: Monthly | P158: Variable Based on Water Use. | Q158: Monthly | R158: Variable Based on Water Use. | S158: 29450 | T158: 1834 | V158: 318 | W158: 1706 | X158: 91 | Y158: 10.6 | Z158: 74.99 | AB158: 69.75 | AC158: 47.43 | AD158: 101.7 | AE158: 4360 | AQ158: No | AV158: x | AY158: No | AZ158: 5165300 | BA158: 1463000 | BB158: 3500000 | BC158: x | BG158: No | BH158: 16 | BI158: 16 | BJ158: No | BL158: No | BM158: Orange County Sanitation District | DC158: No
A159: Garden, City of | B159: Gardena | C159: 90247 | D159: Los Angeles | E159: 60000 | F159: 50000 | G159: Monthly | H159: Variable Based on Water Use. | I159: Monthly | J159: Variable Based on Water Use. | K159: Monthly | L159: Variable Based on Water Use. | M159: Monthly | N159: Variable Based on Water Use. | O159: Monthly | P159: Variable Based on Water Use. | Q159: Monthly | R159: Variable Based on Water Use. | S159: 13800 | Y159: 0.25 per 100 cubic ft. of water use | AE159: 140 | AF159: 140 | AG159: n/a | AH159: 810 | AI159: 540 | AK159: 100 | AQ159: No | AX159: x | AY159: Yes | AZ159: 400000 | BB159: 350000 | BC159: x | BG159: No | CI159: City of Gardena does not have a treatment facility | CY159: Yes | DA159: 2006-003-DWQ | DC159: No | DE159: City of Gardena has no treatment facility
A160: Gardena, City of | B160: Gardena | C160: 90247 | D160: Los Angeles | E160: 60000 | F160: 50000
A161: Golden Valley Municipal Water District | B161: Escondido | C161: 92025 | D161: Los Angeles | E161: 200 | G161: Monthly | H161: Flat Rate | I161: Monthly | J161: Flat Rate | K161: Monthly | L161: Flat Rate | M161: Monthly | N161: Flat Rate | O161: Monthly | P161: Flat Rate | Q161: Monthly | R161: Flat Rate | S161: 3 | T161: N/A | U161: N/A | V161: N/A | W161: 8 | X161: N/A | Y161: 145 | AC161: 1594 | AE161: 4700 | AF161: 4700 | AG161: 4700 | AH161: N/A | AI161: 4700 | AJ161: N/A | AK161: 100 | AL161: 0 | AM161: 0 | AN161: 0 | AO161: 0 | AP161: 0 | AQ161: No | AX161: x | AY161: No | AZ161: 160000 | BA161: 0 | BB161: 0 | BC161: x | BE161: x | BF161: x | BG161: No | BH161: 0.015 | BI161: 0.6 | BJ161: No | BK161: No | BL161: Yes | BN161: Gorman Wastewater Treatment Plant (1845) | BX161: x | BZ161: x | CF161: Imhoff Tank | CV161: No | CW161: 0 | CX161: 0 | CY161: Yes | DA161: R4-94-087 | DC161: No
A162: Goleta Sanitary District | B162: Goleta | C162: 93117 | D162: Santa Barbara | E162: 80000 | G162: Annual | H162: Flat Rate | I162: Annual | J162: Flat Rate | K162: Annual | L162: Flat Rate | M162: Annual | N162: Variable Based on Water Use. | O162: Annual | P162: Flat Rate/Variable Based | Q162: Annual | R162: Variable Based on Water Use. | S162: 8331 | T162: 2646 | U162: included with multi-family | V162: 108 | W162: 848 | X162: 59 | Y162: 37.8 | Z162: 30.63 | AA162: 30.63 | AB162: 288.09 | AC162: 1290 | AD162: 5184 | AE162: 2058 | AF162: 1441 | AG162: 1414 | AH162: $2058 minimum, based upon number of plumbing fixtures | AI162: $2058 minimum, based upon number of plumbing fixtures | AJ162: $2058 minimum, based upon number of plumbing fixtures | AK162: 70% | AL162: 3.7% | AM162: 0.15% | AN162: 1 | AO162: 0.2% | AP162: 24.95% capacity contract users cost sharing and wastewater reclamation cost reimbursement | AQ162: Yes | AR162: x | AT162: x | AV162: x | AY162: No | AZ162: $10,864,711 with depreciation $7,679,206 without depreciation | BA162: 152157 | BB162: 5796344 | BC162: x | BE162: x | BF162: x | BG162: Yes | BH162: 4.8 mgd | BI162: 9.7 mgd | BJ162: No | BN162: Goleta Sanitary District Wastewater Treatment Plant, 1 William Moffett Place, Goleta CA 93117 | CC162: x | CD162: x | CE162: x | CG162: x | CH162: x | CJ162: x | CN162: Filtration | CO162: Anthracite Coal | CP162: x | CQ162: x | CR162: x | CV162: No | CW162: 1057 AFY | CX162: 1057AFY | CY162: Yes | DA162: R3-2010-0012 | DB162: CA0048160 | DC162: No | DE162: User charge includes a $11.31 surcharge for Capital Improvement Project. User fee for O&M is ($37.80-$11.31) = $26.46.
A163: Goleta West Sanitary District | B163: Goleta | C163: 93116 | D163: Santa Barbara | E163: 33000 | F163: 48820 | G163: Annual | H163: Flat Rate | I163: Annual | J163: Flat Rate | K163: Annual | L163: Flat Rate | M163: Annual | N163: Variable Based on Water Use. | O163: Annual | P163: Variable Based on Water Use. | Q163: Annual | R163: Variable Based on Water Use. | S163: 4297 | T163: 1283 | U163: included above | V163: included with commercial | W163: 128 | X163: 387 | Y163: 16.58 | Z163: 16.58 | AA163: 16.58 | AB163: water usage - no average available | AC163: water usage - no average available | AD163: water usage - no average available | AE163: 2940 | AF163: 2940 | AG163: 2940 | AH163: $2,940 per ERU | AI163: $2,940 per ERU | AJ163: $2,940 per ERU | AK163: 40% | AL163: 26% | AM163: 1% | AN163: 31% | AO163: 1% | AP163: 1% | AQ163: Yes | AR163: x | AT163: x | AX163: x | AY163: No | AZ163: 2912261 | BA163: N/A | BB163: 11635000 | BC163: x | BG163: Yes | BH163: 1.7 | BI163: 3.11 | BJ163: No | CY163: No | CZ163: Goleta Sanitary District | DC163: No
A164: Granada Community Services District | B164: El Granada | C164: 94018 | D164: San Mateo | E164: 8000 | F164: 105000 | G164: Annual | H164: Flat Rate | I164: Annual | J164: Flat Rate | K164: Annual | L164: Flat Rate | M164: Annual | N164: Variable Based on Water Use. | O164: Annual | P164: Variable Based on Water Use. | Q164: Annual | R164: Variable Based on Water Use. | S164: 2254 | T164: 101 | U164: 0 | W164: 197 | Y164: 33.5 | Z164: 33.5 | AA164: 33.5 | AC164: 118.07 | AE164: 4700 | AF164: 4700 | AG164: 4700 | AH164: 4700 | AI164: 4700 | AJ164: 4700 | AK164: 60 | AL164: 8 | AM164: 0 | AN164: 30 | AO164: 2 | AP164: 0 | AQ164: Yes | AR164: x | AS164: x | AT164: x | AW164: x | AY164: No | AZ164: 1251216 | BA164: 94400 | BB164: 526500 | BC164: x | BG164: Yes | BH164: 0.4 | BI164: 1.2 | BJ164: No | BN164: Sewer Authority Mid-Coastside | DC164: No
A165: Grass Valley, City of | B165: Grass Valley | C165: 95945 | D165: Nevada | E165: 12793 | F165: 34306 | G165: Bimonthly | H165: Flat Rate/Variable Based | I165: Bimonthly | J165: Flat Rate/Variable Based | K165: Bimonthly | L165: Flat Rate/Variable Based | M165: Bimonthly | N165: Flat Rate/Variable Based | O165: Bimonthly | P165: Flat Rate/Variable Based | Q165: Bimonthly | R165: Flat Rate/Variable Based | S165: 3509 | T165: 204 | U165: 189 | W165: 438 | Y165: 55 | Z165: 43.19 | AA165: 31.66 | AC165: 21.73 | AE165: unknown | AF165: unknown | AG165: unknown | AH165: unknown | AI165: unknown | AJ165: unknown | AK165: unknown | AL165: unknown | AM165: unknown | AN165: unknown | AO165: unknown | AP165: unknown | AQ165: No | AV165: x | AW165: x | AY165: N/A | AZ165: 1600000 | BA165: unknown | BB165: 50000 | BC165: x | BE165: x | BF165: x | BG165: Yes | BH165: 2.78 | BI165: 7 equalized peak | BJ165: No | BN165: City of Grass Valley Wastewater Treatment Plant | CA165: x | CC165: x | CD165: x | CE165: x | CG165: x | CL165: x | CN165: Filtration | CO165: gravity - activated carbon | CP165: x | CQ165: x | CT165: x | CV165: Yes | CY165: Yes | DA165: R5-2009-0067 | DB165: CA0079898 | DC165: No
A166: Graton Community Services District | B166: Graton | C166: 95444 | D166: Sonoma | E166: 1700 | F166: 43999 | G166: Annual | H166: Flat Rate | I166: Annual | J166: Flat Rate | K166: Annual | L166: Flat Rate | M166: Annual | N166: Flat Rate | O166: Annual | P166: Flat Rate | Q166: Annual | R166: Flat Rate | S166: 450 | Y166: 131.2 | AE166: 10352 | AK166: 90 | AL166: 10 | AQ166: Yes | AR166: x | AT166: x | AU166: Flow | AV166: x | AW166: x | AY166: No | AZ166: 996147 | BA166: 206900 | BB166: 0 | BC166: x | BE166: x | BF166: x | BG166: Yes | BH166: 0.101 | BJ166: No | BN166: Graton Community Service District Wastewater Treatment Facility 250 Ross Lane, Graton, CA, 95444 | BZ166: x | CA166: x | CC166: x | CI166: Oxidation ponds- 10' deep series of (2) settling pond (1). Followed by SAF and Depth filter | CM166: Pasteurization | CN166: Filtration | CO166: Fuzzy Filter | CQ166: x | CS166: x | CU166: Suspended Air Floatation- Fuzzy Filter Pasteurization Methanotorris igneus (MIG) Anammox with 105-500 alpha White Knight MIG for Ammonia Reduction | CV166: Yes | CY166: Yes | DB166: CA 0023639 | DC166: Yes | DD166: Graton.org or GCSD@sonic.net | DE166: Plans for Activated Charcoal endiocrine Removal and Urine capture diversion.
A167: Grayson Community Services District | B167: Westley | C167: 95837 | D167: Stanislaus | E167: 952 | F167: 47841 | G167: Annual | H167: Flat Rate | O167: Annual | P167: Flat Rate | S167: 270 | W167: 1 | Y167: 25.04 | AC167: 25.04 | AE167: 600 | AK167: 99 | AL167: 1 | AQ167: No | AV167: x | AW167: x | AY167: No | AZ167: 104300 | BA167: 8808.76 | BB167: 0 | BC167: x | BE167: x | BF167: x | BG167: No | BH167: 0.08 | BI167: 0.1 | BJ167: No | BN167: Grayson Water Quality Control Facility | BZ167: x | CC167: x | CF167: Aeration Pond and Two Sedimentation Ponds | CT167: x | CU167: Disposal of treated effluent is by percolation beds. | CV167: No | CY167: Yes | DA167: R5-93-088 | DC167: No
A168: Greenfield, City of | B168: Greenfield | C168: 93927 | D168: Monterey | E168: 17898 | F168: 36525 | G168: Monthly | H168: Flat Rate | I168: Monthly | J168: Flat Rate | K168: Monthly | L168: Flat Rate | M168: Monthly | N168: Flat Rate | O168: Monthly | P168: Flat Rate | Q168: Monthly | R168: Flat Rate | S168: 2479 | T168: 118 | U168: 3 | V168: 7 | W168: 86 | X168: 3 | Y168: 24.8 | Z168: 24.8 | AA168: 24.8 | AB168: 24.8 | AC168: 24.8 | AD168: 24.8 | AK168: 99 | AL168: 1 | AQ168: No | AX168: x | AY168: Yes | AZ168: 1235900 | BA168: 0 | BB168: 115000 | BC168: x | BD168: x | BE168: x | BF168: x | BG168: No | BH168: 1 | BI168: 2 | BJ168: No | BN168: City of Greenfield Wastewater treatment plant | BZ168: x | CB168: x | CC168: x | CD168: x | CE168: x | CI168: oxidation ponds | CT168: x | CV168: No | CY168: Yes | DA168: R3-2002-0062 | DC168: No
A169: Grenada Sanitary District | B169: Grenada | C169: 96038 | D169: Siskiyou | E169: 80
A170: Groveland Commmunity Services District | B170: Groveland | C170: 95321 | D170: Tuolumne | E170: 1500 | F170: 47744 | G170: Monthly | H170: Flat Rate/Variable Based | I170: Monthly | J170: Flat Rate/Variable Based | K170: Monthly | L170: Flat Rate/Variable Based | O170: Monthly | P170: Flat Rate/Variable Based | Q170: Monthly | R170: Flat Rate/Variable Based | S170: 1293 | T170: 99 | U170: 18 | V170: N/A | W170: 89 | X170: 1 | Y170: 53.1 | Z170: 53.1 | AA170: 53.1 | AC170: 53.1 | AD170: 53.1 | AE170: 7125 | AF170: 7125 | AG170: 7125 | AH170: N/A | AI170: 7125 | AJ170: 7125 | AK170: 98 | AL170: 2 | AQ170: No | AV170: x | AY170: Yes | AZ170: 1341564 | BA170: 378398 | BB170: 122875 | BC170: x | BE170: x | BG170: No | BH170: 0.15 | BI170: 0.5 | BJ170: No | BN170: Groveland Community Service District Wastewater Treatment plant, 18966 Ferretti Rd., Groveland, CA 95321 | CC170: x | CG170: x | CJ170: x | CT170: x | CV170: No | CW170: 118.7 | CX170: 59.35 | CY170: Yes | DA170: R5-87-121 | DC170: No
A171: Grover Beach, City of | B171: Grover Beach | C171: 93433 | D171: San Luis Obispo | E171: 13156 | F171: 46888 | G171: Bimonthly | H171: Flat Rate | I171: Bimonthly | J171: Flat Rate | K171: Bimonthly | L171: Flat Rate | M171: Bimonthly | N171: Flat Rate | O171: Quarterly | P171: Variable Based on Water Use. | Q171: Bimonthly | R171: Flat Rate | S171: 3902 | T171: 401 | U171: 15 | V171: 17 | W171: 291 | X171: 16 | Y171: 9.92 | Z171: 9.92 | AA171: 9.92 | AB171: 7.825 | AC171: 11.625 | AD171: 11.625 | AE171: We collect for the SSLOSD and sent to them we do not set fees | AF171: We collect for the SSLOSD and sent to them we do not set fees | AG171: We collect for the SSLOSD and sent to them we do not set fees | AH171: We collect for the SSLOSD and sent to them we do not set fees | AI171: We collect for the SSLOSD and sent to them we do not set fees | AJ171: We collect for the SSLOSD and sent to them we do not set fees | AK171: 99% | AO171: 1% | AQ171: No | AX171: x | AY171: N/A | AZ171: 1911470 | BA171: 0 | BB171: 207000 | BC171: x | BG171: Yes | BH171: 1.2 | BI171: 1.5 | BJ171: No | BK171: No | CY171: No | CZ171: South San Luis Obispo County Sanitation District | DC171: Yes | DD171: www.grover.org
A172: Gualala Community Service District | B172: Gualala | C172: 95445 | D172: Mendocino | E172: 750 | F172: 45748 | G172: Annual | H172: Flat Rate | I172: Annual | J172: Flat Rate | K172: Monthly | L172: Flat Rate | O172: Monthly | P172: Variable Based on Water Use. | S172: 175 | T172: 30 | U172: 72 | V172: 0 | W172: 139 | X172: 0 | Y172: 59 | Z172: 59 | AA172: 59 | AC172: 197.7 | AE172: 15881 | AF172: 15881 | AG172: 15881 | AI172: 15881 | AK172: 84 | AO172: 4 | AP172: 12 | AQ172: No | AV172: x | AW172: x | AY172: No | AZ172: 411810 | BA172: 0 | BB172: 125184 | BC172: x | BD172: x | BE172: x | BF172: x | BG172: Yes | BH172: 0.065 | BI172: 0.131 | BJ172: No | BN172: Gualala Community Services District Wastewater Treatment Plant 42455 So. HWY 1 The Sea Ranch, CA 95497 | BY172: x | CA172: x | CF172: Interceptor Tanks | CG172: x | CJ172: x | CN172: Filtration | CO172: Sand | CQ172: x | CU172: Land Application | CV172: No | CW172: 8.0813 | CY172: No | DC172: No
A173: Half Moon Bay, City of | B173: Half Moon Bay | C173: 94019 | D173: San Mateo | E173: 8000 | F173: 99715 | G173: Annual | H173: Variable Based on Water Use. | I173: Annual | J173: Variable Based on Water Use. | K173: Annual | L173: Variable Based on Water Use. | M173: Annual | N173: Variable Based on Water Use. | O173: Annual | P173: Variable Based on Water Use. | Q173: Annual | R173: Variable Based on Water Use. | S173: 3377 | T173: 49 | U173: included above | V173: 0 | W173: 255 | X173: 86 | Y173: 77.4 | Z173: 245 | AA173: included above | AC173: 234.36 | AD173: 134.2 | AE173: 16200 | AF173: 8100 | AG173: 8100 | AI173: 16200 | AJ173: 16200 | AK173: 99.7 | AO173: 0.3 | AQ173: Yes | AR173: x | AS173: x | AT173: x | AX173: x | AY173: No | AZ173: 2682900 | BA173: 0 | BB173: 711000 | BC173: x | BG173: No | BH173: 0.9 | BI173: 2 | BJ173: No | BK173: No | BN173: None | CY173: No | DC173: Yes | DD173: http://hmbcity.com/index.php?option=com_content&view=article&id=124&Itemid=126 | DE173: Sewer service charges include payments to another agency for treatment and disposal of the wastewater collected by the City. Sewer service charge for each sewer connection is based rates established per unit of water use in previous year and sewer strength factor.
A174: Hamilton City Community Services District | B174: Hamilton City | C174: 95951 | D174: Glenn | E174: 2000 | F174: 27000 | G174: Bimonthly | H174: Flat Rate | I174: Bimonthly | J174: Flat Rate | K174: Bimonthly | L174: Flat Rate | M174: Bimonthly | N174: Flat Rate | O174: Bimonthly | P174: Flat Rate | Q174: Bimonthly | R174: Flat Rate | S174: 585 | T174: 21 | U174: 38 | V174: 3 | W174: 29 | X174: 8 | Y174: 31.93 | Z174: 63.86 | AA174: 1245.27 | AB174: 158.15 | AC174: 31.93 | AD174: 31.93 | AE174: 2144 | AF174: 2062 | AG174: 2144 | AH174: 3759 | AI174: 2287 | AJ174: 3933 | AK174: 100 | AQ174: No | AV174: x | AY174: No | BC174: x | BE174: x | BH174: 0.18 | BI174: 0.5 | BJ174: Yes | BZ174: x | CB174: x | CC174: x | CF174: Presently we are in the process of upgrading our lift station currently we have a commonuter. It will be removed and we are installing a grinder with screen. | CV174: No | CY174: Yes | DA174: R5-98-081 | DC174: No
A175: Hanford, City of- Wastewater Treatment Facility | B175: Hanford | C175: 93230 | D175: Kings | E175: 54686 | F175: 54767 | G175: Monthly | H175: Flat Rate | I175: Monthly | J175: Flat Rate | K175: Monthly | L175: Variable Based on Water Use. | M175: Monthly | N175: Variable Based on Water Use. | O175: Monthly | P175: Variable Based on Water Use. | Q175: Monthly | R175: Variable Based on Water Use. | S175: 14291 | T175: 537 | V175: 7 | W175: 765 | X175: 32 | Y175: 22.9 | Z175: 21.7 | AA175: 1.971 cu ft | AB175: 2,002/million gallons | AC175: 1.97 | AD175: 0.66 | AE175: 1590.56 | AF175: 1451.61 | AG175: variable | AH175: 0.4512/sqft | AI175: 0.9027/sqft | AJ175: Variable | AK175: 90 | AM175: 10 | AQ175: Yes | AR175: x | AT175: x | AV175: x | AY175: Yes | AZ175: 2595990 | BA175: 3846730 | BB175: 12800 | BE175: x | BF175: x | BG175: Yes | BH175: 4.8 | BI175: 8 | BJ175: No | BN175: City of Hanford Wastewater Treatment Facility | BZ175: x | CC175: x | CD175: x | CG175: x | CH175: x | CJ175: x | CP175: x | CQ175: x | CR175: x | CT175: x | CV175: Yes | CY175: Yes | DA175: R5-01-153 | DC175: No
A176: Happy Camp Sanitary District | B176: Happy Camp | C176: 96039 | D176: Siskiyou | E176: 900 | F176: 18000 | G176: Quarterly | H176: Flat Rate | K176: Quarterly | L176: Flat Rate | O176: Quarterly | P176: Flat Rate | S176: 456 | U176: 60 | W176: 30 | Y176: 20 | AA176: 20 | AC176: 20 | AE176: 500 | AG176: 500 | AI176: 500 | AK176: 100 | AQ176: No | AX176: x | AY176: No | AZ176: 197000 | BA176: 0 | BB176: 99965 | BC176: x | BE176: x | BG176: No | BH176: 0.18 | BI176: 0.34 | BJ176: No | BN176: Happy Camp Treatment Plant Hwy 96 Happy Camp, CA | BZ176: x | CB176: x | CC176: x | CP176: x | CV176: No | CY176: Yes | DC176: No
A177: Hawaiian Gardens, City of | B177: Hawaiian Gardens | C177: 90716 | D177: Loa Angeles | E177: 14400 | F177: 41634
A178: Hawthorne, City of | B178: Hawthorne | C178: 90250 | D178: Los Angeles | E178: 85000 | F178: 40697 | G178: Monthly | H178: Variable Based on Water Use. | I178: Monthly | J178: Variable Based on Water Use. | K178: Monthly | L178: Variable Based on Water Use. | M178: Monthly | N178: Variable Based on Water Use. | O178: Monthly | P178: Variable Based on Water Use. | Q178: Monthly | R178: Variable Based on Water Use. | S178: 9000 | T178: 700 | V178: 200 | W178: 500 | X178: 100 | Y178: 5 | Z178: 4 | AA178: 3 | AB178: 20 | AC178: 15 | AD178: 5 | AE178: 240 | AF178: 240 | AG178: 240 | AH178: based on floor area | AI178: varies | AJ178: varies | AK178: 99 | AL178: 1 | AQ178: No | AX178: x | AY178: Yes | AZ178: 855000 | BA178: N/A | BB178: 1100000 | BC178: x | BG178: No | BH178: 6.7 | BI178: 10 | BJ178: No | BK178: No | BN178: N/A | DC178: No
A179: Heather Glen Community Services District | B179: Applegate | C179: 95703 | D179: Placer | E179: 100 | F179: 34364 | K179: Monthly | L179: Flat Rate | U179: 80 | AA179: 6 | AG179: 0 | AK179: 100 | AQ179: No | AX179: x | AY179: N/A | AZ179: 5760 | BA179: 0 | BB179: 1200 | BC179: x | BE179: x | BG179: No | BH179: 7000 gallons per day | BI179: N/A | BJ179: No | BK179: No | BN179: Heather Glen Treatment Facility Applegate CA | BZ179: x | CF179: Pond Treatment | CV179: No | CY179: Yes | DA179: R5-93-065
A180: Hemet, City of - City of Huron Wastewater Treatment Plant | B180: Hemet | C180: 93234 | D180: Riverside | E180: 6843 | F180: 17758 | G180: Monthly | H180: Flat Rate | I180: Monthly | J180: Flat Rate | K180: Monthly | L180: Flat Rate | M180: Monthly | N180: Flat Rate | O180: Monthly | P180: Variable Based on Water Use. | S180: 683 | T180: 720 | U180: 61 | V180: 2 | W180: 88 | Y180: 26 | Z180: 26 | AA180: 26 | AB180: 92.85 | AC180: 26 | AE180: 1593.45 | AF180: 1593.45 | AG180: 1593.45 | AH180: 1593.45 | AI180: 1593.45 | AJ180: 1593.45 | AK180: 99.87 | AM180: 0.13 | AQ180: No | AV180: x | AY180: No | AZ180: 512183 | BA180: 59750 | BC180: x | BG180: No | BH180: 0.418 | BI180: 1 | BJ180: No | BN180: City of Huron Wastewater Treatment Plant, 16100 9th St. | BZ180: x | CD180: x | CI180: Aerated Ponds | CV180: Yes | CY180: Yes | DA180: R5-87-102 | DC180: No
A181: Hemet, City of - Eastern Municipal Water District | B181: Hemet | C181: 92544 | D181: Riverside | E181: 24540 | F181: 40792 | G181: Bimonthly | H181: Variable Based on Water Use. | I181: Bimonthly | J181: Variable Based on Water Use. | K181: Bimonthly | L181: Variable Based on Water Use. | N181: Variable Based on Water Use. | P181: Variable Based on Water Use. | R181: Variable Based on Water Use. | S181: 7633 | T181: 859 | U181: 2658 | V181: 0 | W181: 433 | X181: 521 | Y181: 7.52 | Z181: 7.52 | AA181: 7.52 | AB181: 7.52 | AC181: 7.52 | AD181: 7.52 | AE181: 250 | AF181: 145 | AG181: 145 | AH181: 0 | AI181: 250 | AJ181: 250 | AK181: 0 | AL181: 56 | AM181: 0 | AN181: 0 | AO181: 0 | AP181: 44 | AQ181: No | AV181: x | AY181: No | AZ181: 394800 | BA181: 0 | BB181: 350000 | BC181: x | BG181: No | BJ181: No | BL181: No | BM181: Eastern Municipal Water District | DC181: Yes | DD181: City of Hemet. org
A182: Heritage Ranch Community Services District | B182: Paso Robles | C182: 93446 | D182: San Luis Obispo | E182: 3000 | G182: Monthly | H182: Flat Rate | K182: Monthly | L182: Flat Rate | O182: Monthly | P182: Flat Rate | Q182: Monthly | R182: Flat Rate | S182: 1417 | U182: 181 | W182: 14 | X182: 1 | Y182: 26.09 | AA182: 20.87 | AC182: 52.18 | AD182: 52.18 | AE182: 4359 | AG182: 2180 | AI182: 8000 | AJ182: 6000 | AK182: 79 | AL182: 2 | AN182: 12 | AO182: 1 | AP182: 6, standby assessment | AQ182: No | AX182: x | AY182: No | AZ182: 643359 | BA182: 0 | BB182: 306500 | BC182: x | BE182: x | BF182: x | BG182: Yes | BH182: 0.18 | BI182: 0.4 | BJ182: No | BN182: Heritage Ranch Wastewater Treatment Plant, Heritage Ranch, Paso Robles, CA 93446 | BZ182: x | CF182: aerated lagoon system | CI182: sand filters prior to discharge | CJ182: x | CT182: x | CV182: No | CY182: Yes | DA182: R3-2011-0007 | DB182: CA0048941 | DC182: No | DE182: Agency needs to prepare a wastewater treatment plant master plan. Major improvements / changes may be needed in the treatment process to meet future NPDES discharge limitations. Use of recycled water for irrigation should also be studied in the master plan. Small community has limited funds to study the needs of the wastewater treatment system.
A183: Hesperia Water District | B183: Hesperia | C183: 92345 | D183: San Bernardino | E183: 15820 | F183: 47300 | G183: Bimonthly | H183: Flat Rate | I183: Bimonthly | J183: Flat Rate | K183: Bimonthly | L183: Flat Rate | M183: Bimonthly | N183: Flat Rate | O183: Bimonthly | P183: Flat Rate | Q183: Bimonthly | R183: Variable Based on Water Use. | S183: 4330 | T183: 188 | U183: 78 | V183: 7 | W183: 475 | X183: 63 | Y183: 26.44 | Z183: 22.99 | AA183: 22.99 | AB183: 22.99 | AC183: 22.99 | AD183: 22.99 | AE183: 5679.45 | AF183: 5679.45 | AG183: 5679.45 | AH183: 15000 | AI183: 15000 | AJ183: 15000 | AK183: 90 | AL183: 9 | AM183: 1 | AQ183: Yes | AR183: x | AT183: x | AX183: x | AY183: No | AZ183: 3056765 | BA183: 0 | BB183: 350000 | BC183: x | BG183: Yes | BH183: 2 | BI183: N/A | BJ183: No | BL183: No | BM183: Victor Valley Wastewater Reclamation Authority | DC183: Yes | DD183: www.cityofhesperia.us | DE183: VVWRA to degin construction of sub-regional "skinning plant" in 2015, to facilitate use of reclaimed water in Hesperia in approximately 2017. City to construct reclaimed water distribution pipeline (phase I) in 2016-17.
A184: Hidden Valley Lake Community Services District | B184: Hidden Valley Lake | C184: 95467 | D184: Lake | E184: 6500 | G184: Bimonthly | I184: Bimonthly | O184: Bimonthly | Q184: Bimonthly | S184: 1386 | T184: 27 | U184: N/A | V184: N/A | W184: 29 | X184: 1 | Y184: 50.18 | Z184: 50.18 | AA184: N/A | AB184: 50.18 | AC184: 50.18 | AD184: 50.18 | AE184: 7600 | AF184: 7600 | AG184: 7600 | AH184: 7600 | AI184: 7600 | AJ184: 7600 | AL184: 100 | AQ184: No | AV184: x | AW184: x | AY184: No | AZ184: 1600300 | BA184: 1033464.3 | BB184: 100000 | BC184: x | BE184: x | BF184: x | BG184: No | BH184: 175 | BI184: 894000 | BJ184: No | BN184: Hidden Valley Lake Community Service District- 18896 Orange Road | CA184: x | CC184: x | CG184: x | CI184: Sand filters | CJ184: x | CN184: Filtration | CO184: Sand Filters (Teritary Filters) | CT184: x | CV184: No | CY184: Yes | DA184: S-00-019 | DC184: Yes | DD184: www.hidenvalleylakecsd.com
A185: Holtville, City of | B185: Holtville | C185: 92250 | D185: Imperial | E185: 6470 | F185: 40781 | G185: Monthly | H185: Variable Based on Water Use. | I185: Monthly | J185: Variable Based on Water Use. | K185: Monthly | L185: Variable Based on Water Use. | M185: Monthly | N185: Variable Based on Water Use. | O185: Monthly | P185: Variable Based on Water Use. | Q185: Monthly | R185: Variable Based on Water Use. | S185: 1276 | W185: 123 | Y185: Not given | AE185: 1000 | AI185: 1000 | AK185: 95.24 | AL185: 0.23 | AM185: 4.54 | AO185: 0.15 | AQ185: No | AV185: x | AY185: No | AZ185: 949022 | BA185: 165000 | BB185: 85745 | BC185: x | BE185: x | BG185: No | BH185: 0.45 | BI185: 0.8 | BJ185: No | BL185: Yes | BN185: City of Holtville Wastewater Treatment Plant - 1250 Kamm Rd. Holtville CA 92250 | CC185: x | CD185: x | CF185: Primary clarifier units | CH185: x | CL185: x | CN185: Filtration | CO185: Parkson Dynasand continuous-backwash filters | CU185: Aerobic digestion, solar drying beds. Class B biosolids | CV185: No | CY185: Yes | DA185: R7-2011-0020 | DB185: CA0104361 | DC185: No
A186: Home Gardens Saniatry District | B186: Corona | C186: 92879 | D186: Riverside | E186: 11570 | F186: 61133 | G186: Bimonthly | H186: Flat Rate | I186: Bimonthly | J186: Flat Rate | K186: Bimonthly | L186: Flat Rate | M186: Bimonthly | N186: Flat Rate | O186: Bimonthly | P186: Flat Rate | Q186: Bimonthly | R186: Flat Rate | S186: 1318 | T186: 115 | U186: 586 | V186: 33 | W186: 105 | X186: 5 | Y186: 16 | Z186: 16 | AA186: 16 | AB186: 32 | AC186: 32 | AD186: 13 per student | AE186: 2640 | AF186: 2640 | AG186: 2640 | AK186: 57 | AL186: 8 | AN186: 15 | AQ186: No | AV186: x | AW186: x | AY186: Yes | AZ186: 566000 | BA186: 32053 | BB186: 100000 | BC186: x | BG186: No | BH186: 0.593 | BI186: 0.62 | BL186: No | BM186: Western Riverside County Regional Wastewater Authority | DC186: No
A187: Homestead Valley Sanitary District | B187: Mill Valley | C187: 94942 | D187: Marin | E187: 2500 | F187: 90535 | G187: Annual | H187: Flat Rate | I187: Annual | J187: Flat Rate | O187: Annual | P187: Variable Based on Water Use. | Q187: Annual | R187: Variable Based on Water Use. | S187: 881 | T187: 155 | W187: 5.6 | X187: 32 | Y187: 47.92 | Z187: 47.92 | AC187: 47.92 | AD187: 47.92 | AE187: 4000 | AF187: 4000 | AI187: 4000 | AJ187: 4000 | AK187: 73.6 | AL187: <1.0 | AN187: 24.1 | AO187: <1.0 | AP187: 2.3 from franchise fee for solid waste contract | AQ187: No | AV187: x | AY187: No | AZ187: 844000 | BA187: 16875 | BB187: 250000 | BC187: x | BG187: No | BH187: 0.175 | BI187: 0.263 | BJ187: No | BN187: N/A | DC187: No
A188: Hopland Public Utiltiy District | B188: Hopland | C188: 95449 | D188: Mendocino | E188: 1000 | G188: Monthly | H188: Flat Rate | I188: Monthly | J188: Flat Rate | K188: Monthly | L188: Flat Rate | M188: Monthly | N188: Variable Based on Water Use. | O188: Monthly | P188: Variable Based on Water Use. | S188: 299 | W188: 194 | Y188: 62.4 | AC188: 62.4 | AE188: 6866 | AF188: 6866 | AG188: 6866 | AI188: 6866 | AK188: 95 | AL188: 5 | BC188: x | BE188: x | BF188: x | BG188: No | BH188: 0.0375 | BI188: 0.09 | BJ188: No | BN188: Hopland Public Utitlity District Wastewater Treatment Facility | BZ188: x | CB188: x | CJ188: x | CY188: Yes | DA188: R1-2008-0003 | DC188: No
A189: Humboldt Community Services District | B189: Eureka | C189: 95503 | D189: Humboldt | E189: 19000 | F189: 36618 | G189: Monthly | H189: Flat Rate/Variable Based | I189: Monthly | J189: Flat Rate/Variable Based | K189: Monthly | L189: Flat Rate/Variable Based | M189: Monthly | N189: Flat Rate/Variable Based | O189: Monthly | P189: Flat Rate/Variable Based | Q189: Monthly | R189: Flat Rate/Variable Based | S189: 5316 | T189: 536 | U189: 9 | V189: 1 | W189: 202 | X189: 28 | Y189: 50 | Z189: 92 | AA189: 50 | AB189: 680 | AC189: 83 | AD189: 83 | AE189: 3000 | AF189: 3000/800ea | AG189: 3000 | AH189: 3000 | AI189: 3000 | AJ189: 3000 | AK189: 44 | AL189: 1 | AQ189: Yes | AR189: x | AT189: x | AV189: x | AY189: Yes | AZ189: 2941462 | BA189: 551400 | BB189: 523984 | BC189: x | BG189: No | BH189: 0.84 | BI189: 1.59 | BJ189: No | BL189: No | BM189: City of Eureka | DD189: www.humboldtcsd.com
A190: Idyllwild Water District | B190: Idyllwild | C190: 92549 | D190: Riverside | E190: 500 | F190: 42900 | G190: Monthly | H190: Flat Rate/Variable Based | I190: Monthly | J190: Variable Based on Water Use. | K190: Monthly | L190: Variable Based on Water Use. | M190: Monthly | N190: Variable Based on Water Use. | O190: Monthly | P190: Variable Based on Water Use. | Q190: Monthly | R190: Variable Based on Water Use. | S190: 250 | T190: variable | U190: Considered commercial | V190: 1 | W190: 250 | X190: 3 | Y190: 38.25 | Z190: variable based on EDU | AA190: variable based on EDU | AB190: variable based on EDU | AC190: variable based on EDU | AD190: variable based on EDU | AE190: 5447 | AF190: 8170.5 | AG190: N/A | AH190: N/A | AI190: variable | AJ190: variable | AK190: 90 | AL190: 10 | AM190: N/A | AN190: $30/acre | AO190: N/A | AQ190: Yes | AR190: x | AT190: x | AX190: x | AY190: No | AZ190: 510157 | BB190: 590750 | BC190: x | BE190: x | BF190: x | BG190: No | BH190: 100000 | BI190: 250000 | BJ190: No | BN190: Idyllwild Water District/Improvement District #1 - Apela Drive/Idyllwild, CA | BZ190: x | CA190: x | CD190: x | CE190: x | CG190: x | CP190: x | CQ190: x | CT190: x | CV190: No | CW190: -0- | CX190: -0- | CY190: Yes | DA190: R8-98-078 | DB190: None | DC190: No
A191: Imperial Beach, City of | B191: Imperial Beach | C191: 91932 | D191: San Diego | E191: 26000 | F191: 49100 | G191: Annual | H191: Variable Based on Water Use. | I191: Annual | J191: Variable Based on Water Use. | K191: Annual | L191: Variable Based on Water Use. | M191: Annual | N191: Variable Based on Water Use. | O191: Annual | P191: Variable Based on Water Use. | Q191: Annual | R191: Variable Based on Water Use. | S191: 3633 | T191: 1614 | W191: 153 | X191: 42 | Y191: 50 | Z191: 85 | AC191: 124 | AD191: 195 | AE191: 2667 | AF191: 2667 | AG191: 2667 | AH191: 2667 | AI191: 2667 | AJ191: 2667 | AK191: 99 | AL191: 1 | AQ191: Yes | AR191: x | AX191: x | AY191: No | AZ191: 3900000 | BB191: 407000 | BC191: x | BG191: No | BH191: 2.25 | BI191: 3.59 | BJ191: No | BN191: None | DC191: Yes | DD191: Imperial Beach CIP
A192: Imperial, City of | B192: Imperial | C192: 92251 | D192: Imperial | E192: 18286 | F192: 62500 | G192: Monthly | H192: Variable Based on Water Use. | I192: Monthly | J192: Variable Based on Water Use. | O192: Monthly | P192: Variable Based on Water Use. | S192: 4601 | T192: 106 | U192: 0 | V192: 0 | W192: 172 | X192: 0 | Y192: 48.4 | Z192: 48.4 | AA192: 0 | AB192: 0 | AC192: 48.4 | AD192: 0 | AE192: 1844.82 | AF192: 1844.82 | AG192: 0 | AH192: 0 | AI192: 1844.82 | AJ192: 0 | AK192: 98 | AL192: 2 | AQ192: No | AV192: x | AY192: No | AZ192: 1783013 | BA192: 991954 | BB192: 833186 | BC192: x | BE192: x | BG192: No | BH192: 1.2 | BI192: 2.4 | BJ192: No | BM192: N/A | BN192: 701 E 14th Street, Imperial, CA 92251 | CA192: x | CC192: x | CL192: x | CT192: x | CV192: No | CW192: N/A | CY192: Yes | DB192: R7-2010-0020 | DC192: No
A193: Inglewood, City of | B193: Inglewood | C193: 90301 | D193: Los Angeles | E193: 111900 | F193: 44558 | G193: Monthly | H193: Flat Rate | I193: Monthly | J193: Flat Rate | M193: Monthly | N193: Variable Based on Water Use. | O193: Monthly | P193: Variable Based on Water Use. | Q193: Monthly | R193: Variable Based on Water Use. | S193: 10893 | T193: 4899 | U193: N/A | V193: 61 | W193: 1717 | X193: 7 | Y193: 7.5 | Z193: 7.125 | AH193: $0.75/hcf | AI193: $0.75/hcf | AJ193: $0.75/hcf | AK193: 98% | AL193: 0.5% | AP193: 1.5% FOG FEE INVESTING EARNING | AQ193: No | AX193: x | AY193: Yes | AZ193: 2659314.99 | BA193: 0 | BB193: 1750000 | BC193: x | BG193: No | BH193: 9.8 | BI193: 14.7 | BJ193: No | BN193: Los Angeles County Sanitation District | DC193: No
A194: Inland Empire Utilities Agency | B194: Chino | C194: 91708 | D194: San Bernardino | E194: 850000 | G194: Monthly | H194: Flat Rate | M194: Monthly | N194: Flat Rate | O194: Monthly | P194: Flat Rate | Q194: Monthly | R194: Flat Rate | S194: N/A | T194: N/A | U194: N/A | V194: N/A | W194: N/A | X194: N/A | Y194: 14.39 | Z194: 14.39 | AA194: 14.39 | AB194: 14.39 | AC194: 14.39 | AD194: 14.39 | AE194: 5107 | AF194: 5107 | AG194: 5107 | AH194: 5107 | AI194: 5107 | AJ194: 5107 | AK194: 30 | AL194: 10 | AM194: 7 | AN194: 26 | AO194: 1 | AP194: Recycled Water, 26 | AQ194: Yes | AR194: x | AS194: x | AT194: x | AV194: x | AW194: x | AY194: Yes | AZ194: 91408925 | BA194: 41672489 | BB194: 29314800 | BC194: x | BD194: x | BE194: x | BF194: x | BG194: Yes | BH194: 51.5 | BI194: 84.4 | BJ194: No | BN194: Regional Water Recycling Plant #1 | BO194: Regional Water Recycling Plant #2 | BP194: Regional Water Recycling Plant #4 | BQ194: Regional Water Recycling Plant #5 | BR194: Carbon Canyon Water Recycling Facility | CC194: x | CD194: x | CE194: x | CG194: x | CJ194: x | CN194: Filtration | CO194: sand, anthracite/sand, dynasand, cloth | CP194: x | CQ194: x | CR194: x | CS194: x | CV194: Yes | CW194: 38251.47 | CY194: Yes | DB194: R8-2009-0021
A195: Ironhouse Sanitary District | B195: Oakley | C195: 94561 | D195: Contra Costa | E195: 38000 | G195: Annual | H195: Flat Rate | I195: Annual | J195: Flat Rate | K195: Annual | L195: Flat Rate | N195: Flat Rate | O195: Annual | P195: Flat Rate | Q195: Annual | R195: Flat Rate | S195: 11910.45 | T195: 706 | U195: 777.6 | W195: 1356.39 | Y195: 53.08 | Z195: 53.08 | AA195: 53.08 | AC195: 367.36 | AE195: 6957.5 | AF195: 6957.5 | AG195: 6957.5 | AI195: 48148.38 | AK195: 76 | AL195: 8 | AN195: 2 | AO195: 0.25 | AP195: 13.75 | AQ195: Yes | AR195: x | AT195: x | AV195: x | AY195: Yes | AZ195: 6208000 | BA195: 2937701 | BB195: 892000 | BC195: x | BD195: x | BE195: x | BF195: x | BG195: No | BH195: 2.31 | BI195: 4.3 | BJ195: No | BN195: Ironhouse Sanitary District Water Recycling Facility, Oakley, CA | CC195: x | CD195: x | CG195: x | CL195: x | CN195: Filtration | CO195: Membrane | CQ195: x | CV195: Yes | CW195: 1294 | CY195: Yes | DA195: R5-213-0010 | DB195: CA0085260 | DC195: No
A196: Irwindale, City of | B196: Irwindale | C196: 91706 | D196: Los Angeles | E196: 390 | F196: 63250 | G196: Annual | H196: Variable Based on Water Use. | I196: Annual | J196: Variable Based on Water Use. | K196: Annual | L196: Variable Based on Water Use. | M196: Annual | N196: Variable Based on Water Use. | O196: Annual | P196: Variable Based on Water Use. | Q196: Annual | R196: Variable Based on Water Use. | S196: 390 | T196: 1 | U196: 0 | V196: 174 | W196: 573 | X196: 5 | Y196: 0 | Z196: 0 | AA196: 0 | AB196: 0 | AC196: 0 | AD196: 0 | AE196: 4330 | AF196: 2598 | AG196: 2598 | AH196: Based on Wastewater Quantity & Strenght Contained | AI196: 8154.54 | AJ196: 1378.5 | AK196: 0 | AL196: 0 | AM196: 0 | AN196: 0 | AO196: 0 | AP196: 0 | AQ196: No | AX196: x | AY196: N/A | AZ196: 127980.00 (sewer & storm drain maintenance only) | BA196: 0 | BB196: 0 | BG196: No | BJ196: No | BK196: No | BL196: No | DC196: No | DE196: The City of Irwindale does not own or maintain any Wastewater Treatment Facilities. Our sewers are maintained by Los Angeles County Department of Public Works - Sewer Maintenance District. All connections and surcharge fees are approved and collected by the Los Angeles County Sanitation District. Irwindale falls under Districts 15 and 22.
A197: Ivanhoe Public Utility District | B197: Ivanhoe | C197: 93235 | D197: Tulare | E197: 5000 | F197: 18000 | G197: Monthly | H197: Flat Rate | I197: Monthly | J197: Flat Rate | K197: Monthly | L197: Flat Rate | M197: Monthly | N197: Flat Rate | O197: Monthly | P197: Flat Rate | S197: 1073 | T197: 6 | U197: 21 | V197: 2 | W197: 10 | X197: 1 | Y197: 16.4 | Z197: 16.40 per unit | AA197: 16.4 | AB197: 49.2 | AC197: 32.8 | AD197: 412 | AE197: 1890 | AF197: Per Engineer | AG197: 1890 | AH197: Per Engineer | AI197: Per Engineer | AJ197: Per Engineer | AK197: 40 | AL197: 0 | AM197: 0 | AN197: 0 | AO197: 0 | AQ197: No | AX197: x | AY197: No | AZ197: 176376 | BC197: x | BE197: x | BF197: x | BG197: No | BH197: 0.3 | BI197: 0.53 | BJ197: No | BK197: No | BN197: Ivanhoe Public Utility District Avenue 324, Ivanhoe, CA. 93235 | BZ197: x | CF197: Stablization Ponds | CI197: Ponds | CQ197: x | CV197: No | CY197: Yes | DA197: R5-98-090 | DB197: N/A | DC197: No
A198: Jackson, City | B198: Jackson | C198: 95642 | D198: Amador | E198: 4600 | F198: 42165 | G198: Monthly | H198: Flat Rate | I198: Monthly | J198: Flat Rate | K198: Monthly | L198: Flat Rate | M198: Monthly | N198: Flat Rate | O198: Monthly | P198: Variable Based on Water Use. | Q198: Monthly | R198: Variable Based on Water Use. | S198: 1375 | T198: 543 | U198: 279 | V198: 7 | W198: 264 | X198: 6 | Y198: 29.35 | Z198: 29.35 | AA198: 29.35 | AB198: 29.35 | AC198: 140.22 (average) | AD198: 957.38 (average) | AE198: 2100 | AF198: 1700 | AG198: 1700 | AH198: 125/plumbing fixture unit | AI198: 125/plumbing fixture unit | AJ198: 125/plumbing fixture unit | AK198: 95 | AL198: 5 | AM198: 0 | AN198: 0 | AO198: 0 | AP198: 0 | AQ198: No | AV198: x | AY198: No | AZ198: 1175462 | BA198: 8125 | BB198: 509111 | BC198: x | BD198: x | BE198: x | BF198: x | BG198: No | BH198: 0.4 | BI198: 0.71 | BJ198: No | BK198: No | BL198: Yes | BN198: Jackson Wastewater Treatment Plant, 39 N. Hwy 49-88, Jackson, CA 95642 | CA198: x | CC198: x | CI198: Oxidation ditch, Extended aeration system | CJ198: x | CN198: Filtration | CO198: Sand filters | CQ198: x | CT198: x | CV198: No | CY198: Yes | DA198: R5-2007-0133 | DB198: CA0079391 | DC198: No
A199: June Lake Public Utility District | B199: June Lake | C199: 93529 | D199: Mono | E199: 310 | F199: 46000 | G199: Monthly | H199: Flat Rate/Variable Based | I199: Monthly | J199: Flat Rate/Variable Based | O199: Monthly | P199: Flat Rate | S199: 602 | T199: 16 | W199: 55 | Y199: 24.24 | Z199: 24.24 | AC199: 238 | AE199: 3400 | AF199: 3400 | AI199: 5200 | AK199: 95 | AL199: 5 | AQ199: No | AX199: x | AY199: No | AZ199: 426000 | BA199: 0 | BB199: 186000 | BC199: x | BE199: x | BF199: x | BG199: No | BH199: 0.35 | BI199: 1 | BJ199: Yes | BK199: No | BN199: June Lake Public Utilities District Wastewater Treatment Plant, 45125 Highway 395, June Lake, CA 93529 | BZ199: x | CA199: x | CF199: N/A | CI199: Extended Aeration, Oxidation Ditch | CM199: N/A | CO199: N/A | CT199: x | CU199: Sludge drying beds, percolation ponds | CV199: No | CW199: N/A | CX199: N/A | CY199: Yes | DA199: R6-93-019 | DB199: 6B260101002 | DC199: No
A200: Jurupa Community Services District | B200: Jurupa Valley | C200: 91752 | D200: Riverside | E200: 107000 | F200: 77355 | G200: Monthly | H200: Variable Based on Water Use. | I200: Monthly | J200: Variable Based on Water Use. | K200: Monthly | L200: Variable Based on Water Use. | M200: Monthly | N200: Variable Based on Water Use. | O200: Monthly | P200: Variable Based on Water Use. | Q200: Monthly | R200: Variable Based on Water Use. | S200: 25167 | T200: 4457 | U200: 0 | V200: 99 | W200: 686 | X200: 0 | Y200: 36.03 | Z200: 36.03 | AA200: 36.03 | AB200: 36.03 | AC200: 36.03 | AD200: 36.03 | AE200: 5910 | AF200: 5910 | AG200: 5910 | AH200: 5910 | AI200: 5910 | AJ200: 5910 | AK200: 67.7 | AL200: 18.1 | AM200: 5.4 | AN200: 7.8 | AO200: 0.84 | AP200: 0.16 | AQ200: Yes | AR200: x | AT200: x | AV200: x | AY200: No | AZ200: 13403272 | BA200: 2881508 | BB200: 70317060 | BC200: x | BG200: Yes | BH200: 7.33 | BI200: 10.743 | BJ200: No | BK200: No | BL200: No | BM200: City of Riverside, Western Riverside County Regional Wastewater Authority, Orange County Sanitation District | DC200: No | DE200: Additional Notes: Question III.2 - The billing system does not differentiate between multiple family and mobile homes. The billing system also combines commercial and institutional accounts. They are all treated alike with regards to billing. Question III.2 - Industrial users are charged a base rate of $36.03 per EDU per Month plus a pass through treatment charge based upon the treatment plant they discharge to. Question IV.5: Treatment Agencies are City of Riverside, Western Riverside County Regional Wastewater Authority and Orange County Sanitation District.
... 284 more rows

Sheet Raw Survey Data (By Population)
A1: Approx. Population (Disclaimer: Data presented are as reported by the agency. Non-reported data is shown as blank.) | B1: Agency Information | F1: Service Area | G1: Single Family Residence | I1: Multiple Family | K1: Mobile Homes | M1: Industrial | O1: Commercial | Q1: Institutional | S1: Number of Sewer Accounts | Y1: Wastewater User Fee (per month) | AE1: Connection Fees (flat fee) | AK1: Source of Revenue (%) | AQ1: Is loading considered when setting rates? If yes, specify the type. | AV1: Wastewater debt service included in: | AZ1: Wastewater Budgets | BC1: Agency Role/Responsibilities: | BN1: Please list the name(s) and location(s) of the treatment facilities your agency is responsible for: | BX1: The treatment facilities include the following processes or components: | CB1: The treatment facilities include the following Primary processes or components: | CG1: The treatment facilities include the following Secondary processes or components: | CJ1: The treatment facilities include the following Disinfection processes or components: | CN1: The treatment facilities include the following Tertiary processes or components: | CP1: The treatment facilities include the following Sludge processes or components: | CU1: Other Processes not mentioned above include (please explain): | CV1: Does treatment facility process include Nutrient Removal? | CW1: Recycled Water | CY1: Is your agency responsible for the wastewater discharge? | DA1: Discharge is regulated under: | DC1: Capital Improvement Plan | DE1: Comments
B2: Agency: | C2: City/Town: | D2: ZIP: | E2: County: | F2: Median Household Income | G2: Billing Frequency | H2: Rate Structure | I2: Billing Frequency | J2: Rate Structure | K2: Billing Frequency | L2: Rate Structure | M2: Billing Frequency | N2: Rate Structure | O2: Billing Frequency | P2: Rate Structure | Q2: Billing Frequency | R2: Rate Structure | S2: Single-family residence | T2: Multiple family | U2: Mobile homes | V2: Industrial | W2: Commercial | X2: Institutional | Y2: Single-family residence | Z2: Multiple family (per unit) | AA2: Mobile homes (per unit) | AB2: Industrial | AC2: Commercial | AD2: Institutional | AE2: Single-family residence | AF2: Multiple family (per unit) | AG2: Mobile homes (per unit) | AH2: Industrial | AI2: Commercial | AJ2: Institutional | AK2: Sewer service charge % | AL2: Sewer connection fees % | AM2: Industrial waste fees % | AN2: Ad valorem (property) taxes % | AO2: Interest % | AP2: Other, please describe % | AQ2: Response (Yes/No) | AR2: Biochemical Oxygen Demand (BOD) | AS2: Chemical Oxygen Demand (COD) | AT2: Suspended Solids (SS) | AU2: Other (please specify) | AV2: The wastewater user fee | AW2: Other wastewater-related charges to the customer (i.e., property taxes) | AX2: Neither of the above, the agency has no debt | AY2: Are connection fees used for anything other than capital expansion (or replacement)? | AZ2: a. Agency's FY 2012-13 wastewater operation and maintenance budget is: $ | BA2: b. Agency's FY 2012-13 wastewater debt service budget is: $ | BB2: c. Agency's FY 2012-13 wastewater capital expenditure budget is: $ | BC2: Collection | BD2: Interceptor | BE2: Treatment | BF2: Disposal | BG2: Pretreatment program? | BH2: Current average dry weather flow (ADWF): | BI2: Current design (or contractual) flow capacity: | BJ2: Is your agency responsible for onsite septic system maintenance? | BK2: Is onsite septic system maintenance your agency's only responsibility? | BL2: Is your agency responsible for treatment? | BM2: If no, please list Agency: | BN2: 1 | BO2: 2 | BP2: 3 | BQ2: 4 | BR2: 5 | BS2: 6 | BT2: 7 | BU2: 8 | BV2: 9 | BW2: 10 | BX2: Community Septic System | BY2: Septic Tank Effluent Pump (STEP) System | BZ2: Ponds and/or Lagoon System | CA2: Extended Aeration | CB2: Comminutor/Grinder | CC2: Screening | CD2: Scum and/or Grit Removal | CE2: Sedimentation Tank | CF2: Other (please explain): | CG2: Suspended Growth/Activated Sludge (i.e., Sequencing Batch Reactor, Membrane Bioreactor, etc.) | CH2: Attached Growth (i.e., Trickling Filter, Biotower, Rotating Biological Contactor, etc.) | CI2: Other (please explain): | CJ2: Chlorine | CK2: Ozone | CL2: Ultraviolet Light | CM2: Other (please explain): | CN2: Filtration | CO2: Provide Filtration type: | CP2: Anaerobic Digestion | CQ2: Dewatering | CR2: Thickening | CS2: Compost | CT2: Disposal/Landfill | CU2: Open-Ended Response | CV2: Response (Yes/No) | CW2: Amount of recycled water used (AFY): | CX2: Volume of potable water usage offset (AFY): | CY2: Response (Yes/No) | CZ2: If, No. List Agency: | DA2: Waste Discharge Requirements (WDRs) Order No. | DB2: National Pollutant Discharge Elimination System (NPDES) Permit NPDES No. | DC2: Does the agency have an electronic improvement plan available? | DD2: If Yes, please provide website address | DE2: Open-Ended Response
A3: Under 1,000
A4: 59 | B4: County Service Area 28, Zone 23 - Applegate | C4: Auburn | D4: 95603 | E4: Placer | F4: 59238 | G4: Annual | H4: Flat Rate | I4: Annual | J4: Flat Rate | K4: Annual | L4: Flat Rate | M4: Annual | N4: Flat Rate | O4: Annual | P4: Flat Rate | Q4: Annual | R4: Flat Rate | S4: 47 | T4: 0 | U4: 1 | V4: 0 | W4: 0 | X4: 0 | Y4: 95.78 | Z4: N/A | AA4: 68.39/unit | AB4: N/A | AC4: 95.78 | AD4: N/A | AE4: 1500 | AF4: 1,500/edu | AG4: 1,500/edu | AH4: 1,500/edu | AI4: 1500 | AJ4: 1500 | AK4: 100 | AL4: 0 | AM4: 0 | AN4: 0 | AO4: 0 | AP4: 0 | AQ4: No | AX4: x | AY4: No | AZ4: 136444 | BA4: 0 | BB4: 0 | BC4: x | BG4: No | BH4: 0.0074 | BI4: 0.01 | BJ4: Yes | BK4: No | BN4: N/A | BY4: x | CV4: No | CW4: 0 | CX4: 0 | CY4: No | CZ4: Placer County Sewer Maintenance District 1 Wastewater Treatment Plant | DC4: No | DE4: This district recently completed a regionalization project that decommissioned a pond system. The final decommissioning occurred this fiscal year.
A5: 59 | B5: Department of Facility Services | C5: Auburn | D5: 95603 | E5: Placer | F5: 59238 | G5: Annual | H5: Flat Rate | I5: Annual | J5: Flat Rate | K5: Annual | L5: Flat Rate | M5: Annual | N5: Flat Rate | O5: Annual | P5: Flat Rate | Q5: Annual | R5: Flat Rate | S5: 47 | T5: 0 | U5: 1 | V5: 0 | W5: 0 | X5: 0 | Y5: 95.78 | Z5: 73.75 | AA5: 68.39 | AB5: 95.78 | AC5: 95.78 | AD5: 95.78 | AE5: 1500 | AF5: 1155 | AG5: 1071 | AH5: $1,500/edu | AI5: 1500 | AJ5: 1500 | AK5: 100 | AL5: 0 | AM5: 0 | AN5: 0 | AO5: 0 | AP5: 0 | AQ5: No | AX5: x | AY5: No | AZ5: 136444 | BA5: 0 | BB5: 0 | BC5: x | BG5: Yes | BH5: 0.0074 | BJ5: Yes | BK5: Yes | DC5: No | DE5: This district recently completed a regionalization project which decommissioned a pond system. The decommissioning of the pond system occurred this fiscal year. However, the wastewater was diverted to the Sewer Maintenance District 1 Wastewater Treatment Plant on Joeger Road last fiscal year.
A6: 62 | B6: East Independence Sanitary District | C6: Independence | D6: 93526 | E6: Inyo | F6: 49554 | G6: Annual | H6: Flat Rate | I6: Annual | J6: Flat Rate | S6: 62 | Y6: 22.16 | AE6: 1625 | AK6: 100 | AQ6: No | AX6: x | AY6: N/A | BA6: 0 | BB6: 0 | BC6: x | BG6: No | BK6: No | BZ6: x | CF6: Oxidation Ponds | CG6: x | CT6: x | CV6: No | CY6: Yes | DC6: No | DE6: Chris Riesen is the man you need to speak to if you have another further needs. Email: chris.riesen@ladwp.com Office: (760) 878-3186 Cell:(760) 878-8097 Fax: (760) 878- 3028
A7: 68 | B7: Markleeville Public Utility District | C7: Markleeville | D7: 96120 | E7: Alpine | G7: Quarterly | H7: Flat Rate | I7: Quarterly | J7: Flat Rate | O7: Quarterly | P7: Flat Rate | S7: 57 | W7: 11 | Y7: 61.5 | AC7: 224 | AE7: Not given | AI7: Not given | AK7: 99 | AL7: 1 | AQ7: No | AX7: x | AY7: No | AZ7: 40000 | BB7: 8000 | BC7: x | BE7: x | BG7: Yes | BH7: 20 | BI7: 40 | BJ7: No | BL7: Yes | BN7: Markleeville Public Utility District - 89 Water St. Markleeville, CA 96120 | BZ7: x | CA7: x | CC7: x | CG7: x | CN7: Filtration | CT7: x | CV7: No | CY7: No | DC7: No
A8: 70 | B8: County Service Area #13- Alpine Meadows | C8: Redding | D8: 96001 | E8: Shasta | F8: 32813 | G8: Bimonthly | H8: Flat Rate | I8: Bimonthly | J8: Flat Rate | K8: Bimonthly | L8: Flat Rate | M8: Bimonthly | N8: Flat Rate | O8: Bimonthly | P8: Flat Rate | Q8: Bimonthly | R8: Flat Rate | S8: 25 | W8: 5 | Y8: 109.5 | Z8: 109.5 | AA8: 109.5 | AB8: 109.5 | AC8: 109.5 | AD8: 109.5 | AK8: 99 | AL8: 1 | AQ8: No | AX8: x | AY8: No | AZ8: 39060 | BC8: x | BE8: x | BF8: x | BG8: No | BH8: 0.003 | BI8: 0.003 | BN8: Alpine Meadows, Chateau Leachfield ano Emigrant Leachfield, Shingletown, Ca | CU8: Leachfield | CV8: No | CY8: No | DC8: No | DE8: All rates and fees per HE.
A9: 80 | B9: Grenada Sanitary District | C9: Grenada | D9: 96038 | E9: Siskiyou
A10: 87 | B10: Tucker Oaks Water District | C10: Anderson | D10: 96007 | E10: Shasta | G10: Monthly | S10: 34 | AK10: 0.99 | AO10: 0.005 | AQ10: No | AX10: x | AY10: N/A | AZ10: 16320 | BA10: 0 | BB10: 0 | BF10: x | BG10: No | BJ10: Yes | DE10: We are completely volunteer organization. The form was completed with the help of our President, jerry Cottengim who directs the poeration.
A11: 100 | B11: Bear Valley Water District | C11: Bear Valley | D11: 95223 | E11: Alpine | F11: 20000 | G11: Quarterly | H11: Flat Rate | I11: Quarterly | J11: Flat Rate | O11: Quarterly | P11: Variable Based on Water Use. | S11: 544 | W11: 20 | Y11: 90.37 | Z11: 90.37 | AC11: 80.48 + 0.064 per gallon | AE11: 15740 | AF11: 15,740 (3) + 5247 each additional | AI11: 15,740 (3) + 5247 each additional | AK11: 100 | AQ11: No | AV11: x | AY11: No | AZ11: 521231 | BA11: 56338 | BB11: 133500 | BC11: x | BD11: x | BE11: x | BF11: x | BG11: No | BH11: 11.45 MGD | BI11: design .5MGD, permitted .1MGD | BJ11: No | BK11: No | BN11: Bear Valley Wastewater Treatment Plant | BZ11: x | CA11: x | CB11: x | CJ11: x | CV11: No | CY11: Yes | DA11: R5-2001-0208 | DB11: R5-2011-0053 | DC11: No
A12: 100 | B12: Heather Glen Community Services District | C12: Applegate | D12: 95703 | E12: Placer | F12: 34364 | K12: Monthly | L12: Flat Rate | U12: 80 | AA12: 6 | AG12: 0 | AK12: 100 | AQ12: No | AX12: x | AY12: N/A | AZ12: 5760 | BA12: 0 | BB12: 1200 | BC12: x | BE12: x | BG12: No | BH12: 7000 gallons per day | BI12: N/A | BJ12: No | BK12: No | BN12: Heather Glen Treatment Facility Applegate CA | BZ12: x | CF12: Pond Treatment | CV12: No | CY12: Yes | DA12: 93-065
A13: 102 | B13: Santa Maria, City of | C13: Santa Maria | D13: 93458 | E13: Santa Barbara | F13: 51675 | G13: Monthly | H13: Flat Rate | I13: Monthly | J13: Flat Rate | K13: Monthly | L13: Flat Rate | M13: Monthly | N13: Variable Based on Water Use. | O13: Monthly | P13: Variable Based on Water Use. | Q13: Monthly | R13: Variable Based on Water Use. | S13: 19266 | T13: 7905 | U13: 1205 | V13: 95 | W13: 1967 | X13: 0 | Y13: 17.42 | Z13: 12.87 | AA13: 12.33 | AB13: 30 | AC13: 30 | AD13: 0 | AE13: 3791 | AF13: 3418 | AG13: 1260 | AH13: Based on projected water use | AI13: Based on projected water use | AJ13: 0 | AK13: 84 | AL13: 3 | AM13: 0 | AN13: 0 | AO13: 3 | AP13: 10 | AQ13: No | AV13: x | AY13: No | AZ13: 3037472 | BA13: 410910 | BB13: 5375260 | BC13: x | BE13: x | BF13: x | BG13: Yes | BH13: 8.99 | BI13: 13.5 | BJ13: No | BK13: No | BN13: Wastewater treatment plant, 601 S. Black Road | CC13: x | CD13: x | CH13: x | CP13: x | CV13: No | CW13: 0 | CX13: 0 | CY13: Yes | DA13: R3-2010-0001 | DC13: No
A14: 110 | B14: Covelo Community Service District | C14: Covelo | D14: 95428 | E14: Mendocino | F14: 29205 | G14: Quarterly | H14: Flat Rate | J14: Flat Rate | K14: Quarterly | L14: Flat Rate | N14: Flat Rate | O14: Quarterly | P14: Flat Rate | Q14: Quarterly | R14: Flat Rate | S14: 181 | U14: 33 | W14: 74.25 | X14: 45.25 | Y14: 50 | AA14: 50 | AC14: 50 | AD14: 50 | AE14: 8500 | AG14: 8500 | AI14: 8500 | AJ14: 8500 | AK14: 97 | AL14: 3 | AQ14: No | AV14: x | AY14: No | AZ14: 148829.43 | BA14: 8800 | BB14: 0 | BC14: x | BE14: x | BG14: No | BH14: 0.035 | BI14: 0.077 | BJ14: No | BN14: Covelo Community Service District Treatment Plant 76001 Commercial St. Covelo | BZ14: x | CC14: x | CD14: x | CI14: Wetlands | CK14: x | CV14: Yes | CW14: 0 | CX14: 0 | CY14: Yes | DA14: R1-2011-0001 (WDID:1B83009OMEN) | DB14: R1-2011-0001 | DC14: No
A15: 114 | B15: Vernon, City of | C15: Vernon | D15: 92821 | E15: Los Angeles
A16: 117 | B16: Adin Community Services District | C16: Adin | D16: 96006 | E16: Modoc | F16: 20000 | G16: Monthly | H16: Flat Rate | I16: Monthly | J16: Flat Rate | K16: Monthly | L16: Flat Rate | M16: Monthly | N16: Flat Rate | O16: Monthly | P16: Flat Rate | Q16: Monthly | R16: Flat Rate | S16: 123 | W16: 19 | Y16: 21 | AC16: 32 | AE16: 1500 | AI16: 1500 | AK16: 99.5 | AO16: 0.5 | AQ16: No | AX16: x | AY16: No | AZ16: 40000 | BC16: x | BG16: No | BH16: 0.02 | BI16: 0.05 | BJ16: No | BK16: No | DC16: No
A17: 122 | B17: Los Angeles County Sanitation District No. 23 | C17: Whittier | D17: 90601 | E17: Los Angeles | F17: 32188 | G17: Annual | H17: Flat Rate | I17: Annual | J17: Flat Rate | K17: Annual | L17: Flat Rate | M17: Quarterly | N17: Variable Based on Water Use. | O17: Annual | P17: Flat Rate | Q17: Annual | R17: Flat Rate | S17: 10 | T17: 1 | U17: 0 | V17: 37 | W17: 487 | Y17: 10 | Z17: 6 | AA17: 6 | AB17: 48 | AC17: 214.05 | AE17: 3800 | AF17: 2280 | AG17: 2280 | AH17: 456 | AI17: 6812 | AK17: 14 | AL17: 6 | AM17: 70 | AN17: 7 | AO17: 3 | AQ17: Yes | AS17: x | AT17: x | AV17: x | AY17: No | AZ17: 3300000 | BA17: 593000 | BB17: 949000 | BD17: x | BE17: x | BF17: x | BG17: Yes | BH17: (Note 2) | BJ17: No | CV17: No | CY17: Yes | DC17: No | DE17: Note 1- Institutional units were included in Commericial units Note 2- District No. 23 is part of Joint Outfall System (JOS) which consists of 7 treatment plants. See separate sheet for each individual plant's responsibilities and treatment process
A18: 150 | B18: Lemon Cove Sanitary District | C18: Lemon Cove | D18: 93244 | E18: Tulare | F18: 32500 | G18: Annual | H18: Flat Rate | I18: Annual | J18: Flat Rate | K18: Annual | L18: Flat Rate | O18: Annual | P18: Flat Rate | Q18: Annual | R18: Flat Rate | S18: 34 | T18: 3 | U18: 2 | W18: 5 | X18: 2 | Y18: 9 | Z18: 9 | AA18: 9 | AC18: 9 | AD18: 9 | AE18: 500 | AF18: 500 | AG18: 500 | AI18: 500 | AJ18: 500 | AK18: 90 | AN18: 5 | AO18: 5 | AQ18: No | AX18: x | AY18: N/A | AZ18: 30089 | BA18: 0 | BB18: 5000 | BC18: x | BE18: x | BF18: x | BG18: No | BH18: 0.011 | BI18: 0.016 | BJ18: No | BN18: Lemon Cove Sanitart District Wastewater Treatment Facility- 24881 Lomitas Ave., Lemon Cove, Ca, 93244 | BZ18: x | CF18: Oxidation Pond | CT18: x | CV18: No | CY18: No | DC18: No | DE18: Please mail a hard copy to the District att he address above. Thank you.
A19: 160 | B19: South Dos Palos County Water District | C19: South Dos Palos | D19: 93665 | E19: Merced | F19: 20000 | G19: Monthly | H19: Flat Rate | I19: Monthly | J19: Flat Rate | K19: Monthly | L19: Flat Rate | M19: Monthly | N19: Flat Rate | O19: Monthly | P19: Flat Rate | R19: Variable Based on Water Use. | AK19: checked | AL19: checked | AQ19: No | AV19: x | AY19: No | BC19: x | BG19: No | BH19: 0.0825 | BI19: N/A | BJ19: No
A20: 180 | B20: Bridgeport Public Utility District | C20: Bridgeport | D20: 93517 | E20: Mono | F20: 35000 | G20: Monthly | H20: Flat Rate | I20: Monthly | J20: Flat Rate | K20: Monthly | L20: Flat Rate | O20: Monthly | P20: Flat Rate | S20: 141 | T20: 22 | U20: 13 | W20: 20 | Y20: 78.54 | Z20: 78.54 | AA20: 78.54 | AC20: 160 | AE20: 2500 | AG20: 2500 | AI20: 3600 | AK20: 99.9 | AL20: 0.1 | AQ20: No | AY20: N/A | AZ20: 250000 | BC20: x | BD20: x | BE20: x | BF20: x | BG20: No | BH20: 0.04 | BI20: 0.2 | BJ20: No | BN20: Bridgeport sewer ponds- 1111Aurora Canyon Road, Bridgeport, CA, 93517 | BZ20: x | CA20: x | CB20: x | CF20: Ponds/ lagoon system | CI20: Aeration | CV20: No | CY20: No | CZ20: Bridgeport sewer ponds dose not discharge | DA20: 2006-0003-DWQ | DC20: No
A21: 190 | B21: Los Osos Community Services District | C21: Los Osos | D21: 93402 | E21: San Luis Obispo | F21: 57683 | G21: Annual | H21: Flat Rate | S21: 73 | Y21: N/A | AE21: N/A | AP21: 100% Annual Assessment through County of San Luis Obispo | AQ21: No | AX21: x | AY21: N/A | AZ21: 25250 | BA21: 0 | BB21: 0 | BC21: x | BE21: x | BF21: x | BG21: No | BH21: 0.0075 | BI21: 0.0289 | BJ21: Yes | BK21: No | BN21: Vista de Oro, Tract 417, Assessors Parcel Map Book 74, Page 42 San Luis Obispo County | BX21: x | CD21: x | CE21: x | CI21: Secondary clarifier | CM21: No treatment, this is a septic system | CP21: x | CT21: x | CU21: Leachfield disposal of effluent | CV21: No | CW21: 0 | CX21: 0 | CY21: Yes | DA21: 99-72 | DC21: No | DE21: WDID Number 3 401024001 The District has maintained this community septic collection and treatment system since 1999. A proposition 218 protest passed by a majority on June 20, 2013. The District has to borrow from other funds to keep this fund stable. When the County of San Luis Obispo completes the Los Osos Wastewater project, this system will be connected to the County's system. At that time a notice of termination will be filed.
A22: 190 | B22: Los Osos Community Services District | C22: Los Osos | D22: 93402 | E22: San Luis Obispo | F22: 57683 | G22: Annual | H22: Flat Rate | S22: 73 | Y22: N/A | AE22: N/A | AP22: 100% Annual Assessment through County of San Luis Obispo | AQ22: No | AX22: x | AY22: N/A | AZ22: 25250 | BA22: 0 | BB22: 0 | BC22: x | BE22: x | BF22: x | BG22: No | BH22: 0.0075 | BI22: 0.0289 | BJ22: Yes | BK22: No | BN22: Vista de Oro, Tract 417, Assessors Parcel Map Book 74, Page 42 San Luis Obispo County | BX22: x | CD22: x | CE22: x | CI22: Secondary clarifier | CM22: No treatment, this is a septic system | CP22: x | CT22: x | CU22: Leachfield disposal of effluent | CV22: No | CW22: 0 | CX22: 0 | CY22: Yes | DA22: 99-72 | DC22: No | DE22: WDID Number 3 401024001 The District has maintained this community septic collection and treatment system since 1999. A proposition 218 protest passed by a majority on June 20, 2013. The District has to borrow from other funds to keep this fund stable. When the County of San Luis Obispo completes the Los Osos Wastewater project, this system will be connected to the County's system. At that time a notice of termination will be filed.
A23: 190 | B23: Crockett Community Services District | C23: Crockett | D23: 94525 | E23: Contra Costa | F23: 92743 | G23: Annual | H23: Flat Rate | I23: Annual | J23: Flat Rate | K23: Annual | L23: Flat Rate | M23: Annual | N23: Variable Based on Water Use. | O23: Annual | P23: Variable Based on Water Use. | Q23: Annual | R23: Variable Based on Water Use. | S23: 71 | T23: 35 | U23: 0 | V23: 0 | W23: 3 | X23: 0 | Y23: 147 | Z23: 147 | AC23: 300 | AE23: 5500 | AF23: 5500 | AG23: 5500 | AH23: 5500 | AI23: 5500 | AJ23: 5500 | AK23: 100 | AQ23: No | AV23: x | AY23: No | AZ23: 258253 | BA23: 24889 | BB23: 15363 | BC23: x | BD23: x | BE23: x | BF23: x | BG23: No | BH23: 0.006 | BI23: 0.33 | BJ23: No | BK23: No | BN23: Port Costa Wastewater Treatment Plant - End of Canyon Lake Drive Port Costa CA 94569 | CI23: Sand Filter beds | CJ23: x | CT23: x | CV23: No | CW23: 0 | CX23: 0 | CY23: Yes | DB23: CA0037885 | DC23: No | DE23: Please provide me with a hard copy of the report for my records.
A24: 193 | B24: San Luis Obispo County Special District: CSA1F | C24: San Luis Obispo | D24: 93408 | E24: San Luis Obispo | G24: Annual | H24: Flat Rate | S24: 66 | Y24: 53.91 | AE24: 0.00 (Built Out) | AK24: 100 | AQ24: No | AX24: x | AY24: No | AZ24: 50446 | BA24: 0 | BB24: 0 | BC24: x | BG24: No | BH24: 0.069 MGD | BJ24: No | BN24: Nipomo Community Services District | DC24: No
A25: 200 | B25: Golden Valley Municipal Water District | C25: Escondido | D25: 92025 | E25: Los Angeles | G25: Monthly | H25: Flat Rate | I25: Monthly | J25: Flat Rate | K25: Monthly | L25: Flat Rate | M25: Monthly | N25: Flat Rate | O25: Monthly | P25: Flat Rate | Q25: Monthly | R25: Flat Rate | S25: 3 | T25: N/A | U25: N/A | V25: N/A | W25: 8 | X25: N/A | Y25: 145 | AC25: 1594 | AE25: 4700 | AF25: 4700 | AG25: 4700 | AH25: N/A | AI25: 4700 | AJ25: N/A | AK25: 100 | AL25: 0 | AM25: 0 | AN25: 0 | AO25: 0 | AP25: 0 | AQ25: No | AX25: x | AY25: No | AZ25: 160000 | BA25: 0 | BB25: 0 | BC25: x | BE25: x | BF25: x | BG25: No | BH25: 0.015 | BI25: 0.6 | BJ25: No | BK25: No | BL25: Yes | BN25: Gorman Wastewater Treatment Plant (1845) | BX25: x | BZ25: x | CF25: Imhoff Tank | CV25: No | CW25: 0 | CX25: 0 | CY25: Yes | DA25: 1845 | DC25: No
A26: 210 | B26: Tomales Village Community Service District | C26: Tomales | D26: 94971 | E26: Marin | F26: 45700 | G26: Annual | H26: Flat Rate | I26: Annual | J26: Flat Rate | K26: Annual | L26: Flat Rate | M26: Annual | N26: Flat Rate/Variable Based | O26: Annual | P26: Flat Rate/Variable Based | Q26: Annual | R26: Flat Rate/Variable Based | S26: 76 | T26: 7 | U26: 0 | V26: 0 | W26: 10 | X26: 5 | Y26: 63 | Z26: 63 | AA26: 0 | AB26: 0 | AC26: 160 | AD26: 7000 | AE26: 10000 | AF26: 10000 | AG26: 0 | AH26: 0 | AI26: 10000 | AJ26: 10000 | AK26: 91.2 | AL26: 0 | AM26: 0 | AN26: 4 | AO26: 0.8 | AP26: 4 | AQ26: Yes | AR26: x | AT26: x | AV26: x | AW26: x | AY26: No | AZ26: 144000 | BA26: 42000 | BB26: 0 | BC26: x | BD26: x | BE26: x | BF26: x | BG26: No | BH26: 0.016 | BI26: 0.042 | BJ26: No | BK26: No | BN26: Tomales Wastewater Treatment Plant 10 Irvin Road, Tomales CA 94971 | BO26: Tomales Lift Station Tomales-Petaluma Rd, Tomales | BP26: Tomales Irrigation Field off Cerini Rd, Tomales CA | BZ26: x | CA26: x | CB26: x | CC26: x | CF26: FOG Interceptor | CI26: Aerated Lagoons | CJ26: x | CT26: x | CV26: No | CW26: 0 | CX26: 0 | CY26: Yes | DA26: 86-86 | DC26: No
A27: 212 | B27: Richardson Springs Community Service District | C27: Chico | D27: 95973 | E27: Butte | O27: Monthly | P27: Flat Rate | W27: 1 | AC27: 3100 | AI27: same | AK27: same | AQ27: No | AX27: x | AY27: No | AZ27: 37200 | BA27: 0 | BB27: 0 | BE27: x | BF27: x | BG27: No | BH27: 0.0065 | BI27: 0.015 | BJ27: No | BK27: No | BN27: Richardson Springs community Service district | BZ27: x | CE27: x | CI27: ponds and logoons | CJ27: x | CT27: x | CV27: No | CY27: Yes | DA27: 94-245 | DC27: No
A28: 221 | B28: Calpella County Water District | C28: Calpella | D28: 95418 | E28: Mendocino | G28: Monthly | H28: Flat Rate | I28: Monthly | J28: Flat Rate | K28: Monthly | L28: Flat Rate | M28: Monthly | N28: Variable Based on Water Use. | O28: Monthly | P28: Variable Based on Water Use. | S28: 156 | T28: 39 | U28: 15 | V28: 4 | W28: 7 | Y28: 35 | Z28: 35 | AA28: 35 | AB28: 35 | AC28: 35 | AE28: 1400 | AF28: 1400 | AG28: 1400 | AH28: 1400 | AI28: 1400 | AK28: 45 | AN28: 5 | AO28: 1 | AQ28: Yes | AR28: x | AT28: x | BC28: x | BE28: x | BF28: x | BG28: No | BH28: 0.035 | BI28: 0.04 | BJ28: No | BN28: Calpella County Water District Wastewater Treatment Facility | BZ28: x | CB28: x | CJ28: x | CT28: x | CY28: Yes | DA28: 86-116 | DC28: No
A29: 252 | B29: Tulare County Resource Management Agency - Tooleville Wastewater Treatment Plant | C29: Visalia | D29: 93277 | E29: Tulare | F29: 28333 | G29: Monthly | H29: Flat Rate | I29: Monthly | J29: Flat Rate | K29: Monthly | L29: Flat Rate | M29: Monthly | N29: Flat Rate | O29: Monthly | P29: Flat Rate | Q29: Monthly | R29: Flat Rate | S29: 69 | Y29: 59.25 | AE29: 500 | AK29: 98 | AO29: 2 | AQ29: No | AV29: x | AY29: No | AZ29: 103409 | BA29: 6625 | BB29: 0 | BC29: x | BE29: x | BF29: x | BG29: No | BH29: 18306 | BI29: 35000 | BJ29: No | BK29: No | BN29: Tooleville Wastewater Treatment Plant, 2285 Morgan Avenue, Exeter, CA | BZ29: x | CA29: x | CB29: x | CC29: x | CT29: x | CU29: Evaporative Lagoon | CV29: No | CW29: 0 | CX29: 0 | CY29: Yes | DA29: 88-139 | DC29: No
A30: 260 | B30: Tehama County Sanitation District No. 1 | C30: Gerber | D30: 96035 | E30: Tehama | F30: 47498 | G30: Annual | H30: Flat Rate | O30: Quarterly | P30: Flat Rate | S30: 180 | W30: 20 | Y30: 43 | AC30: 164 | AE30: N/A | AK30: 70.99 | AL30: 0.01 | AN30: 29 | AQ30: No | AV30: x | AW30: x | AY30: No | AZ30: 131580 | BA30: 39220 | BB30: 6820 | BC30: x | BG30: No | BH30: 0.07 | BI30: 0.75 | BJ30: No | BN30: Mineral Wastewater Treatment Plant, 37735 Hwy. 36E, Mineral, CA 96063 | BZ30: x | CA30: x | CC30: x | CF30: flow measurement, aeration basin, evaporation/percolation ponds pressure filter, chlorination/dechlorination unit | CJ30: x | CN30: Filtration | CO30: plain filtration pressure filter when discharging | CV30: No | CW30: -0- | CY30: Yes | DA30: R5-2007-0098 | DB30: CA 0084069 | DC30: No
A31: 300 | B31: Lassen County Waterworks District 1 | C31: Bieber | D31: 96009 | E31: Lassen | F31: 32500 | G31: Monthly | H31: Flat Rate | I31: Monthly | J31: Flat Rate | K31: Monthly | L31: Flat Rate | M31: Monthly | N31: Flat Rate | O31: Monthly | P31: Flat Rate | Q31: Monthly | R31: Flat Rate | S31: 124 | W31: 15 | X31: 3 | Y31: 0 | AE31: 0 | AF31: 0 | AG31: 0 | AH31: 0 | AI31: 0 | AJ31: 0 | AK31: 0 | AQ31: No | AV31: x | AY31: N/A | BB31: 0 | BC31: x | BG31: No | BJ31: No | BN31: Wastewater Evaporation Ponds and Lagoon | BZ31: x | CF31: Evaporation wastewater Ponds | CQ31: x | CV31: No | CY31: Yes | DC31: No
A32: 310 | B32: June Lake Public Utility District | C32: June Lake | D32: 93529 | E32: Mono | F32: 46000 | G32: Monthly | H32: Flat Rate/Variable Based | I32: Monthly | J32: Flat Rate/Variable Based | O32: Monthly | P32: Flat Rate | S32: 602 | T32: 16 | W32: 55 | Y32: 24.24 | Z32: 24.24 | AC32: 238 | AE32: 3400 | AF32: 3400 | AI32: 5200 | AK32: 95 | AL32: 5 | AQ32: No | AX32: x | AY32: No | AZ32: 426000 | BA32: 0 | BB32: 186000 | BC32: x | BE32: x | BF32: x | BG32: No | BH32: 0.35 | BI32: 1 | BJ32: Yes | BK32: No | BN32: June Lake Public Utilities District Wastewater Treatment Plant, 45125 Highway 395, June Lake, CA 93529 | BZ32: x | CA32: x | CF32: N/A | CI32: Extended Aeration, Oxidation Ditch | CM32: N/A | CO32: N/A | CT32: x | CU32: Sludge drying beds, percolation ponds | CV32: No | CW32: N/A | CX32: N/A | CY32: Yes | DA32: R6-93-19 | DB32: 6B260101002 | DC32: No
A33: 330 | B33: Kern County CSA-71.1 | C33: Bakersfield | D33: 93301 | E33: Kern | G33: Annual | H33: Flat Rate | S33: 128 | Y33: 18.02 | AE33: 4000 | AK33: 100 | AQ33: No | AX33: x | AY33: No | AZ33: 26500 | BA33: 0 | BB33: 25000 | BC33: x | BG33: No | BH33: 0.36 | BI33: 0.5 | BJ33: No | BK33: No | CY33: No | CZ33: City of Bakersfield | DC33: No
A34: 350 | B34: Snelling Community Services District | C34: Snelling | D34: 95369 | E34: Merced | F34: 25000 | G34: Quarterly | H34: Flat Rate | K34: Quarterly | L34: Flat Rate | O34: Quarterly | P34: Flat Rate | S34: 112 | U34: 15 | W34: 4 | Y34: 25 | AA34: 25 | AE34: 1000 | AF34: 1000 | AG34: 1000 | AH34: 1000 | AI34: 1000 | AJ34: 1000 | AK34: 70 | AL34: 2 | AN34: 28 | AP34: 30 | AQ34: No | AZ34: 20000 | BB34: 90000 | BE34: x | BH34: 0.02 | BI34: 0.04 | BJ34: No | BN34: Snelling Comm Services District 15760 N. Hwy 59 Snelling, CA 95369 | BZ34: x | CA34: x | CC34: x | CI34: Ponds | CJ34: x | CV34: No | CY34: Yes | DA34: 85-155 | DC34: No
A35: 382 | B35: Los Osos Community Services District | C35: Los Osos | D35: 93402 | E35: San Luis Obispo | F35: 57683 | G35: Annual | H35: Flat Rate | S35: 147 | Y35: 0 | AE35: 0 | AP35: 100% Annual Assessment through County of San Luis Obispo | AQ35: No | AW35: x | AY35: N/A | AZ35: 61562 | BA35: 0 | BB35: 7700 | BC35: x | BE35: x | BF35: x | BG35: No | BH35: 0.0185 | BI35: 0.05 | BJ35: Yes | BK35: No | BN35: Bayridge Estates, Book 74, Page 491, Lot 33 of Assessors Parcel Map of San Luis Obispo County | BX35: x | CD35: x | CE35: x | CI35: Secondary Clarifier | CM35: This is a septic system | CP35: x | CT35: x | CU35: Leachfield disposal of effluent | CV35: No | CW35: 0 | CX35: 0 | CY35: Yes | DA35: 99-73 | DC35: No | DE35: WDID Number 3 401027001 The County of San Luis Obispo is building the Los Osos Wastewater Project. When completed this system will be connected to the County's system and the District will file a notice of termination. The District has been maintaining this community septic system since 1999. In July 2013, rates were increased for the first time since 1999 through a Proposition 218 protest vote. Each household is now assessed $373/per year.
A36: 387 | B36: Tulare County Resource Management. Agency - Delft Colony Wastewater Treatment Plant | C36: Visalia | D36: 93277 | E36: Tulare | F36: 39228 | G36: Monthly | H36: Flat Rate | S36: 100 | Y36: 51 | AE36: 500 | AK36: 93 | AO36: 3 | AP36: 4 | AQ36: No | AV36: x | AY36: Yes | AZ36: 95819 | BA36: 5680 | BB36: 0 | BC36: x | BE36: x | BF36: x | BG36: No | BH36: 31847 | BI36: 57200 | BJ36: No | BK36: No | BN36: Delft Colony Wastewater Treatment Plant, 39360 Road 56, Dinuba, CA | BZ36: x | CA36: x | CB36: x | CC36: x | CT36: x | CV36: No | CW36: 0 | CX36: 0 | CY36: Yes | DA36: 88-097 | DC36: No | DE36: To ensure that the existing infrastructure is maintained and replaced, major repairs are authorized through Tulare County Board Agreement Number 22795 with Water Dynamics, Inc. Sewer infrastructure rehabilitation and replacement projects are identified through an ongoing condition assessment program by Water Dynamics, Inc. Condition assessments include visual inspections, flushing/cleaning, manhole and Closed Circuit Television (CCTV) inspections. Prioritization of preventive and reactive maintenance activities occur through verbal communication as well as work orders. Data on stoppages and other operational problems are collected in field logs and entered into a computer based information system which is reviewed regularly by system managers for prioritization. As these tasks are performed each item is ranked and placed on a list for repair and/or further assessment for rehabilitation or replacement. Short and long term rehabilitation and replacement needs are identified. Short term rehabilitation projects occur within two (2) years and long term projects within five (5) years. Capital Improvement Projects are also identified in this analysis and provided to Tulare County on a regular basis. At present, there are no significant defects identified in the Delft Colony collection system which could result in an SSO. The Tulare County Capital Improvement Program (CIP) is proactive by design, but allows for reactive responses when needed. It is designed to be fluid and flexible in nature allowing it the ability to respond to fast changing economic, operational and physical conditions as they arise.
A37: 388 | B37: River Pines Public Utility District | C37: River Pines | D37: 95675 | E37: Amador | F37: 57817 | G37: Monthly | H37: Flat Rate | O37: Monthly | P37: Flat Rate | S37: 201 | W37: 4 | Y37: 57.25 | AC37: 66.7 | AE37: 7748 | AI37: 7748 | AK37: 100 | AQ37: No | AV37: x | AY37: No | AZ37: Not Given | BC37: x | BE37: x | BF37: x | BG37: No | BH37: 0.024 | BI37: 0.03 | BJ37: No | BN37: River Pines Wastewater Treatment Facility | BZ37: x | CC37: x | CD37: x | CI37: Primary Ponds, Secondary Settling Pond, Storage Pond | CJ37: x | CV37: No | CW37: 0 | CY37: Yes | DA37: 85-291 | DC37: No
A38: 390 | B38: Irwindale, City of | C38: Irwindale | D38: 91706 | E38: Los Angeles | F38: 63250 | G38: Annual | H38: Variable Based on Water Use. | I38: Annual | J38: Variable Based on Water Use. | K38: Annual | L38: Variable Based on Water Use. | M38: Annual | N38: Variable Based on Water Use. | O38: Annual | P38: Variable Based on Water Use. | Q38: Annual | R38: Variable Based on Water Use. | S38: 390 | T38: 1 | U38: 0 | V38: 174 | W38: 573 | X38: 5 | Y38: 0 | Z38: 0 | AA38: 0 | AB38: 0 | AC38: 0 | AD38: 0 | AE38: 4330 | AF38: 2598 | AG38: 2598 | AH38: Based on Wastewater Quantity & Strenght Contained | AI38: 8154.54 | AJ38: 1378.5 | AK38: 0 | AL38: 0 | AM38: 0 | AN38: 0 | AO38: 0 | AP38: 0 | AQ38: No | AX38: x | AY38: N/A | AZ38: 127980.00 (sewer & storm drain maintenance only) | BA38: 0 | BB38: 0 | BG38: No | BJ38: No | BK38: No | BL38: No | DC38: No | DE38: The City of Irwindale does not own or maintain any Wastewater Treatment Facilities. Our sewers are maintained by Los AngelesCounty Department of Public Works - Sewer Maintenance District. All connections and surcharge fees are approved and collected by the Los AngelesCounty Sanitation District. Irwindale falls under Districts 15 and 22.
A39: 400 | B39: Avila Beach Community Services District | C39: Avila Beach | D39: 93424 | E39: San Luis Obispo | G39: Monthly | H39: Flat Rate/Variable Based | I39: Monthly | J39: Flat Rate/Variable Based | K39: Monthly | L39: Flat Rate/Variable Based | M39: Monthly | N39: Flat Rate/Variable Based | O39: Monthly | P39: Flat Rate/Variable Based | Q39: Monthly | R39: Flat Rate/Variable Based | S39: 253 | T39: 22 | U39: 0 | V39: 0 | W39: 51 | X39: 0 | Y39: 35.9 | Z39: 37.95 | AC39: 51.7 | AE39: 12481 | AF39: 9965 | AI39: 3994 | AK39: 80 | AL39: 0 | AN39: 20 | AO39: 5 | AQ39: Yes | AR39: x | AT39: x | AX39: x | AY39: No | AZ39: 471699 | BA39: 0 | BB39: 747500 | BC39: x | BE39: x | BF39: x | BG39: No | BH39: 0.06 | BI39: 0.2 | BJ39: No | BN39: Avila Beach Wastewater Treatment Plant 2850 Avila Beach Drive Avila Beach CA 93424 | CD39: x | CE39: x | CH39: x | CJ39: x | CT39: x | CV39: No | CW39: 0 | CX39: 0 | CY39: Yes | DA39: R3-2009-0055 | DB39: CA0047830 | DC39: Yes | DD39: avilabeachcsd.org
